Workbook

Sheet Foglio1
A2: La variazione di energia libera
A4: La variazione dell’energia libera dovuta alla reazione A + B → C + D può essere espressa in termini di una costante caratteristica per quella reazione (la variazione di energia libera nello stato standard biochimico, ∆G'°) e le concentrazioni dei reagenti e dei prodotti (il rapporto di azione di massa Q = [C][D]/[A][B]).
A6: Per la reazione catalizzata dall’esochinasi ATP + glucosio → glucosio-6-fosfato + ADP la variazione di energia libera standard ∆G'° è pari a –16,7 kJ/mol. Utilizzate questo foglio di calcolo per visualizzare il grafico della ∆G rispetto al rapporto di azione di massa Q = [C][D]/[A][B], per valori di Q compresi tra 10-4 e 104. Cosa potete concludere sull’effetto di Q sulla grandezza di ∆G? E sull’effetto di Q sul segno della ∆G? Potete modificare il dominio della funzione (cioè il rapporto [C][D]/[A][B]) inserendo i valori nelle caselle in alto e cliccando sul tasto Cambia l’asse X. Per visualizzare correttamente il grafico, scegliete valori compresi tra 0,001 e 10.000.
M8: [C][D]/[A][B] = da
P9: 0.001 | Q9: a | R9: 10000
A11: T1 | B11: = | C11: 300 | D11: K | F11: ∆G'°1 | G11: = | H11: -90 | I11: kJ/mol
A12: T2 | B12: = | D12: K | F12: ∆G'°2 | G12: = | I12: kJ/mol
A13: T3 | B13: = | D13: K | F13: ∆G'°3 | G13: = | I13: kJ/mol
A14: T4 | B14: = | D14: K | F14: ∆G'°4 | G14: = | I14: kJ/mol
A15: T5 | B15: = | D15: K | F15: ∆G'°5 | G15: = | I15: kJ/mol

Sheet Foglio2 (hidden)
A1: C2/C1 | B1: LN | C1: RTLN(C2/C1) | D1: ∆G° + RTLN(C2/C1) | E1: C2/C1 | F1: LN | G1: RTLN(C2/C1) | H1: ∆G° + RTLN(C2/C1) | I1: C2/C1 | J1: LN | K1: RTLN(C2/C1) | L1: ∆G° + RTLN(C2/C1) | M1: C2/C1 | N1: LN | O1: RTLN(C2/C1) | P1: ∆G° + RTLN(C2/C1) | Q1: C2/C1 | R1: LN | S1: RTLN(C2/C1) | T1: ∆G° + RTLN(C2/C1)
A2: 0.0001 | B2: =LN(A2) -> -9.210340372 | C2: =IF(Foglio1!$C$11 <> "", 8.314472*Foglio1!$C$11*Foglio2!B2, NA()) -> -22973.73514 | D2: =IF(Foglio1!$H$11 <> "", Foglio1!$H$11 + C2*10^-3, NA()) -> -112.9737351 | E2: 0.0001 | F2: =LN(E2) -> -9.210340372 | G2: =IF(Foglio1!$C$12 <> "", 8.314472*Foglio1!$C$12*Foglio2!F2, NA()) ->  | H2: =IF(Foglio1!$H$12 <> "", Foglio1!$H$12 + G2*10^-3, NA()) ->  | I2: 0.0001 | J2: =LN(I2) -> -9.210340372 | K2: =IF(Foglio1!$C$13 <> "", 8.314472*Foglio1!$C$13*Foglio2!J2, NA()) ->  | L2: =IF(Foglio1!$H$13 <> "", Foglio1!$H$13 + K2*10^-3, NA()) ->  | M2: 0.0001 | N2: =LN(M2) -> -9.210340372 | O2: =IF(Foglio1!$C$14 <> "", 8.314472*Foglio1!$C$14*Foglio2!N2, NA()) ->  | P2: =IF(Foglio1!$H$14 <> "", Foglio1!$H$14 + O2*10^-3, NA()) ->  | Q2: 0.0001 | R2: =LN(Q2) -> -9.210340372 | S2: =IF(Foglio1!$C$15 <> "", 8.314472*Foglio1!$C$15*Foglio2!R2, NA()) ->  | T2: =IF(Foglio1!$H$15 <> "", Foglio1!$H$15 + S2*10^-3, NA()) -> 
A3: 0.001 | B3: =LN(A3) -> -6.907755279 | C3: =IF(Foglio1!$C$11 <> "", 8.314472*Foglio1!$C$11*Foglio2!B3, NA()) -> -17230.30135 | D3: =IF(Foglio1!$H$11 <> "", Foglio1!$H$11 + C3*10^-3, NA()) -> -107.2303014 | E3: 0.001 | F3: =LN(E3) -> -6.907755279 | G3: =IF(Foglio1!$C$12 <> "", 8.314472*Foglio1!$C$12*Foglio2!F3, NA()) ->  | H3: =IF(Foglio1!$H$12 <> "", Foglio1!$H$12 + G3*10^-3, NA()) ->  | I3: 0.001 | J3: =LN(I3) -> -6.907755279 | K3: =IF(Foglio1!$C$13 <> "", 8.314472*Foglio1!$C$13*Foglio2!J3, NA()) ->  | L3: =IF(Foglio1!$H$13 <> "", Foglio1!$H$13 + K3*10^-3, NA()) ->  | M3: 0.001 | N3: =LN(M3) -> -6.907755279 | O3: =IF(Foglio1!$C$14 <> "", 8.314472*Foglio1!$C$14*Foglio2!N3, NA()) ->  | P3: =IF(Foglio1!$H$14 <> "", Foglio1!$H$14 + O3*10^-3, NA()) ->  | Q3: 0.001 | R3: =LN(Q3) -> -6.907755279 | S3: =IF(Foglio1!$C$15 <> "", 8.314472*Foglio1!$C$15*Foglio2!R3, NA()) ->  | T3: =IF(Foglio1!$H$15 <> "", Foglio1!$H$15 + S3*10^-3, NA()) -> 
A4: 0.01 | B4: -4.605170186 | C4: =IF(Foglio1!$C$11 <> "", 8.314472*Foglio1!$C$11*Foglio2!B4, NA()) -> -11486.86757 | D4: =IF(Foglio1!$H$11 <> "", Foglio1!$H$11 + C4*10^-3, NA()) -> -101.4868676 | E4: 0.01 | F4: -4.605170186 | G4: =IF(Foglio1!$C$12 <> "", 8.314472*Foglio1!$C$12*Foglio2!F4, NA()) ->  | H4: =IF(Foglio1!$H$12 <> "", Foglio1!$H$12 + G4*10^-3, NA()) ->  | I4: 0.01 | J4: -4.605170186 | K4: =IF(Foglio1!$C$13 <> "", 8.314472*Foglio1!$C$13*Foglio2!J4, NA()) ->  | L4: =IF(Foglio1!$H$13 <> "", Foglio1!$H$13 + K4*10^-3, NA()) ->  | M4: 0.01 | N4: -4.605170186 | O4: =IF(Foglio1!$C$14 <> "", 8.314472*Foglio1!$C$14*Foglio2!N4, NA()) ->  | P4: =IF(Foglio1!$H$14 <> "", Foglio1!$H$14 + O4*10^-3, NA()) ->  | Q4: 0.01 | R4: -4.605170186 | S4: =IF(Foglio1!$C$15 <> "", 8.314472*Foglio1!$C$15*Foglio2!R4, NA()) ->  | T4: =IF(Foglio1!$H$15 <> "", Foglio1!$H$15 + S4*10^-3, NA()) -> 
A5: 0.1 | B5: -2.302585093 | C5: =IF(Foglio1!$C$11 <> "", 8.314472*Foglio1!$C$11*Foglio2!B5, NA()) -> -5743.433785 | D5: =IF(Foglio1!$H$11 <> "", Foglio1!$H$11 + C5*10^-3, NA()) -> -95.74343378 | E5: 0.1 | F5: -2.302585093 | G5: =IF(Foglio1!$C$12 <> "", 8.314472*Foglio1!$C$12*Foglio2!F5, NA()) ->  | H5: =IF(Foglio1!$H$12 <> "", Foglio1!$H$12 + G5*10^-3, NA()) ->  | I5: 0.1 | J5: -2.302585093 | K5: =IF(Foglio1!$C$13 <> "", 8.314472*Foglio1!$C$13*Foglio2!J5, NA()) ->  | L5: =IF(Foglio1!$H$13 <> "", Foglio1!$H$13 + K5*10^-3, NA()) ->  | M5: 0.1 | N5: -2.302585093 | O5: =IF(Foglio1!$C$14 <> "", 8.314472*Foglio1!$C$14*Foglio2!N5, NA()) ->  | P5: =IF(Foglio1!$H$14 <> "", Foglio1!$H$14 + O5*10^-3, NA()) ->  | Q5: 0.1 | R5: -2.302585093 | S5: =IF(Foglio1!$C$15 <> "", 8.314472*Foglio1!$C$15*Foglio2!R5, NA()) ->  | T5: =IF(Foglio1!$H$15 <> "", Foglio1!$H$15 + S5*10^-3, NA()) -> 
A6: 1 | B6: 0 | C6: =IF(Foglio1!$C$11 <> "", 8.314472*Foglio1!$C$11*Foglio2!B6, NA()) -> 0 | D6: =IF(Foglio1!$H$11 <> "", Foglio1!$H$11 + C6*10^-3, NA()) -> -90 | E6: 1 | F6: 0 | G6: =IF(Foglio1!$C$12 <> "", 8.314472*Foglio1!$C$12*Foglio2!F6, NA()) ->  | H6: =IF(Foglio1!$H$12 <> "", Foglio1!$H$12 + G6*10^-3, NA()) ->  | I6: 1 | J6: 0 | K6: =IF(Foglio1!$C$13 <> "", 8.314472*Foglio1!$C$13*Foglio2!J6, NA()) ->  | L6: =IF(Foglio1!$H$13 <> "", Foglio1!$H$13 + K6*10^-3, NA()) ->  | M6: 1 | N6: 0 | O6: =IF(Foglio1!$C$14 <> "", 8.314472*Foglio1!$C$14*Foglio2!N6, NA()) ->  | P6: =IF(Foglio1!$H$14 <> "", Foglio1!$H$14 + O6*10^-3, NA()) ->  | Q6: 1 | R6: 0 | S6: =IF(Foglio1!$C$15 <> "", 8.314472*Foglio1!$C$15*Foglio2!R6, NA()) ->  | T6: =IF(Foglio1!$H$15 <> "", Foglio1!$H$15 + S6*10^-3, NA()) -> 
A7: 10 | B7: 2.302585093 | C7: =IF(Foglio1!$C$11 <> "", 8.314472*Foglio1!$C$11*Foglio2!B7, NA()) -> 5743.433785 | D7: =IF(Foglio1!$H$11 <> "", Foglio1!$H$11 + C7*10^-3, NA()) -> -84.25656622 | E7: 10 | F7: 2.302585093 | G7: =IF(Foglio1!$C$12 <> "", 8.314472*Foglio1!$C$12*Foglio2!F7, NA()) ->  | H7: =IF(Foglio1!$H$12 <> "", Foglio1!$H$12 + G7*10^-3, NA()) ->  | I7: 10 | J7: 2.302585093 | K7: =IF(Foglio1!$C$13 <> "", 8.314472*Foglio1!$C$13*Foglio2!J7, NA()) ->  | L7: =IF(Foglio1!$H$13 <> "", Foglio1!$H$13 + K7*10^-3, NA()) ->  | M7: 10 | N7: 2.302585093 | O7: =IF(Foglio1!$C$14 <> "", 8.314472*Foglio1!$C$14*Foglio2!N7, NA()) ->  | P7: =IF(Foglio1!$H$14 <> "", Foglio1!$H$14 + O7*10^-3, NA()) ->  | Q7: 10 | R7: 2.302585093 | S7: =IF(Foglio1!$C$15 <> "", 8.314472*Foglio1!$C$15*Foglio2!R7, NA()) ->  | T7: =IF(Foglio1!$H$15 <> "", Foglio1!$H$15 + S7*10^-3, NA()) -> 
A8: 19 | B8: 2.944438979 | C8: =IF(Foglio1!$C$11 <> "", 8.314472*Foglio1!$C$11*Foglio2!B8, NA()) -> 7344.436634 | D8: =IF(Foglio1!$H$11 <> "", Foglio1!$H$11 + C8*10^-3, NA()) -> -82.65556337 | E8: 19 | F8: 2.944438979 | G8: =IF(Foglio1!$C$12 <> "", 8.314472*Foglio1!$C$12*Foglio2!F8, NA()) ->  | H8: =IF(Foglio1!$H$12 <> "", Foglio1!$H$12 + G8*10^-3, NA()) ->  | I8: 19 | J8: 2.944438979 | K8: =IF(Foglio1!$C$13 <> "", 8.314472*Foglio1!$C$13*Foglio2!J8, NA()) ->  | L8: =IF(Foglio1!$H$13 <> "", Foglio1!$H$13 + K8*10^-3, NA()) ->  | M8: 19 | N8: 2.944438979 | O8: =IF(Foglio1!$C$14 <> "", 8.314472*Foglio1!$C$14*Foglio2!N8, NA()) ->  | P8: =IF(Foglio1!$H$14 <> "", Foglio1!$H$14 + O8*10^-3, NA()) ->  | Q8: 19 | R8: 2.944438979 | S8: =IF(Foglio1!$C$15 <> "", 8.314472*Foglio1!$C$15*Foglio2!R8, NA()) ->  | T8: =IF(Foglio1!$H$15 <> "", Foglio1!$H$15 + S8*10^-3, NA()) -> 
A9: 28 | B9: 3.33220451 | C9: =IF(Foglio1!$C$11 <> "", 8.314472*Foglio1!$C$11*Foglio2!B9, NA()) -> 8311.656329 | D9: =IF(Foglio1!$H$11 <> "", Foglio1!$H$11 + C9*10^-3, NA()) -> -81.68834367 | E9: 28 | F9: 3.33220451 | G9: =IF(Foglio1!$C$12 <> "", 8.314472*Foglio1!$C$12*Foglio2!F9, NA()) ->  | H9: =IF(Foglio1!$H$12 <> "", Foglio1!$H$12 + G9*10^-3, NA()) ->  | I9: 28 | J9: 3.33220451 | K9: =IF(Foglio1!$C$13 <> "", 8.314472*Foglio1!$C$13*Foglio2!J9, NA()) ->  | L9: =IF(Foglio1!$H$13 <> "", Foglio1!$H$13 + K9*10^-3, NA()) ->  | M9: 28 | N9: 3.33220451 | O9: =IF(Foglio1!$C$14 <> "", 8.314472*Foglio1!$C$14*Foglio2!N9, NA()) ->  | P9: =IF(Foglio1!$H$14 <> "", Foglio1!$H$14 + O9*10^-3, NA()) ->  | Q9: 28 | R9: 3.33220451 | S9: =IF(Foglio1!$C$15 <> "", 8.314472*Foglio1!$C$15*Foglio2!R9, NA()) ->  | T9: =IF(Foglio1!$H$15 <> "", Foglio1!$H$15 + S9*10^-3, NA()) -> 
A10: 37 | B10: 3.610917913 | C10: =IF(Foglio1!$C$11 <> "", 8.314472*Foglio1!$C$11*Foglio2!B10, NA()) -> 9006.862764 | D10: =IF(Foglio1!$H$11 <> "", Foglio1!$H$11 + C10*10^-3, NA()) -> -80.99313724 | E10: 37 | F10: 3.610917913 | G10: =IF(Foglio1!$C$12 <> "", 8.314472*Foglio1!$C$12*Foglio2!F10, NA()) ->  | H10: =IF(Foglio1!$H$12 <> "", Foglio1!$H$12 + G10*10^-3, NA()) ->  | I10: 37 | J10: 3.610917913 | K10: =IF(Foglio1!$C$13 <> "", 8.314472*Foglio1!$C$13*Foglio2!J10, NA()) ->  | L10: =IF(Foglio1!$H$13 <> "", Foglio1!$H$13 + K10*10^-3, NA()) ->  | M10: 37 | N10: 3.610917913 | O10: =IF(Foglio1!$C$14 <> "", 8.314472*Foglio1!$C$14*Foglio2!N10, NA()) ->  | P10: =IF(Foglio1!$H$14 <> "", Foglio1!$H$14 + O10*10^-3, NA()) ->  | Q10: 37 | R10: 3.610917913 | S10: =IF(Foglio1!$C$15 <> "", 8.314472*Foglio1!$C$15*Foglio2!R10, NA()) ->  | T10: =IF(Foglio1!$H$15 <> "", Foglio1!$H$15 + S10*10^-3, NA()) -> 
A11: 46 | B11: 3.828641396 | C11: =IF(Foglio1!$C$11 <> "", 8.314472*Foglio1!$C$11*Foglio2!B11, NA()) -> 9549.939507 | D11: =IF(Foglio1!$H$11 <> "", Foglio1!$H$11 + C11*10^-3, NA()) -> -80.45006049 | E11: 46 | F11: 3.828641396 | G11: =IF(Foglio1!$C$12 <> "", 8.314472*Foglio1!$C$12*Foglio2!F11, NA()) ->  | H11: =IF(Foglio1!$H$12 <> "", Foglio1!$H$12 + G11*10^-3, NA()) ->  | I11: 46 | J11: 3.828641396 | K11: =IF(Foglio1!$C$13 <> "", 8.314472*Foglio1!$C$13*Foglio2!J11, NA()) ->  | L11: =IF(Foglio1!$H$13 <> "", Foglio1!$H$13 + K11*10^-3, NA()) ->  | M11: 46 | N11: 3.828641396 | O11: =IF(Foglio1!$C$14 <> "", 8.314472*Foglio1!$C$14*Foglio2!N11, NA()) ->  | P11: =IF(Foglio1!$H$14 <> "", Foglio1!$H$14 + O11*10^-3, NA()) ->  | Q11: 46 | R11: 3.828641396 | S11: =IF(Foglio1!$C$15 <> "", 8.314472*Foglio1!$C$15*Foglio2!R11, NA()) ->  | T11: =IF(Foglio1!$H$15 <> "", Foglio1!$H$15 + S11*10^-3, NA()) -> 
A12: 55 | B12: 4.007333185 | C12: =IF(Foglio1!$C$11 <> "", 8.314472*Foglio1!$C$11*Foglio2!B12, NA()) -> 9995.657869 | D12: =IF(Foglio1!$H$11 <> "", Foglio1!$H$11 + C12*10^-3, NA()) -> -80.00434213 | E12: 55 | F12: 4.007333185 | G12: =IF(Foglio1!$C$12 <> "", 8.314472*Foglio1!$C$12*Foglio2!F12, NA()) ->  | H12: =IF(Foglio1!$H$12 <> "", Foglio1!$H$12 + G12*10^-3, NA()) ->  | I12: 55 | J12: 4.007333185 | K12: =IF(Foglio1!$C$13 <> "", 8.314472*Foglio1!$C$13*Foglio2!J12, NA()) ->  | L12: =IF(Foglio1!$H$13 <> "", Foglio1!$H$13 + K12*10^-3, NA()) ->  | M12: 55 | N12: 4.007333185 | O12: =IF(Foglio1!$C$14 <> "", 8.314472*Foglio1!$C$14*Foglio2!N12, NA()) ->  | P12: =IF(Foglio1!$H$14 <> "", Foglio1!$H$14 + O12*10^-3, NA()) ->  | Q12: 55 | R12: 4.007333185 | S12: =IF(Foglio1!$C$15 <> "", 8.314472*Foglio1!$C$15*Foglio2!R12, NA()) ->  | T12: =IF(Foglio1!$H$15 <> "", Foglio1!$H$15 + S12*10^-3, NA()) -> 
A13: 64 | B13: 4.158883083 | C13: =IF(Foglio1!$C$11 <> "", 8.314472*Foglio1!$C$11*Foglio2!B13, NA()) -> 10373.67508 | D13: =IF(Foglio1!$H$11 <> "", Foglio1!$H$11 + C13*10^-3, NA()) -> -79.62632492 | E13: 64 | F13: 4.158883083 | G13: =IF(Foglio1!$C$12 <> "", 8.314472*Foglio1!$C$12*Foglio2!F13, NA()) ->  | H13: =IF(Foglio1!$H$12 <> "", Foglio1!$H$12 + G13*10^-3, NA()) ->  | I13: 64 | J13: 4.158883083 | K13: =IF(Foglio1!$C$13 <> "", 8.314472*Foglio1!$C$13*Foglio2!J13, NA()) ->  | L13: =IF(Foglio1!$H$13 <> "", Foglio1!$H$13 + K13*10^-3, NA()) ->  | M13: 64 | N13: 4.158883083 | O13: =IF(Foglio1!$C$14 <> "", 8.314472*Foglio1!$C$14*Foglio2!N13, NA()) ->  | P13: =IF(Foglio1!$H$14 <> "", Foglio1!$H$14 + O13*10^-3, NA()) ->  | Q13: 64 | R13: 4.158883083 | S13: =IF(Foglio1!$C$15 <> "", 8.314472*Foglio1!$C$15*Foglio2!R13, NA()) ->  | T13: =IF(Foglio1!$H$15 <> "", Foglio1!$H$15 + S13*10^-3, NA()) -> 
A14: 73 | B14: 4.290459441 | C14: =IF(Foglio1!$C$11 <> "", 8.314472*Foglio1!$C$11*Foglio2!B14, NA()) -> 10701.87147 | D14: =IF(Foglio1!$H$11 <> "", Foglio1!$H$11 + C14*10^-3, NA()) -> -79.29812853 | E14: 73 | F14: 4.290459441 | G14: =IF(Foglio1!$C$12 <> "", 8.314472*Foglio1!$C$12*Foglio2!F14, NA()) ->  | H14: =IF(Foglio1!$H$12 <> "", Foglio1!$H$12 + G14*10^-3, NA()) ->  | I14: 73 | J14: 4.290459441 | K14: =IF(Foglio1!$C$13 <> "", 8.314472*Foglio1!$C$13*Foglio2!J14, NA()) ->  | L14: =IF(Foglio1!$H$13 <> "", Foglio1!$H$13 + K14*10^-3, NA()) ->  | M14: 73 | N14: 4.290459441 | O14: =IF(Foglio1!$C$14 <> "", 8.314472*Foglio1!$C$14*Foglio2!N14, NA()) ->  | P14: =IF(Foglio1!$H$14 <> "", Foglio1!$H$14 + O14*10^-3, NA()) ->  | Q14: 73 | R14: 4.290459441 | S14: =IF(Foglio1!$C$15 <> "", 8.314472*Foglio1!$C$15*Foglio2!R14, NA()) ->  | T14: =IF(Foglio1!$H$15 <> "", Foglio1!$H$15 + S14*10^-3, NA()) -> 
A15: 82 | B15: 4.406719247 | C15: =IF(Foglio1!$C$11 <> "", 8.314472*Foglio1!$C$11*Foglio2!B15, NA()) -> 10991.86314 | D15: =IF(Foglio1!$H$11 <> "", Foglio1!$H$11 + C15*10^-3, NA()) -> -79.00813686 | E15: 82 | F15: 4.406719247 | G15: =IF(Foglio1!$C$12 <> "", 8.314472*Foglio1!$C$12*Foglio2!F15, NA()) ->  | H15: =IF(Foglio1!$H$12 <> "", Foglio1!$H$12 + G15*10^-3, NA()) ->  | I15: 82 | J15: 4.406719247 | K15: =IF(Foglio1!$C$13 <> "", 8.314472*Foglio1!$C$13*Foglio2!J15, NA()) ->  | L15: =IF(Foglio1!$H$13 <> "", Foglio1!$H$13 + K15*10^-3, NA()) ->  | M15: 82 | N15: 4.406719247 | O15: =IF(Foglio1!$C$14 <> "", 8.314472*Foglio1!$C$14*Foglio2!N15, NA()) ->  | P15: =IF(Foglio1!$H$14 <> "", Foglio1!$H$14 + O15*10^-3, NA()) ->  | Q15: 82 | R15: 4.406719247 | S15: =IF(Foglio1!$C$15 <> "", 8.314472*Foglio1!$C$15*Foglio2!R15, NA()) ->  | T15: =IF(Foglio1!$H$15 <> "", Foglio1!$H$15 + S15*10^-3, NA()) -> 
A16: 91 | B16: 4.510859507 | C16: =IF(Foglio1!$C$11 <> "", 8.314472*Foglio1!$C$11*Foglio2!B16, NA()) -> 11251.62452 | D16: =IF(Foglio1!$H$11 <> "", Foglio1!$H$11 + C16*10^-3, NA()) -> -78.74837548 | E16: 91 | F16: 4.510859507 | G16: =IF(Foglio1!$C$12 <> "", 8.314472*Foglio1!$C$12*Foglio2!F16, NA()) ->  | H16: =IF(Foglio1!$H$12 <> "", Foglio1!$H$12 + G16*10^-3, NA()) ->  | I16: 91 | J16: 4.510859507 | K16: =IF(Foglio1!$C$13 <> "", 8.314472*Foglio1!$C$13*Foglio2!J16, NA()) ->  | L16: =IF(Foglio1!$H$13 <> "", Foglio1!$H$13 + K16*10^-3, NA()) ->  | M16: 91 | N16: 4.510859507 | O16: =IF(Foglio1!$C$14 <> "", 8.314472*Foglio1!$C$14*Foglio2!N16, NA()) ->  | P16: =IF(Foglio1!$H$14 <> "", Foglio1!$H$14 + O16*10^-3, NA()) ->  | Q16: 91 | R16: 4.510859507 | S16: =IF(Foglio1!$C$15 <> "", 8.314472*Foglio1!$C$15*Foglio2!R16, NA()) ->  | T16: =IF(Foglio1!$H$15 <> "", Foglio1!$H$15 + S16*10^-3, NA()) -> 
A17: 100 | B17: 4.605170186 | C17: =IF(Foglio1!$C$11 <> "", 8.314472*Foglio1!$C$11*Foglio2!B17, NA()) -> 11486.86757 | D17: =IF(Foglio1!$H$11 <> "", Foglio1!$H$11 + C17*10^-3, NA()) -> -78.51313243 | E17: 100 | F17: 4.605170186 | G17: =IF(Foglio1!$C$12 <> "", 8.314472*Foglio1!$C$12*Foglio2!F17, NA()) ->  | H17: =IF(Foglio1!$H$12 <> "", Foglio1!$H$12 + G17*10^-3, NA()) ->  | I17: 100 | J17: 4.605170186 | K17: =IF(Foglio1!$C$13 <> "", 8.314472*Foglio1!$C$13*Foglio2!J17, NA()) ->  | L17: =IF(Foglio1!$H$13 <> "", Foglio1!$H$13 + K17*10^-3, NA()) ->  | M17: 100 | N17: 4.605170186 | O17: =IF(Foglio1!$C$14 <> "", 8.314472*Foglio1!$C$14*Foglio2!N17, NA()) ->  | P17: =IF(Foglio1!$H$14 <> "", Foglio1!$H$14 + O17*10^-3, NA()) ->  | Q17: 100 | R17: 4.605170186 | S17: =IF(Foglio1!$C$15 <> "", 8.314472*Foglio1!$C$15*Foglio2!R17, NA()) ->  | T17: =IF(Foglio1!$H$15 <> "", Foglio1!$H$15 + S17*10^-3, NA()) -> 
A18: 109 | B18: 4.691347882 | C18: =IF(Foglio1!$C$11 <> "", 8.314472*Foglio1!$C$11*Foglio2!B18, NA()) -> 11701.82418 | D18: =IF(Foglio1!$H$11 <> "", Foglio1!$H$11 + C18*10^-3, NA()) -> -78.29817582 | E18: 109 | F18: 4.691347882 | G18: =IF(Foglio1!$C$12 <> "", 8.314472*Foglio1!$C$12*Foglio2!F18, NA()) ->  | H18: =IF(Foglio1!$H$12 <> "", Foglio1!$H$12 + G18*10^-3, NA()) ->  | I18: 109 | J18: 4.691347882 | K18: =IF(Foglio1!$C$13 <> "", 8.314472*Foglio1!$C$13*Foglio2!J18, NA()) ->  | L18: =IF(Foglio1!$H$13 <> "", Foglio1!$H$13 + K18*10^-3, NA()) ->  | M18: 109 | N18: 4.691347882 | O18: =IF(Foglio1!$C$14 <> "", 8.314472*Foglio1!$C$14*Foglio2!N18, NA()) ->  | P18: =IF(Foglio1!$H$14 <> "", Foglio1!$H$14 + O18*10^-3, NA()) ->  | Q18: 109 | R18: 4.691347882 | S18: =IF(Foglio1!$C$15 <> "", 8.314472*Foglio1!$C$15*Foglio2!R18, NA()) ->  | T18: =IF(Foglio1!$H$15 <> "", Foglio1!$H$15 + S18*10^-3, NA()) -> 
A19: 118 | B19: 4.770684624 | C19: =IF(Foglio1!$C$11 <> "", 8.314472*Foglio1!$C$11*Foglio2!B19, NA()) -> 11899.71712 | D19: =IF(Foglio1!$H$11 <> "", Foglio1!$H$11 + C19*10^-3, NA()) -> -78.10028288 | E19: 118 | F19: 4.770684624 | G19: =IF(Foglio1!$C$12 <> "", 8.314472*Foglio1!$C$12*Foglio2!F19, NA()) ->  | H19: =IF(Foglio1!$H$12 <> "", Foglio1!$H$12 + G19*10^-3, NA()) ->  | I19: 118 | J19: 4.770684624 | K19: =IF(Foglio1!$C$13 <> "", 8.314472*Foglio1!$C$13*Foglio2!J19, NA()) ->  | L19: =IF(Foglio1!$H$13 <> "", Foglio1!$H$13 + K19*10^-3, NA()) ->  | M19: 118 | N19: 4.770684624 | O19: =IF(Foglio1!$C$14 <> "", 8.314472*Foglio1!$C$14*Foglio2!N19, NA()) ->  | P19: =IF(Foglio1!$H$14 <> "", Foglio1!$H$14 + O19*10^-3, NA()) ->  | Q19: 118 | R19: 4.770684624 | S19: =IF(Foglio1!$C$15 <> "", 8.314472*Foglio1!$C$15*Foglio2!R19, NA()) ->  | T19: =IF(Foglio1!$H$15 <> "", Foglio1!$H$15 + S19*10^-3, NA()) -> 
A20: 127 | B20: 4.844187086 | C20: =IF(Foglio1!$C$11 <> "", 8.314472*Foglio1!$C$11*Foglio2!B20, NA()) -> 12083.05737 | D20: =IF(Foglio1!$H$11 <> "", Foglio1!$H$11 + C20*10^-3, NA()) -> -77.91694263 | E20: 127 | F20: 4.844187086 | G20: =IF(Foglio1!$C$12 <> "", 8.314472*Foglio1!$C$12*Foglio2!F20, NA()) ->  | H20: =IF(Foglio1!$H$12 <> "", Foglio1!$H$12 + G20*10^-3, NA()) ->  | I20: 127 | J20: 4.844187086 | K20: =IF(Foglio1!$C$13 <> "", 8.314472*Foglio1!$C$13*Foglio2!J20, NA()) ->  | L20: =IF(Foglio1!$H$13 <> "", Foglio1!$H$13 + K20*10^-3, NA()) ->  | M20: 127 | N20: 4.844187086 | O20: =IF(Foglio1!$C$14 <> "", 8.314472*Foglio1!$C$14*Foglio2!N20, NA()) ->  | P20: =IF(Foglio1!$H$14 <> "", Foglio1!$H$14 + O20*10^-3, NA()) ->  | Q20: 127 | R20: 4.844187086 | S20: =IF(Foglio1!$C$15 <> "", 8.314472*Foglio1!$C$15*Foglio2!R20, NA()) ->  | T20: =IF(Foglio1!$H$15 <> "", Foglio1!$H$15 + S20*10^-3, NA()) -> 
A21: 136 | B21: 4.912654886 | C21: =IF(Foglio1!$C$11 <> "", 8.314472*Foglio1!$C$11*Foglio2!B21, NA()) -> 12253.83945 | D21: =IF(Foglio1!$H$11 <> "", Foglio1!$H$11 + C21*10^-3, NA()) -> -77.74616055 | E21: 136 | F21: 4.912654886 | G21: =IF(Foglio1!$C$12 <> "", 8.314472*Foglio1!$C$12*Foglio2!F21, NA()) ->  | H21: =IF(Foglio1!$H$12 <> "", Foglio1!$H$12 + G21*10^-3, NA()) ->  | I21: 136 | J21: 4.912654886 | K21: =IF(Foglio1!$C$13 <> "", 8.314472*Foglio1!$C$13*Foglio2!J21, NA()) ->  | L21: =IF(Foglio1!$H$13 <> "", Foglio1!$H$13 + K21*10^-3, NA()) ->  | M21: 136 | N21: 4.912654886 | O21: =IF(Foglio1!$C$14 <> "", 8.314472*Foglio1!$C$14*Foglio2!N21, NA()) ->  | P21: =IF(Foglio1!$H$14 <> "", Foglio1!$H$14 + O21*10^-3, NA()) ->  | Q21: 136 | R21: 4.912654886 | S21: =IF(Foglio1!$C$15 <> "", 8.314472*Foglio1!$C$15*Foglio2!R21, NA()) ->  | T21: =IF(Foglio1!$H$15 <> "", Foglio1!$H$15 + S21*10^-3, NA()) -> 
A22: 145 | B22: 4.976733742 | C22: =IF(Foglio1!$C$11 <> "", 8.314472*Foglio1!$C$11*Foglio2!B22, NA()) -> 12413.67401 | D22: =IF(Foglio1!$H$11 <> "", Foglio1!$H$11 + C22*10^-3, NA()) -> -77.58632599 | E22: 145 | F22: 4.976733742 | G22: =IF(Foglio1!$C$12 <> "", 8.314472*Foglio1!$C$12*Foglio2!F22, NA()) ->  | H22: =IF(Foglio1!$H$12 <> "", Foglio1!$H$12 + G22*10^-3, NA()) ->  | I22: 145 | J22: 4.976733742 | K22: =IF(Foglio1!$C$13 <> "", 8.314472*Foglio1!$C$13*Foglio2!J22, NA()) ->  | L22: =IF(Foglio1!$H$13 <> "", Foglio1!$H$13 + K22*10^-3, NA()) ->  | M22: 145 | N22: 4.976733742 | O22: =IF(Foglio1!$C$14 <> "", 8.314472*Foglio1!$C$14*Foglio2!N22, NA()) ->  | P22: =IF(Foglio1!$H$14 <> "", Foglio1!$H$14 + O22*10^-3, NA()) ->  | Q22: 145 | R22: 4.976733742 | S22: =IF(Foglio1!$C$15 <> "", 8.314472*Foglio1!$C$15*Foglio2!R22, NA()) ->  | T22: =IF(Foglio1!$H$15 <> "", Foglio1!$H$15 + S22*10^-3, NA()) -> 
A23: 154 | B23: 5.036952602 | C23: =IF(Foglio1!$C$11 <> "", 8.314472*Foglio1!$C$11*Foglio2!B23, NA()) -> 12563.88041 | D23: =IF(Foglio1!$H$11 <> "", Foglio1!$H$11 + C23*10^-3, NA()) -> -77.43611959 | E23: 154 | F23: 5.036952602 | G23: =IF(Foglio1!$C$12 <> "", 8.314472*Foglio1!$C$12*Foglio2!F23, NA()) ->  | H23: =IF(Foglio1!$H$12 <> "", Foglio1!$H$12 + G23*10^-3, NA()) ->  | I23: 154 | J23: 5.036952602 | K23: =IF(Foglio1!$C$13 <> "", 8.314472*Foglio1!$C$13*Foglio2!J23, NA()) ->  | L23: =IF(Foglio1!$H$13 <> "", Foglio1!$H$13 + K23*10^-3, NA()) ->  | M23: 154 | N23: 5.036952602 | O23: =IF(Foglio1!$C$14 <> "", 8.314472*Foglio1!$C$14*Foglio2!N23, NA()) ->  | P23: =IF(Foglio1!$H$14 <> "", Foglio1!$H$14 + O23*10^-3, NA()) ->  | Q23: 154 | R23: 5.036952602 | S23: =IF(Foglio1!$C$15 <> "", 8.314472*Foglio1!$C$15*Foglio2!R23, NA()) ->  | T23: =IF(Foglio1!$H$15 <> "", Foglio1!$H$15 + S23*10^-3, NA()) -> 
A24: 163 | B24: 5.093750201 | C24: =IF(Foglio1!$C$11 <> "", 8.314472*Foglio1!$C$11*Foglio2!B24, NA()) -> 12705.55303 | D24: =IF(Foglio1!$H$11 <> "", Foglio1!$H$11 + C24*10^-3, NA()) -> -77.29444697 | E24: 163 | F24: 5.093750201 | G24: =IF(Foglio1!$C$12 <> "", 8.314472*Foglio1!$C$12*Foglio2!F24, NA()) ->  | H24: =IF(Foglio1!$H$12 <> "", Foglio1!$H$12 + G24*10^-3, NA()) ->  | I24: 163 | J24: 5.093750201 | K24: =IF(Foglio1!$C$13 <> "", 8.314472*Foglio1!$C$13*Foglio2!J24, NA()) ->  | L24: =IF(Foglio1!$H$13 <> "", Foglio1!$H$13 + K24*10^-3, NA()) ->  | M24: 163 | N24: 5.093750201 | O24: =IF(Foglio1!$C$14 <> "", 8.314472*Foglio1!$C$14*Foglio2!N24, NA()) ->  | P24: =IF(Foglio1!$H$14 <> "", Foglio1!$H$14 + O24*10^-3, NA()) ->  | Q24: 163 | R24: 5.093750201 | S24: =IF(Foglio1!$C$15 <> "", 8.314472*Foglio1!$C$15*Foglio2!R24, NA()) ->  | T24: =IF(Foglio1!$H$15 <> "", Foglio1!$H$15 + S24*10^-3, NA()) -> 
A25: 172 | B25: 5.147494477 | C25: =IF(Foglio1!$C$11 <> "", 8.314472*Foglio1!$C$11*Foglio2!B25, NA()) -> 12839.60961 | D25: =IF(Foglio1!$H$11 <> "", Foglio1!$H$11 + C25*10^-3, NA()) -> -77.16039039 | E25: 172 | F25: 5.147494477 | G25: =IF(Foglio1!$C$12 <> "", 8.314472*Foglio1!$C$12*Foglio2!F25, NA()) ->  | H25: =IF(Foglio1!$H$12 <> "", Foglio1!$H$12 + G25*10^-3, NA()) ->  | I25: 172 | J25: 5.147494477 | K25: =IF(Foglio1!$C$13 <> "", 8.314472*Foglio1!$C$13*Foglio2!J25, NA()) ->  | L25: =IF(Foglio1!$H$13 <> "", Foglio1!$H$13 + K25*10^-3, NA()) ->  | M25: 172 | N25: 5.147494477 | O25: =IF(Foglio1!$C$14 <> "", 8.314472*Foglio1!$C$14*Foglio2!N25, NA()) ->  | P25: =IF(Foglio1!$H$14 <> "", Foglio1!$H$14 + O25*10^-3, NA()) ->  | Q25: 172 | R25: 5.147494477 | S25: =IF(Foglio1!$C$15 <> "", 8.314472*Foglio1!$C$15*Foglio2!R25, NA()) ->  | T25: =IF(Foglio1!$H$15 <> "", Foglio1!$H$15 + S25*10^-3, NA()) -> 
A26: 181 | B26: 5.198497031 | C26: =IF(Foglio1!$C$11 <> "", 8.314472*Foglio1!$C$11*Foglio2!B26, NA()) -> 12966.8274 | D26: =IF(Foglio1!$H$11 <> "", Foglio1!$H$11 + C26*10^-3, NA()) -> -77.0331726 | E26: 181 | F26: 5.198497031 | G26: =IF(Foglio1!$C$12 <> "", 8.314472*Foglio1!$C$12*Foglio2!F26, NA()) ->  | H26: =IF(Foglio1!$H$12 <> "", Foglio1!$H$12 + G26*10^-3, NA()) ->  | I26: 181 | J26: 5.198497031 | K26: =IF(Foglio1!$C$13 <> "", 8.314472*Foglio1!$C$13*Foglio2!J26, NA()) ->  | L26: =IF(Foglio1!$H$13 <> "", Foglio1!$H$13 + K26*10^-3, NA()) ->  | M26: 181 | N26: 5.198497031 | O26: =IF(Foglio1!$C$14 <> "", 8.314472*Foglio1!$C$14*Foglio2!N26, NA()) ->  | P26: =IF(Foglio1!$H$14 <> "", Foglio1!$H$14 + O26*10^-3, NA()) ->  | Q26: 181 | R26: 5.198497031 | S26: =IF(Foglio1!$C$15 <> "", 8.314472*Foglio1!$C$15*Foglio2!R26, NA()) ->  | T26: =IF(Foglio1!$H$15 <> "", Foglio1!$H$15 + S26*10^-3, NA()) -> 
A27: 190 | B27: 5.247024072 | C27: =IF(Foglio1!$C$11 <> "", 8.314472*Foglio1!$C$11*Foglio2!B27, NA()) -> 13087.87042 | D27: =IF(Foglio1!$H$11 <> "", Foglio1!$H$11 + C27*10^-3, NA()) -> -76.91212958 | E27: 190 | F27: 5.247024072 | G27: =IF(Foglio1!$C$12 <> "", 8.314472*Foglio1!$C$12*Foglio2!F27, NA()) ->  | H27: =IF(Foglio1!$H$12 <> "", Foglio1!$H$12 + G27*10^-3, NA()) ->  | I27: 190 | J27: 5.247024072 | K27: =IF(Foglio1!$C$13 <> "", 8.314472*Foglio1!$C$13*Foglio2!J27, NA()) ->  | L27: =IF(Foglio1!$H$13 <> "", Foglio1!$H$13 + K27*10^-3, NA()) ->  | M27: 190 | N27: 5.247024072 | O27: =IF(Foglio1!$C$14 <> "", 8.314472*Foglio1!$C$14*Foglio2!N27, NA()) ->  | P27: =IF(Foglio1!$H$14 <> "", Foglio1!$H$14 + O27*10^-3, NA()) ->  | Q27: 190 | R27: 5.247024072 | S27: =IF(Foglio1!$C$15 <> "", 8.314472*Foglio1!$C$15*Foglio2!R27, NA()) ->  | T27: =IF(Foglio1!$H$15 <> "", Foglio1!$H$15 + S27*10^-3, NA()) -> 
A28: 199 | B28: 5.293304825 | C28: =IF(Foglio1!$C$11 <> "", 8.314472*Foglio1!$C$11*Foglio2!B28, NA()) -> 13203.31043 | D28: =IF(Foglio1!$H$11 <> "", Foglio1!$H$11 + C28*10^-3, NA()) -> -76.79668957 | E28: 199 | F28: 5.293304825 | G28: =IF(Foglio1!$C$12 <> "", 8.314472*Foglio1!$C$12*Foglio2!F28, NA()) ->  | H28: =IF(Foglio1!$H$12 <> "", Foglio1!$H$12 + G28*10^-3, NA()) ->  | I28: 199 | J28: 5.293304825 | K28: =IF(Foglio1!$C$13 <> "", 8.314472*Foglio1!$C$13*Foglio2!J28, NA()) ->  | L28: =IF(Foglio1!$H$13 <> "", Foglio1!$H$13 + K28*10^-3, NA()) ->  | M28: 199 | N28: 5.293304825 | O28: =IF(Foglio1!$C$14 <> "", 8.314472*Foglio1!$C$14*Foglio2!N28, NA()) ->  | P28: =IF(Foglio1!$H$14 <> "", Foglio1!$H$14 + O28*10^-3, NA()) ->  | Q28: 199 | R28: 5.293304825 | S28: =IF(Foglio1!$C$15 <> "", 8.314472*Foglio1!$C$15*Foglio2!R28, NA()) ->  | T28: =IF(Foglio1!$H$15 <> "", Foglio1!$H$15 + S28*10^-3, NA()) -> 
A29: 208 | B29: 5.33753808 | C29: =IF(Foglio1!$C$11 <> "", 8.314472*Foglio1!$C$11*Foglio2!B29, NA()) -> 13313.64327 | D29: =IF(Foglio1!$H$11 <> "", Foglio1!$H$11 + C29*10^-3, NA()) -> -76.68635673 | E29: 208 | F29: 5.33753808 | G29: =IF(Foglio1!$C$12 <> "", 8.314472*Foglio1!$C$12*Foglio2!F29, NA()) ->  | H29: =IF(Foglio1!$H$12 <> "", Foglio1!$H$12 + G29*10^-3, NA()) ->  | I29: 208 | J29: 5.33753808 | K29: =IF(Foglio1!$C$13 <> "", 8.314472*Foglio1!$C$13*Foglio2!J29, NA()) ->  | L29: =IF(Foglio1!$H$13 <> "", Foglio1!$H$13 + K29*10^-3, NA()) ->  | M29: 208 | N29: 5.33753808 | O29: =IF(Foglio1!$C$14 <> "", 8.314472*Foglio1!$C$14*Foglio2!N29, NA()) ->  | P29: =IF(Foglio1!$H$14 <> "", Foglio1!$H$14 + O29*10^-3, NA()) ->  | Q29: 208 | R29: 5.33753808 | S29: =IF(Foglio1!$C$15 <> "", 8.314472*Foglio1!$C$15*Foglio2!R29, NA()) ->  | T29: =IF(Foglio1!$H$15 <> "", Foglio1!$H$15 + S29*10^-3, NA()) -> 
A30: 217 | B30: 5.379897354 | C30: =IF(Foglio1!$C$11 <> "", 8.314472*Foglio1!$C$11*Foglio2!B30, NA()) -> 13419.30177 | D30: =IF(Foglio1!$H$11 <> "", Foglio1!$H$11 + C30*10^-3, NA()) -> -76.58069823 | E30: 217 | F30: 5.379897354 | G30: =IF(Foglio1!$C$12 <> "", 8.314472*Foglio1!$C$12*Foglio2!F30, NA()) ->  | H30: =IF(Foglio1!$H$12 <> "", Foglio1!$H$12 + G30*10^-3, NA()) ->  | I30: 217 | J30: 5.379897354 | K30: =IF(Foglio1!$C$13 <> "", 8.314472*Foglio1!$C$13*Foglio2!J30, NA()) ->  | L30: =IF(Foglio1!$H$13 <> "", Foglio1!$H$13 + K30*10^-3, NA()) ->  | M30: 217 | N30: 5.379897354 | O30: =IF(Foglio1!$C$14 <> "", 8.314472*Foglio1!$C$14*Foglio2!N30, NA()) ->  | P30: =IF(Foglio1!$H$14 <> "", Foglio1!$H$14 + O30*10^-3, NA()) ->  | Q30: 217 | R30: 5.379897354 | S30: =IF(Foglio1!$C$15 <> "", 8.314472*Foglio1!$C$15*Foglio2!R30, NA()) ->  | T30: =IF(Foglio1!$H$15 <> "", Foglio1!$H$15 + S30*10^-3, NA()) -> 
A31: 226 | B31: 5.420534999 | C31: =IF(Foglio1!$C$11 <> "", 8.314472*Foglio1!$C$11*Foglio2!B31, NA()) -> 13520.66594 | D31: =IF(Foglio1!$H$11 <> "", Foglio1!$H$11 + C31*10^-3, NA()) -> -76.47933406 | E31: 226 | F31: 5.420534999 | G31: =IF(Foglio1!$C$12 <> "", 8.314472*Foglio1!$C$12*Foglio2!F31, NA()) ->  | H31: =IF(Foglio1!$H$12 <> "", Foglio1!$H$12 + G31*10^-3, NA()) ->  | I31: 226 | J31: 5.420534999 | K31: =IF(Foglio1!$C$13 <> "", 8.314472*Foglio1!$C$13*Foglio2!J31, NA()) ->  | L31: =IF(Foglio1!$H$13 <> "", Foglio1!$H$13 + K31*10^-3, NA()) ->  | M31: 226 | N31: 5.420534999 | O31: =IF(Foglio1!$C$14 <> "", 8.314472*Foglio1!$C$14*Foglio2!N31, NA()) ->  | P31: =IF(Foglio1!$H$14 <> "", Foglio1!$H$14 + O31*10^-3, NA()) ->  | Q31: 226 | R31: 5.420534999 | S31: =IF(Foglio1!$C$15 <> "", 8.314472*Foglio1!$C$15*Foglio2!R31, NA()) ->  | T31: =IF(Foglio1!$H$15 <> "", Foglio1!$H$15 + S31*10^-3, NA()) -> 
A32: 235 | B32: 5.459585514 | C32: =IF(Foglio1!$C$11 <> "", 8.314472*Foglio1!$C$11*Foglio2!B32, NA()) -> 13618.07127 | D32: =IF(Foglio1!$H$11 <> "", Foglio1!$H$11 + C32*10^-3, NA()) -> -76.38192873 | E32: 235 | F32: 5.459585514 | G32: =IF(Foglio1!$C$12 <> "", 8.314472*Foglio1!$C$12*Foglio2!F32, NA()) ->  | H32: =IF(Foglio1!$H$12 <> "", Foglio1!$H$12 + G32*10^-3, NA()) ->  | I32: 235 | J32: 5.459585514 | K32: =IF(Foglio1!$C$13 <> "", 8.314472*Foglio1!$C$13*Foglio2!J32, NA()) ->  | L32: =IF(Foglio1!$H$13 <> "", Foglio1!$H$13 + K32*10^-3, NA()) ->  | M32: 235 | N32: 5.459585514 | O32: =IF(Foglio1!$C$14 <> "", 8.314472*Foglio1!$C$14*Foglio2!N32, NA()) ->  | P32: =IF(Foglio1!$H$14 <> "", Foglio1!$H$14 + O32*10^-3, NA()) ->  | Q32: 235 | R32: 5.459585514 | S32: =IF(Foglio1!$C$15 <> "", 8.314472*Foglio1!$C$15*Foglio2!R32, NA()) ->  | T32: =IF(Foglio1!$H$15 <> "", Foglio1!$H$15 + S32*10^-3, NA()) -> 
A33: 244 | B33: 5.497168225 | C33: =IF(Foglio1!$C$11 <> "", 8.314472*Foglio1!$C$11*Foglio2!B33, NA()) -> 13711.81539 | D33: =IF(Foglio1!$H$11 <> "", Foglio1!$H$11 + C33*10^-3, NA()) -> -76.28818461 | E33: 244 | F33: 5.497168225 | G33: =IF(Foglio1!$C$12 <> "", 8.314472*Foglio1!$C$12*Foglio2!F33, NA()) ->  | H33: =IF(Foglio1!$H$12 <> "", Foglio1!$H$12 + G33*10^-3, NA()) ->  | I33: 244 | J33: 5.497168225 | K33: =IF(Foglio1!$C$13 <> "", 8.314472*Foglio1!$C$13*Foglio2!J33, NA()) ->  | L33: =IF(Foglio1!$H$13 <> "", Foglio1!$H$13 + K33*10^-3, NA()) ->  | M33: 244 | N33: 5.497168225 | O33: =IF(Foglio1!$C$14 <> "", 8.314472*Foglio1!$C$14*Foglio2!N33, NA()) ->  | P33: =IF(Foglio1!$H$14 <> "", Foglio1!$H$14 + O33*10^-3, NA()) ->  | Q33: 244 | R33: 5.497168225 | S33: =IF(Foglio1!$C$15 <> "", 8.314472*Foglio1!$C$15*Foglio2!R33, NA()) ->  | T33: =IF(Foglio1!$H$15 <> "", Foglio1!$H$15 + S33*10^-3, NA()) -> 
A34: 253 | B34: 5.533389489 | C34: =IF(Foglio1!$C$11 <> "", 8.314472*Foglio1!$C$11*Foglio2!B34, NA()) -> 13802.16359 | D34: =IF(Foglio1!$H$11 <> "", Foglio1!$H$11 + C34*10^-3, NA()) -> -76.19783641 | E34: 253 | F34: 5.533389489 | G34: =IF(Foglio1!$C$12 <> "", 8.314472*Foglio1!$C$12*Foglio2!F34, NA()) ->  | H34: =IF(Foglio1!$H$12 <> "", Foglio1!$H$12 + G34*10^-3, NA()) ->  | I34: 253 | J34: 5.533389489 | K34: =IF(Foglio1!$C$13 <> "", 8.314472*Foglio1!$C$13*Foglio2!J34, NA()) ->  | L34: =IF(Foglio1!$H$13 <> "", Foglio1!$H$13 + K34*10^-3, NA()) ->  | M34: 253 | N34: 5.533389489 | O34: =IF(Foglio1!$C$14 <> "", 8.314472*Foglio1!$C$14*Foglio2!N34, NA()) ->  | P34: =IF(Foglio1!$H$14 <> "", Foglio1!$H$14 + O34*10^-3, NA()) ->  | Q34: 253 | R34: 5.533389489 | S34: =IF(Foglio1!$C$15 <> "", 8.314472*Foglio1!$C$15*Foglio2!R34, NA()) ->  | T34: =IF(Foglio1!$H$15 <> "", Foglio1!$H$15 + S34*10^-3, NA()) -> 
A35: 262 | B35: 5.568344504 | C35: =IF(Foglio1!$C$11 <> "", 8.314472*Foglio1!$C$11*Foglio2!B35, NA()) -> 13889.35334 | D35: =IF(Foglio1!$H$11 <> "", Foglio1!$H$11 + C35*10^-3, NA()) -> -76.11064666 | E35: 262 | F35: 5.568344504 | G35: =IF(Foglio1!$C$12 <> "", 8.314472*Foglio1!$C$12*Foglio2!F35, NA()) ->  | H35: =IF(Foglio1!$H$12 <> "", Foglio1!$H$12 + G35*10^-3, NA()) ->  | I35: 262 | J35: 5.568344504 | K35: =IF(Foglio1!$C$13 <> "", 8.314472*Foglio1!$C$13*Foglio2!J35, NA()) ->  | L35: =IF(Foglio1!$H$13 <> "", Foglio1!$H$13 + K35*10^-3, NA()) ->  | M35: 262 | N35: 5.568344504 | O35: =IF(Foglio1!$C$14 <> "", 8.314472*Foglio1!$C$14*Foglio2!N35, NA()) ->  | P35: =IF(Foglio1!$H$14 <> "", Foglio1!$H$14 + O35*10^-3, NA()) ->  | Q35: 262 | R35: 5.568344504 | S35: =IF(Foglio1!$C$15 <> "", 8.314472*Foglio1!$C$15*Foglio2!R35, NA()) ->  | T35: =IF(Foglio1!$H$15 <> "", Foglio1!$H$15 + S35*10^-3, NA()) -> 
A36: 271 | B36: 5.602118821 | C36: =IF(Foglio1!$C$11 <> "", 8.314472*Foglio1!$C$11*Foglio2!B36, NA()) -> 13973.59802 | D36: =IF(Foglio1!$H$11 <> "", Foglio1!$H$11 + C36*10^-3, NA()) -> -76.02640198 | E36: 271 | F36: 5.602118821 | G36: =IF(Foglio1!$C$12 <> "", 8.314472*Foglio1!$C$12*Foglio2!F36, NA()) ->  | H36: =IF(Foglio1!$H$12 <> "", Foglio1!$H$12 + G36*10^-3, NA()) ->  | I36: 271 | J36: 5.602118821 | K36: =IF(Foglio1!$C$13 <> "", 8.314472*Foglio1!$C$13*Foglio2!J36, NA()) ->  | L36: =IF(Foglio1!$H$13 <> "", Foglio1!$H$13 + K36*10^-3, NA()) ->  | M36: 271 | N36: 5.602118821 | O36: =IF(Foglio1!$C$14 <> "", 8.314472*Foglio1!$C$14*Foglio2!N36, NA()) ->  | P36: =IF(Foglio1!$H$14 <> "", Foglio1!$H$14 + O36*10^-3, NA()) ->  | Q36: 271 | R36: 5.602118821 | S36: =IF(Foglio1!$C$15 <> "", 8.314472*Foglio1!$C$15*Foglio2!R36, NA()) ->  | T36: =IF(Foglio1!$H$15 <> "", Foglio1!$H$15 + S36*10^-3, NA()) -> 
A37: 280 | B37: 5.634789603 | C37: =IF(Foglio1!$C$11 <> "", 8.314472*Foglio1!$C$11*Foglio2!B37, NA()) -> 14055.09011 | D37: =IF(Foglio1!$H$11 <> "", Foglio1!$H$11 + C37*10^-3, NA()) -> -75.94490989 | E37: 280 | F37: 5.634789603 | G37: =IF(Foglio1!$C$12 <> "", 8.314472*Foglio1!$C$12*Foglio2!F37, NA()) ->  | H37: =IF(Foglio1!$H$12 <> "", Foglio1!$H$12 + G37*10^-3, NA()) ->  | I37: 280 | J37: 5.634789603 | K37: =IF(Foglio1!$C$13 <> "", 8.314472*Foglio1!$C$13*Foglio2!J37, NA()) ->  | L37: =IF(Foglio1!$H$13 <> "", Foglio1!$H$13 + K37*10^-3, NA()) ->  | M37: 280 | N37: 5.634789603 | O37: =IF(Foglio1!$C$14 <> "", 8.314472*Foglio1!$C$14*Foglio2!N37, NA()) ->  | P37: =IF(Foglio1!$H$14 <> "", Foglio1!$H$14 + O37*10^-3, NA()) ->  | Q37: 280 | R37: 5.634789603 | S37: =IF(Foglio1!$C$15 <> "", 8.314472*Foglio1!$C$15*Foglio2!R37, NA()) ->  | T37: =IF(Foglio1!$H$15 <> "", Foglio1!$H$15 + S37*10^-3, NA()) -> 
A38: 289 | B38: 5.666426688 | C38: =IF(Foglio1!$C$11 <> "", 8.314472*Foglio1!$C$11*Foglio2!B38, NA()) -> 14134.00381 | D38: =IF(Foglio1!$H$11 <> "", Foglio1!$H$11 + C38*10^-3, NA()) -> -75.86599619 | E38: 289 | F38: 5.666426688 | G38: =IF(Foglio1!$C$12 <> "", 8.314472*Foglio1!$C$12*Foglio2!F38, NA()) ->  | H38: =IF(Foglio1!$H$12 <> "", Foglio1!$H$12 + G38*10^-3, NA()) ->  | I38: 289 | J38: 5.666426688 | K38: =IF(Foglio1!$C$13 <> "", 8.314472*Foglio1!$C$13*Foglio2!J38, NA()) ->  | L38: =IF(Foglio1!$H$13 <> "", Foglio1!$H$13 + K38*10^-3, NA()) ->  | M38: 289 | N38: 5.666426688 | O38: =IF(Foglio1!$C$14 <> "", 8.314472*Foglio1!$C$14*Foglio2!N38, NA()) ->  | P38: =IF(Foglio1!$H$14 <> "", Foglio1!$H$14 + O38*10^-3, NA()) ->  | Q38: 289 | R38: 5.666426688 | S38: =IF(Foglio1!$C$15 <> "", 8.314472*Foglio1!$C$15*Foglio2!R38, NA()) ->  | T38: =IF(Foglio1!$H$15 <> "", Foglio1!$H$15 + S38*10^-3, NA()) -> 
A39: 298 | B39: 5.697093487 | C39: =IF(Foglio1!$C$11 <> "", 8.314472*Foglio1!$C$11*Foglio2!B39, NA()) -> 14210.49728 | D39: =IF(Foglio1!$H$11 <> "", Foglio1!$H$11 + C39*10^-3, NA()) -> -75.78950272 | E39: 298 | F39: 5.697093487 | G39: =IF(Foglio1!$C$12 <> "", 8.314472*Foglio1!$C$12*Foglio2!F39, NA()) ->  | H39: =IF(Foglio1!$H$12 <> "", Foglio1!$H$12 + G39*10^-3, NA()) ->  | I39: 298 | J39: 5.697093487 | K39: =IF(Foglio1!$C$13 <> "", 8.314472*Foglio1!$C$13*Foglio2!J39, NA()) ->  | L39: =IF(Foglio1!$H$13 <> "", Foglio1!$H$13 + K39*10^-3, NA()) ->  | M39: 298 | N39: 5.697093487 | O39: =IF(Foglio1!$C$14 <> "", 8.314472*Foglio1!$C$14*Foglio2!N39, NA()) ->  | P39: =IF(Foglio1!$H$14 <> "", Foglio1!$H$14 + O39*10^-3, NA()) ->  | Q39: 298 | R39: 5.697093487 | S39: =IF(Foglio1!$C$15 <> "", 8.314472*Foglio1!$C$15*Foglio2!R39, NA()) ->  | T39: =IF(Foglio1!$H$15 <> "", Foglio1!$H$15 + S39*10^-3, NA()) -> 
A40: 307 | B40: 5.726847748 | C40: =IF(Foglio1!$C$11 <> "", 8.314472*Foglio1!$C$11*Foglio2!B40, NA()) -> 14284.71457 | D40: =IF(Foglio1!$H$11 <> "", Foglio1!$H$11 + C40*10^-3, NA()) -> -75.71528543 | E40: 307 | F40: 5.726847748 | G40: =IF(Foglio1!$C$12 <> "", 8.314472*Foglio1!$C$12*Foglio2!F40, NA()) ->  | H40: =IF(Foglio1!$H$12 <> "", Foglio1!$H$12 + G40*10^-3, NA()) ->  | I40: 307 | J40: 5.726847748 | K40: =IF(Foglio1!$C$13 <> "", 8.314472*Foglio1!$C$13*Foglio2!J40, NA()) ->  | L40: =IF(Foglio1!$H$13 <> "", Foglio1!$H$13 + K40*10^-3, NA()) ->  | M40: 307 | N40: 5.726847748 | O40: =IF(Foglio1!$C$14 <> "", 8.314472*Foglio1!$C$14*Foglio2!N40, NA()) ->  | P40: =IF(Foglio1!$H$14 <> "", Foglio1!$H$14 + O40*10^-3, NA()) ->  | Q40: 307 | R40: 5.726847748 | S40: =IF(Foglio1!$C$15 <> "", 8.314472*Foglio1!$C$15*Foglio2!R40, NA()) ->  | T40: =IF(Foglio1!$H$15 <> "", Foglio1!$H$15 + S40*10^-3, NA()) -> 
A41: 316 | B41: 5.755742214 | C41: =IF(Foglio1!$C$11 <> "", 8.314472*Foglio1!$C$11*Foglio2!B41, NA()) -> 14356.78724 | D41: =IF(Foglio1!$H$11 <> "", Foglio1!$H$11 + C41*10^-3, NA()) -> -75.64321276 | E41: 316 | F41: 5.755742214 | G41: =IF(Foglio1!$C$12 <> "", 8.314472*Foglio1!$C$12*Foglio2!F41, NA()) ->  | H41: =IF(Foglio1!$H$12 <> "", Foglio1!$H$12 + G41*10^-3, NA()) ->  | I41: 316 | J41: 5.755742214 | K41: =IF(Foglio1!$C$13 <> "", 8.314472*Foglio1!$C$13*Foglio2!J41, NA()) ->  | L41: =IF(Foglio1!$H$13 <> "", Foglio1!$H$13 + K41*10^-3, NA()) ->  | M41: 316 | N41: 5.755742214 | O41: =IF(Foglio1!$C$14 <> "", 8.314472*Foglio1!$C$14*Foglio2!N41, NA()) ->  | P41: =IF(Foglio1!$H$14 <> "", Foglio1!$H$14 + O41*10^-3, NA()) ->  | Q41: 316 | R41: 5.755742214 | S41: =IF(Foglio1!$C$15 <> "", 8.314472*Foglio1!$C$15*Foglio2!R41, NA()) ->  | T41: =IF(Foglio1!$H$15 <> "", Foglio1!$H$15 + S41*10^-3, NA()) -> 
A42: 325 | B42: 5.783825182 | C42: =IF(Foglio1!$C$11 <> "", 8.314472*Foglio1!$C$11*Foglio2!B42, NA()) -> 14426.83576 | D42: =IF(Foglio1!$H$11 <> "", Foglio1!$H$11 + C42*10^-3, NA()) -> -75.57316424 | E42: 325 | F42: 5.783825182 | G42: =IF(Foglio1!$C$12 <> "", 8.314472*Foglio1!$C$12*Foglio2!F42, NA()) ->  | H42: =IF(Foglio1!$H$12 <> "", Foglio1!$H$12 + G42*10^-3, NA()) ->  | I42: 325 | J42: 5.783825182 | K42: =IF(Foglio1!$C$13 <> "", 8.314472*Foglio1!$C$13*Foglio2!J42, NA()) ->  | L42: =IF(Foglio1!$H$13 <> "", Foglio1!$H$13 + K42*10^-3, NA()) ->  | M42: 325 | N42: 5.783825182 | O42: =IF(Foglio1!$C$14 <> "", 8.314472*Foglio1!$C$14*Foglio2!N42, NA()) ->  | P42: =IF(Foglio1!$H$14 <> "", Foglio1!$H$14 + O42*10^-3, NA()) ->  | Q42: 325 | R42: 5.783825182 | S42: =IF(Foglio1!$C$15 <> "", 8.314472*Foglio1!$C$15*Foglio2!R42, NA()) ->  | T42: =IF(Foglio1!$H$15 <> "", Foglio1!$H$15 + S42*10^-3, NA()) -> 
A43: 334 | B43: 5.811140993 | C43: =IF(Foglio1!$C$11 <> "", 8.314472*Foglio1!$C$11*Foglio2!B43, NA()) -> 14494.97072 | D43: =IF(Foglio1!$H$11 <> "", Foglio1!$H$11 + C43*10^-3, NA()) -> -75.50502928 | E43: 334 | F43: 5.811140993 | G43: =IF(Foglio1!$C$12 <> "", 8.314472*Foglio1!$C$12*Foglio2!F43, NA()) ->  | H43: =IF(Foglio1!$H$12 <> "", Foglio1!$H$12 + G43*10^-3, NA()) ->  | I43: 334 | J43: 5.811140993 | K43: =IF(Foglio1!$C$13 <> "", 8.314472*Foglio1!$C$13*Foglio2!J43, NA()) ->  | L43: =IF(Foglio1!$H$13 <> "", Foglio1!$H$13 + K43*10^-3, NA()) ->  | M43: 334 | N43: 5.811140993 | O43: =IF(Foglio1!$C$14 <> "", 8.314472*Foglio1!$C$14*Foglio2!N43, NA()) ->  | P43: =IF(Foglio1!$H$14 <> "", Foglio1!$H$14 + O43*10^-3, NA()) ->  | Q43: 334 | R43: 5.811140993 | S43: =IF(Foglio1!$C$15 <> "", 8.314472*Foglio1!$C$15*Foglio2!R43, NA()) ->  | T43: =IF(Foglio1!$H$15 <> "", Foglio1!$H$15 + S43*10^-3, NA()) -> 
A44: 343 | B44: 5.837730447 | C44: =IF(Foglio1!$C$11 <> "", 8.314472*Foglio1!$C$11*Foglio2!B44, NA()) -> 14561.2939 | D44: =IF(Foglio1!$H$11 <> "", Foglio1!$H$11 + C44*10^-3, NA()) -> -75.4387061 | E44: 343 | F44: 5.837730447 | G44: =IF(Foglio1!$C$12 <> "", 8.314472*Foglio1!$C$12*Foglio2!F44, NA()) ->  | H44: =IF(Foglio1!$H$12 <> "", Foglio1!$H$12 + G44*10^-3, NA()) ->  | I44: 343 | J44: 5.837730447 | K44: =IF(Foglio1!$C$13 <> "", 8.314472*Foglio1!$C$13*Foglio2!J44, NA()) ->  | L44: =IF(Foglio1!$H$13 <> "", Foglio1!$H$13 + K44*10^-3, NA()) ->  | M44: 343 | N44: 5.837730447 | O44: =IF(Foglio1!$C$14 <> "", 8.314472*Foglio1!$C$14*Foglio2!N44, NA()) ->  | P44: =IF(Foglio1!$H$14 <> "", Foglio1!$H$14 + O44*10^-3, NA()) ->  | Q44: 343 | R44: 5.837730447 | S44: =IF(Foglio1!$C$15 <> "", 8.314472*Foglio1!$C$15*Foglio2!R44, NA()) ->  | T44: =IF(Foglio1!$H$15 <> "", Foglio1!$H$15 + S44*10^-3, NA()) -> 
A45: 352 | B45: 5.863631176 | C45: =IF(Foglio1!$C$11 <> "", 8.314472*Foglio1!$C$11*Foglio2!B45, NA()) -> 14625.89917 | D45: =IF(Foglio1!$H$11 <> "", Foglio1!$H$11 + C45*10^-3, NA()) -> -75.37410083 | E45: 352 | F45: 5.863631176 | G45: =IF(Foglio1!$C$12 <> "", 8.314472*Foglio1!$C$12*Foglio2!F45, NA()) ->  | H45: =IF(Foglio1!$H$12 <> "", Foglio1!$H$12 + G45*10^-3, NA()) ->  | I45: 352 | J45: 5.863631176 | K45: =IF(Foglio1!$C$13 <> "", 8.314472*Foglio1!$C$13*Foglio2!J45, NA()) ->  | L45: =IF(Foglio1!$H$13 <> "", Foglio1!$H$13 + K45*10^-3, NA()) ->  | M45: 352 | N45: 5.863631176 | O45: =IF(Foglio1!$C$14 <> "", 8.314472*Foglio1!$C$14*Foglio2!N45, NA()) ->  | P45: =IF(Foglio1!$H$14 <> "", Foglio1!$H$14 + O45*10^-3, NA()) ->  | Q45: 352 | R45: 5.863631176 | S45: =IF(Foglio1!$C$15 <> "", 8.314472*Foglio1!$C$15*Foglio2!R45, NA()) ->  | T45: =IF(Foglio1!$H$15 <> "", Foglio1!$H$15 + S45*10^-3, NA()) -> 
A46: 361 | B46: 5.888877958 | C46: =IF(Foglio1!$C$11 <> "", 8.314472*Foglio1!$C$11*Foglio2!B46, NA()) -> 14688.87327 | D46: =IF(Foglio1!$H$11 <> "", Foglio1!$H$11 + C46*10^-3, NA()) -> -75.31112673 | E46: 361 | F46: 5.888877958 | G46: =IF(Foglio1!$C$12 <> "", 8.314472*Foglio1!$C$12*Foglio2!F46, NA()) ->  | H46: =IF(Foglio1!$H$12 <> "", Foglio1!$H$12 + G46*10^-3, NA()) ->  | I46: 361 | J46: 5.888877958 | K46: =IF(Foglio1!$C$13 <> "", 8.314472*Foglio1!$C$13*Foglio2!J46, NA()) ->  | L46: =IF(Foglio1!$H$13 <> "", Foglio1!$H$13 + K46*10^-3, NA()) ->  | M46: 361 | N46: 5.888877958 | O46: =IF(Foglio1!$C$14 <> "", 8.314472*Foglio1!$C$14*Foglio2!N46, NA()) ->  | P46: =IF(Foglio1!$H$14 <> "", Foglio1!$H$14 + O46*10^-3, NA()) ->  | Q46: 361 | R46: 5.888877958 | S46: =IF(Foglio1!$C$15 <> "", 8.314472*Foglio1!$C$15*Foglio2!R46, NA()) ->  | T46: =IF(Foglio1!$H$15 <> "", Foglio1!$H$15 + S46*10^-3, NA()) -> 
A47: 370 | B47: 5.913503006 | C47: =IF(Foglio1!$C$11 <> "", 8.314472*Foglio1!$C$11*Foglio2!B47, NA()) -> 14750.29655 | D47: =IF(Foglio1!$H$11 <> "", Foglio1!$H$11 + C47*10^-3, NA()) -> -75.24970345 | E47: 370 | F47: 5.913503006 | G47: =IF(Foglio1!$C$12 <> "", 8.314472*Foglio1!$C$12*Foglio2!F47, NA()) ->  | H47: =IF(Foglio1!$H$12 <> "", Foglio1!$H$12 + G47*10^-3, NA()) ->  | I47: 370 | J47: 5.913503006 | K47: =IF(Foglio1!$C$13 <> "", 8.314472*Foglio1!$C$13*Foglio2!J47, NA()) ->  | L47: =IF(Foglio1!$H$13 <> "", Foglio1!$H$13 + K47*10^-3, NA()) ->  | M47: 370 | N47: 5.913503006 | O47: =IF(Foglio1!$C$14 <> "", 8.314472*Foglio1!$C$14*Foglio2!N47, NA()) ->  | P47: =IF(Foglio1!$H$14 <> "", Foglio1!$H$14 + O47*10^-3, NA()) ->  | Q47: 370 | R47: 5.913503006 | S47: =IF(Foglio1!$C$15 <> "", 8.314472*Foglio1!$C$15*Foglio2!R47, NA()) ->  | T47: =IF(Foglio1!$H$15 <> "", Foglio1!$H$15 + S47*10^-3, NA()) -> 
A48: 379 | B48: 5.937536205 | C48: =IF(Foglio1!$C$11 <> "", 8.314472*Foglio1!$C$11*Foglio2!B48, NA()) -> 14810.24356 | D48: =IF(Foglio1!$H$11 <> "", Foglio1!$H$11 + C48*10^-3, NA()) -> -75.18975644 | E48: 379 | F48: 5.937536205 | G48: =IF(Foglio1!$C$12 <> "", 8.314472*Foglio1!$C$12*Foglio2!F48, NA()) ->  | H48: =IF(Foglio1!$H$12 <> "", Foglio1!$H$12 + G48*10^-3, NA()) ->  | I48: 379 | J48: 5.937536205 | K48: =IF(Foglio1!$C$13 <> "", 8.314472*Foglio1!$C$13*Foglio2!J48, NA()) ->  | L48: =IF(Foglio1!$H$13 <> "", Foglio1!$H$13 + K48*10^-3, NA()) ->  | M48: 379 | N48: 5.937536205 | O48: =IF(Foglio1!$C$14 <> "", 8.314472*Foglio1!$C$14*Foglio2!N48, NA()) ->  | P48: =IF(Foglio1!$H$14 <> "", Foglio1!$H$14 + O48*10^-3, NA()) ->  | Q48: 379 | R48: 5.937536205 | S48: =IF(Foglio1!$C$15 <> "", 8.314472*Foglio1!$C$15*Foglio2!R48, NA()) ->  | T48: =IF(Foglio1!$H$15 <> "", Foglio1!$H$15 + S48*10^-3, NA()) -> 
A49: 388 | B49: 5.96100534 | C49: =IF(Foglio1!$C$11 <> "", 8.314472*Foglio1!$C$11*Foglio2!B49, NA()) -> 14868.7836 | D49: =IF(Foglio1!$H$11 <> "", Foglio1!$H$11 + C49*10^-3, NA()) -> -75.1312164 | E49: 388 | F49: 5.96100534 | G49: =IF(Foglio1!$C$12 <> "", 8.314472*Foglio1!$C$12*Foglio2!F49, NA()) ->  | H49: =IF(Foglio1!$H$12 <> "", Foglio1!$H$12 + G49*10^-3, NA()) ->  | I49: 388 | J49: 5.96100534 | K49: =IF(Foglio1!$C$13 <> "", 8.314472*Foglio1!$C$13*Foglio2!J49, NA()) ->  | L49: =IF(Foglio1!$H$13 <> "", Foglio1!$H$13 + K49*10^-3, NA()) ->  | M49: 388 | N49: 5.96100534 | O49: =IF(Foglio1!$C$14 <> "", 8.314472*Foglio1!$C$14*Foglio2!N49, NA()) ->  | P49: =IF(Foglio1!$H$14 <> "", Foglio1!$H$14 + O49*10^-3, NA()) ->  | Q49: 388 | R49: 5.96100534 | S49: =IF(Foglio1!$C$15 <> "", 8.314472*Foglio1!$C$15*Foglio2!R49, NA()) ->  | T49: =IF(Foglio1!$H$15 <> "", Foglio1!$H$15 + S49*10^-3, NA()) -> 
A50: 397 | B50: 5.983936281 | C50: =IF(Foglio1!$C$11 <> "", 8.314472*Foglio1!$C$11*Foglio2!B50, NA()) -> 14925.9812 | D50: =IF(Foglio1!$H$11 <> "", Foglio1!$H$11 + C50*10^-3, NA()) -> -75.0740188 | E50: 397 | F50: 5.983936281 | G50: =IF(Foglio1!$C$12 <> "", 8.314472*Foglio1!$C$12*Foglio2!F50, NA()) ->  | H50: =IF(Foglio1!$H$12 <> "", Foglio1!$H$12 + G50*10^-3, NA()) ->  | I50: 397 | J50: 5.983936281 | K50: =IF(Foglio1!$C$13 <> "", 8.314472*Foglio1!$C$13*Foglio2!J50, NA()) ->  | L50: =IF(Foglio1!$H$13 <> "", Foglio1!$H$13 + K50*10^-3, NA()) ->  | M50: 397 | N50: 5.983936281 | O50: =IF(Foglio1!$C$14 <> "", 8.314472*Foglio1!$C$14*Foglio2!N50, NA()) ->  | P50: =IF(Foglio1!$H$14 <> "", Foglio1!$H$14 + O50*10^-3, NA()) ->  | Q50: 397 | R50: 5.983936281 | S50: =IF(Foglio1!$C$15 <> "", 8.314472*Foglio1!$C$15*Foglio2!R50, NA()) ->  | T50: =IF(Foglio1!$H$15 <> "", Foglio1!$H$15 + S50*10^-3, NA()) -> 
A51: 406 | B51: 6.00635316 | C51: =IF(Foglio1!$C$11 <> "", 8.314472*Foglio1!$C$11*Foglio2!B51, NA()) -> 14981.89655 | D51: =IF(Foglio1!$H$11 <> "", Foglio1!$H$11 + C51*10^-3, NA()) -> -75.01810345 | E51: 406 | F51: 6.00635316 | G51: =IF(Foglio1!$C$12 <> "", 8.314472*Foglio1!$C$12*Foglio2!F51, NA()) ->  | H51: =IF(Foglio1!$H$12 <> "", Foglio1!$H$12 + G51*10^-3, NA()) ->  | I51: 406 | J51: 6.00635316 | K51: =IF(Foglio1!$C$13 <> "", 8.314472*Foglio1!$C$13*Foglio2!J51, NA()) ->  | L51: =IF(Foglio1!$H$13 <> "", Foglio1!$H$13 + K51*10^-3, NA()) ->  | M51: 406 | N51: 6.00635316 | O51: =IF(Foglio1!$C$14 <> "", 8.314472*Foglio1!$C$14*Foglio2!N51, NA()) ->  | P51: =IF(Foglio1!$H$14 <> "", Foglio1!$H$14 + O51*10^-3, NA()) ->  | Q51: 406 | R51: 6.00635316 | S51: =IF(Foglio1!$C$15 <> "", 8.314472*Foglio1!$C$15*Foglio2!R51, NA()) ->  | T51: =IF(Foglio1!$H$15 <> "", Foglio1!$H$15 + S51*10^-3, NA()) -> 
A52: 415 | B52: 6.02827852 | C52: =IF(Foglio1!$C$11 <> "", 8.314472*Foglio1!$C$11*Foglio2!B52, NA()) -> 15036.58589 | D52: =IF(Foglio1!$H$11 <> "", Foglio1!$H$11 + C52*10^-3, NA()) -> -74.96341411 | E52: 415 | F52: 6.02827852 | G52: =IF(Foglio1!$C$12 <> "", 8.314472*Foglio1!$C$12*Foglio2!F52, NA()) ->  | H52: =IF(Foglio1!$H$12 <> "", Foglio1!$H$12 + G52*10^-3, NA()) ->  | I52: 415 | J52: 6.02827852 | K52: =IF(Foglio1!$C$13 <> "", 8.314472*Foglio1!$C$13*Foglio2!J52, NA()) ->  | L52: =IF(Foglio1!$H$13 <> "", Foglio1!$H$13 + K52*10^-3, NA()) ->  | M52: 415 | N52: 6.02827852 | O52: =IF(Foglio1!$C$14 <> "", 8.314472*Foglio1!$C$14*Foglio2!N52, NA()) ->  | P52: =IF(Foglio1!$H$14 <> "", Foglio1!$H$14 + O52*10^-3, NA()) ->  | Q52: 415 | R52: 6.02827852 | S52: =IF(Foglio1!$C$15 <> "", 8.314472*Foglio1!$C$15*Foglio2!R52, NA()) ->  | T52: =IF(Foglio1!$H$15 <> "", Foglio1!$H$15 + S52*10^-3, NA()) -> 
A53: 424 | B53: 6.049733455 | C53: =IF(Foglio1!$C$11 <> "", 8.314472*Foglio1!$C$11*Foglio2!B53, NA()) -> 15090.10183 | D53: =IF(Foglio1!$H$11 <> "", Foglio1!$H$11 + C53*10^-3, NA()) -> -74.90989817 | E53: 424 | F53: 6.049733455 | G53: =IF(Foglio1!$C$12 <> "", 8.314472*Foglio1!$C$12*Foglio2!F53, NA()) ->  | H53: =IF(Foglio1!$H$12 <> "", Foglio1!$H$12 + G53*10^-3, NA()) ->  | I53: 424 | J53: 6.049733455 | K53: =IF(Foglio1!$C$13 <> "", 8.314472*Foglio1!$C$13*Foglio2!J53, NA()) ->  | L53: =IF(Foglio1!$H$13 <> "", Foglio1!$H$13 + K53*10^-3, NA()) ->  | M53: 424 | N53: 6.049733455 | O53: =IF(Foglio1!$C$14 <> "", 8.314472*Foglio1!$C$14*Foglio2!N53, NA()) ->  | P53: =IF(Foglio1!$H$14 <> "", Foglio1!$H$14 + O53*10^-3, NA()) ->  | Q53: 424 | R53: 6.049733455 | S53: =IF(Foglio1!$C$15 <> "", 8.314472*Foglio1!$C$15*Foglio2!R53, NA()) ->  | T53: =IF(Foglio1!$H$15 <> "", Foglio1!$H$15 + S53*10^-3, NA()) -> 
A54: 433 | B54: 6.070737728 | C54: =IF(Foglio1!$C$11 <> "", 8.314472*Foglio1!$C$11*Foglio2!B54, NA()) -> 15142.49366 | D54: =IF(Foglio1!$H$11 <> "", Foglio1!$H$11 + C54*10^-3, NA()) -> -74.85750634 | E54: 433 | F54: 6.070737728 | G54: =IF(Foglio1!$C$12 <> "", 8.314472*Foglio1!$C$12*Foglio2!F54, NA()) ->  | H54: =IF(Foglio1!$H$12 <> "", Foglio1!$H$12 + G54*10^-3, NA()) ->  | I54: 433 | J54: 6.070737728 | K54: =IF(Foglio1!$C$13 <> "", 8.314472*Foglio1!$C$13*Foglio2!J54, NA()) ->  | L54: =IF(Foglio1!$H$13 <> "", Foglio1!$H$13 + K54*10^-3, NA()) ->  | M54: 433 | N54: 6.070737728 | O54: =IF(Foglio1!$C$14 <> "", 8.314472*Foglio1!$C$14*Foglio2!N54, NA()) ->  | P54: =IF(Foglio1!$H$14 <> "", Foglio1!$H$14 + O54*10^-3, NA()) ->  | Q54: 433 | R54: 6.070737728 | S54: =IF(Foglio1!$C$15 <> "", 8.314472*Foglio1!$C$15*Foglio2!R54, NA()) ->  | T54: =IF(Foglio1!$H$15 <> "", Foglio1!$H$15 + S54*10^-3, NA()) -> 
A55: 442 | B55: 6.091309882 | C55: =IF(Foglio1!$C$11 <> "", 8.314472*Foglio1!$C$11*Foglio2!B55, NA()) -> 15193.80764 | D55: =IF(Foglio1!$H$11 <> "", Foglio1!$H$11 + C55*10^-3, NA()) -> -74.80619236 | E55: 442 | F55: 6.091309882 | G55: =IF(Foglio1!$C$12 <> "", 8.314472*Foglio1!$C$12*Foglio2!F55, NA()) ->  | H55: =IF(Foglio1!$H$12 <> "", Foglio1!$H$12 + G55*10^-3, NA()) ->  | I55: 442 | J55: 6.091309882 | K55: =IF(Foglio1!$C$13 <> "", 8.314472*Foglio1!$C$13*Foglio2!J55, NA()) ->  | L55: =IF(Foglio1!$H$13 <> "", Foglio1!$H$13 + K55*10^-3, NA()) ->  | M55: 442 | N55: 6.091309882 | O55: =IF(Foglio1!$C$14 <> "", 8.314472*Foglio1!$C$14*Foglio2!N55, NA()) ->  | P55: =IF(Foglio1!$H$14 <> "", Foglio1!$H$14 + O55*10^-3, NA()) ->  | Q55: 442 | R55: 6.091309882 | S55: =IF(Foglio1!$C$15 <> "", 8.314472*Foglio1!$C$15*Foglio2!R55, NA()) ->  | T55: =IF(Foglio1!$H$15 <> "", Foglio1!$H$15 + S55*10^-3, NA()) -> 
A56: 451 | B56: 6.11146734 | C56: =IF(Foglio1!$C$11 <> "", 8.314472*Foglio1!$C$11*Foglio2!B56, NA()) -> 15244.08722 | D56: =IF(Foglio1!$H$11 <> "", Foglio1!$H$11 + C56*10^-3, NA()) -> -74.75591278 | E56: 451 | F56: 6.11146734 | G56: =IF(Foglio1!$C$12 <> "", 8.314472*Foglio1!$C$12*Foglio2!F56, NA()) ->  | H56: =IF(Foglio1!$H$12 <> "", Foglio1!$H$12 + G56*10^-3, NA()) ->  | I56: 451 | J56: 6.11146734 | K56: =IF(Foglio1!$C$13 <> "", 8.314472*Foglio1!$C$13*Foglio2!J56, NA()) ->  | L56: =IF(Foglio1!$H$13 <> "", Foglio1!$H$13 + K56*10^-3, NA()) ->  | M56: 451 | N56: 6.11146734 | O56: =IF(Foglio1!$C$14 <> "", 8.314472*Foglio1!$C$14*Foglio2!N56, NA()) ->  | P56: =IF(Foglio1!$H$14 <> "", Foglio1!$H$14 + O56*10^-3, NA()) ->  | Q56: 451 | R56: 6.11146734 | S56: =IF(Foglio1!$C$15 <> "", 8.314472*Foglio1!$C$15*Foglio2!R56, NA()) ->  | T56: =IF(Foglio1!$H$15 <> "", Foglio1!$H$15 + S56*10^-3, NA()) -> 
A57: 460 | B57: 6.131226489 | C57: =IF(Foglio1!$C$11 <> "", 8.314472*Foglio1!$C$11*Foglio2!B57, NA()) -> 15293.37329 | D57: =IF(Foglio1!$H$11 <> "", Foglio1!$H$11 + C57*10^-3, NA()) -> -74.70662671 | E57: 460 | F57: 6.131226489 | G57: =IF(Foglio1!$C$12 <> "", 8.314472*Foglio1!$C$12*Foglio2!F57, NA()) ->  | H57: =IF(Foglio1!$H$12 <> "", Foglio1!$H$12 + G57*10^-3, NA()) ->  | I57: 460 | J57: 6.131226489 | K57: =IF(Foglio1!$C$13 <> "", 8.314472*Foglio1!$C$13*Foglio2!J57, NA()) ->  | L57: =IF(Foglio1!$H$13 <> "", Foglio1!$H$13 + K57*10^-3, NA()) ->  | M57: 460 | N57: 6.131226489 | O57: =IF(Foglio1!$C$14 <> "", 8.314472*Foglio1!$C$14*Foglio2!N57, NA()) ->  | P57: =IF(Foglio1!$H$14 <> "", Foglio1!$H$14 + O57*10^-3, NA()) ->  | Q57: 460 | R57: 6.131226489 | S57: =IF(Foglio1!$C$15 <> "", 8.314472*Foglio1!$C$15*Foglio2!R57, NA()) ->  | T57: =IF(Foglio1!$H$15 <> "", Foglio1!$H$15 + S57*10^-3, NA()) -> 
A58: 469 | B58: 6.150602768 | C58: =IF(Foglio1!$C$11 <> "", 8.314472*Foglio1!$C$11*Foglio2!B58, NA()) -> 15341.70435 | D58: =IF(Foglio1!$H$11 <> "", Foglio1!$H$11 + C58*10^-3, NA()) -> -74.65829565 | E58: 469 | F58: 6.150602768 | G58: =IF(Foglio1!$C$12 <> "", 8.314472*Foglio1!$C$12*Foglio2!F58, NA()) ->  | H58: =IF(Foglio1!$H$12 <> "", Foglio1!$H$12 + G58*10^-3, NA()) ->  | I58: 469 | J58: 6.150602768 | K58: =IF(Foglio1!$C$13 <> "", 8.314472*Foglio1!$C$13*Foglio2!J58, NA()) ->  | L58: =IF(Foglio1!$H$13 <> "", Foglio1!$H$13 + K58*10^-3, NA()) ->  | M58: 469 | N58: 6.150602768 | O58: =IF(Foglio1!$C$14 <> "", 8.314472*Foglio1!$C$14*Foglio2!N58, NA()) ->  | P58: =IF(Foglio1!$H$14 <> "", Foglio1!$H$14 + O58*10^-3, NA()) ->  | Q58: 469 | R58: 6.150602768 | S58: =IF(Foglio1!$C$15 <> "", 8.314472*Foglio1!$C$15*Foglio2!R58, NA()) ->  | T58: =IF(Foglio1!$H$15 <> "", Foglio1!$H$15 + S58*10^-3, NA()) -> 
A59: 478 | B59: 6.169610732 | C59: =IF(Foglio1!$C$11 <> "", 8.314472*Foglio1!$C$11*Foglio2!B59, NA()) -> 15389.11671 | D59: =IF(Foglio1!$H$11 <> "", Foglio1!$H$11 + C59*10^-3, NA()) -> -74.61088329 | E59: 478 | F59: 6.169610732 | G59: =IF(Foglio1!$C$12 <> "", 8.314472*Foglio1!$C$12*Foglio2!F59, NA()) ->  | H59: =IF(Foglio1!$H$12 <> "", Foglio1!$H$12 + G59*10^-3, NA()) ->  | I59: 478 | J59: 6.169610732 | K59: =IF(Foglio1!$C$13 <> "", 8.314472*Foglio1!$C$13*Foglio2!J59, NA()) ->  | L59: =IF(Foglio1!$H$13 <> "", Foglio1!$H$13 + K59*10^-3, NA()) ->  | M59: 478 | N59: 6.169610732 | O59: =IF(Foglio1!$C$14 <> "", 8.314472*Foglio1!$C$14*Foglio2!N59, NA()) ->  | P59: =IF(Foglio1!$H$14 <> "", Foglio1!$H$14 + O59*10^-3, NA()) ->  | Q59: 478 | R59: 6.169610732 | S59: =IF(Foglio1!$C$15 <> "", 8.314472*Foglio1!$C$15*Foglio2!R59, NA()) ->  | T59: =IF(Foglio1!$H$15 <> "", Foglio1!$H$15 + S59*10^-3, NA()) -> 
A60: 487 | B60: 6.188264123 | C60: =IF(Foglio1!$C$11 <> "", 8.314472*Foglio1!$C$11*Foglio2!B60, NA()) -> 15435.64463 | D60: =IF(Foglio1!$H$11 <> "", Foglio1!$H$11 + C60*10^-3, NA()) -> -74.56435537 | E60: 487 | F60: 6.188264123 | G60: =IF(Foglio1!$C$12 <> "", 8.314472*Foglio1!$C$12*Foglio2!F60, NA()) ->  | H60: =IF(Foglio1!$H$12 <> "", Foglio1!$H$12 + G60*10^-3, NA()) ->  | I60: 487 | J60: 6.188264123 | K60: =IF(Foglio1!$C$13 <> "", 8.314472*Foglio1!$C$13*Foglio2!J60, NA()) ->  | L60: =IF(Foglio1!$H$13 <> "", Foglio1!$H$13 + K60*10^-3, NA()) ->  | M60: 487 | N60: 6.188264123 | O60: =IF(Foglio1!$C$14 <> "", 8.314472*Foglio1!$C$14*Foglio2!N60, NA()) ->  | P60: =IF(Foglio1!$H$14 <> "", Foglio1!$H$14 + O60*10^-3, NA()) ->  | Q60: 487 | R60: 6.188264123 | S60: =IF(Foglio1!$C$15 <> "", 8.314472*Foglio1!$C$15*Foglio2!R60, NA()) ->  | T60: =IF(Foglio1!$H$15 <> "", Foglio1!$H$15 + S60*10^-3, NA()) -> 
A61: 496 | B61: 6.206575927 | C61: =IF(Foglio1!$C$11 <> "", 8.314472*Foglio1!$C$11*Foglio2!B61, NA()) -> 15481.32053 | D61: =IF(Foglio1!$H$11 <> "", Foglio1!$H$11 + C61*10^-3, NA()) -> -74.51867947 | E61: 496 | F61: 6.206575927 | G61: =IF(Foglio1!$C$12 <> "", 8.314472*Foglio1!$C$12*Foglio2!F61, NA()) ->  | H61: =IF(Foglio1!$H$12 <> "", Foglio1!$H$12 + G61*10^-3, NA()) ->  | I61: 496 | J61: 6.206575927 | K61: =IF(Foglio1!$C$13 <> "", 8.314472*Foglio1!$C$13*Foglio2!J61, NA()) ->  | L61: =IF(Foglio1!$H$13 <> "", Foglio1!$H$13 + K61*10^-3, NA()) ->  | M61: 496 | N61: 6.206575927 | O61: =IF(Foglio1!$C$14 <> "", 8.314472*Foglio1!$C$14*Foglio2!N61, NA()) ->  | P61: =IF(Foglio1!$H$14 <> "", Foglio1!$H$14 + O61*10^-3, NA()) ->  | Q61: 496 | R61: 6.206575927 | S61: =IF(Foglio1!$C$15 <> "", 8.314472*Foglio1!$C$15*Foglio2!R61, NA()) ->  | T61: =IF(Foglio1!$H$15 <> "", Foglio1!$H$15 + S61*10^-3, NA()) -> 
A62: 505 | B62: 6.224558429 | C62: =IF(Foglio1!$C$11 <> "", 8.314472*Foglio1!$C$11*Foglio2!B62, NA()) -> 15526.17503 | D62: =IF(Foglio1!$H$11 <> "", Foglio1!$H$11 + C62*10^-3, NA()) -> -74.47382497 | E62: 505 | F62: 6.224558429 | G62: =IF(Foglio1!$C$12 <> "", 8.314472*Foglio1!$C$12*Foglio2!F62, NA()) ->  | H62: =IF(Foglio1!$H$12 <> "", Foglio1!$H$12 + G62*10^-3, NA()) ->  | I62: 505 | J62: 6.224558429 | K62: =IF(Foglio1!$C$13 <> "", 8.314472*Foglio1!$C$13*Foglio2!J62, NA()) ->  | L62: =IF(Foglio1!$H$13 <> "", Foglio1!$H$13 + K62*10^-3, NA()) ->  | M62: 505 | N62: 6.224558429 | O62: =IF(Foglio1!$C$14 <> "", 8.314472*Foglio1!$C$14*Foglio2!N62, NA()) ->  | P62: =IF(Foglio1!$H$14 <> "", Foglio1!$H$14 + O62*10^-3, NA()) ->  | Q62: 505 | R62: 6.224558429 | S62: =IF(Foglio1!$C$15 <> "", 8.314472*Foglio1!$C$15*Foglio2!R62, NA()) ->  | T62: =IF(Foglio1!$H$15 <> "", Foglio1!$H$15 + S62*10^-3, NA()) -> 
A63: 514 | B63: 6.242223265 | C63: =IF(Foglio1!$C$11 <> "", 8.314472*Foglio1!$C$11*Foglio2!B63, NA()) -> 15570.23717 | D63: =IF(Foglio1!$H$11 <> "", Foglio1!$H$11 + C63*10^-3, NA()) -> -74.42976283 | E63: 514 | F63: 6.242223265 | G63: =IF(Foglio1!$C$12 <> "", 8.314472*Foglio1!$C$12*Foglio2!F63, NA()) ->  | H63: =IF(Foglio1!$H$12 <> "", Foglio1!$H$12 + G63*10^-3, NA()) ->  | I63: 514 | J63: 6.242223265 | K63: =IF(Foglio1!$C$13 <> "", 8.314472*Foglio1!$C$13*Foglio2!J63, NA()) ->  | L63: =IF(Foglio1!$H$13 <> "", Foglio1!$H$13 + K63*10^-3, NA()) ->  | M63: 514 | N63: 6.242223265 | O63: =IF(Foglio1!$C$14 <> "", 8.314472*Foglio1!$C$14*Foglio2!N63, NA()) ->  | P63: =IF(Foglio1!$H$14 <> "", Foglio1!$H$14 + O63*10^-3, NA()) ->  | Q63: 514 | R63: 6.242223265 | S63: =IF(Foglio1!$C$15 <> "", 8.314472*Foglio1!$C$15*Foglio2!R63, NA()) ->  | T63: =IF(Foglio1!$H$15 <> "", Foglio1!$H$15 + S63*10^-3, NA()) -> 
A64: 523 | B64: 6.259581464 | C64: =IF(Foglio1!$C$11 <> "", 8.314472*Foglio1!$C$11*Foglio2!B64, NA()) -> 15613.53444 | D64: =IF(Foglio1!$H$11 <> "", Foglio1!$H$11 + C64*10^-3, NA()) -> -74.38646556 | E64: 523 | F64: 6.259581464 | G64: =IF(Foglio1!$C$12 <> "", 8.314472*Foglio1!$C$12*Foglio2!F64, NA()) ->  | H64: =IF(Foglio1!$H$12 <> "", Foglio1!$H$12 + G64*10^-3, NA()) ->  | I64: 523 | J64: 6.259581464 | K64: =IF(Foglio1!$C$13 <> "", 8.314472*Foglio1!$C$13*Foglio2!J64, NA()) ->  | L64: =IF(Foglio1!$H$13 <> "", Foglio1!$H$13 + K64*10^-3, NA()) ->  | M64: 523 | N64: 6.259581464 | O64: =IF(Foglio1!$C$14 <> "", 8.314472*Foglio1!$C$14*Foglio2!N64, NA()) ->  | P64: =IF(Foglio1!$H$14 <> "", Foglio1!$H$14 + O64*10^-3, NA()) ->  | Q64: 523 | R64: 6.259581464 | S64: =IF(Foglio1!$C$15 <> "", 8.314472*Foglio1!$C$15*Foglio2!R64, NA()) ->  | T64: =IF(Foglio1!$H$15 <> "", Foglio1!$H$15 + S64*10^-3, NA()) -> 
A65: 532 | B65: 6.276643489 | C65: =IF(Foglio1!$C$11 <> "", 8.314472*Foglio1!$C$11*Foglio2!B65, NA()) -> 15656.09296 | D65: =IF(Foglio1!$H$11 <> "", Foglio1!$H$11 + C65*10^-3, NA()) -> -74.34390704 | E65: 532 | F65: 6.276643489 | G65: =IF(Foglio1!$C$12 <> "", 8.314472*Foglio1!$C$12*Foglio2!F65, NA()) ->  | H65: =IF(Foglio1!$H$12 <> "", Foglio1!$H$12 + G65*10^-3, NA()) ->  | I65: 532 | J65: 6.276643489 | K65: =IF(Foglio1!$C$13 <> "", 8.314472*Foglio1!$C$13*Foglio2!J65, NA()) ->  | L65: =IF(Foglio1!$H$13 <> "", Foglio1!$H$13 + K65*10^-3, NA()) ->  | M65: 532 | N65: 6.276643489 | O65: =IF(Foglio1!$C$14 <> "", 8.314472*Foglio1!$C$14*Foglio2!N65, NA()) ->  | P65: =IF(Foglio1!$H$14 <> "", Foglio1!$H$14 + O65*10^-3, NA()) ->  | Q65: 532 | R65: 6.276643489 | S65: =IF(Foglio1!$C$15 <> "", 8.314472*Foglio1!$C$15*Foglio2!R65, NA()) ->  | T65: =IF(Foglio1!$H$15 <> "", Foglio1!$H$15 + S65*10^-3, NA()) -> 
A66: 541 | B66: 6.293419279 | C66: =IF(Foglio1!$C$11 <> "", 8.314472*Foglio1!$C$11*Foglio2!B66, NA()) -> 15697.93751 | D66: =IF(Foglio1!$H$11 <> "", Foglio1!$H$11 + C66*10^-3, NA()) -> -74.30206249 | E66: 541 | F66: 6.293419279 | G66: =IF(Foglio1!$C$12 <> "", 8.314472*Foglio1!$C$12*Foglio2!F66, NA()) ->  | H66: =IF(Foglio1!$H$12 <> "", Foglio1!$H$12 + G66*10^-3, NA()) ->  | I66: 541 | J66: 6.293419279 | K66: =IF(Foglio1!$C$13 <> "", 8.314472*Foglio1!$C$13*Foglio2!J66, NA()) ->  | L66: =IF(Foglio1!$H$13 <> "", Foglio1!$H$13 + K66*10^-3, NA()) ->  | M66: 541 | N66: 6.293419279 | O66: =IF(Foglio1!$C$14 <> "", 8.314472*Foglio1!$C$14*Foglio2!N66, NA()) ->  | P66: =IF(Foglio1!$H$14 <> "", Foglio1!$H$14 + O66*10^-3, NA()) ->  | Q66: 541 | R66: 6.293419279 | S66: =IF(Foglio1!$C$15 <> "", 8.314472*Foglio1!$C$15*Foglio2!R66, NA()) ->  | T66: =IF(Foglio1!$H$15 <> "", Foglio1!$H$15 + S66*10^-3, NA()) -> 
A67: 550 | B67: =LN(A67) -> 6.309918278 | C67: =IF(Foglio1!$C$11 <> "", 8.314472*Foglio1!$C$11*Foglio2!B67, NA()) -> 15739.09165 | D67: =IF(Foglio1!$H$11 <> "", Foglio1!$H$11 + C67*10^-3, NA()) -> -74.26090835 | E67: 550 | F67: =LN(E67) -> 6.309918278 | G67: =IF(Foglio1!$C$12 <> "", 8.314472*Foglio1!$C$12*Foglio2!F67, NA()) ->  | H67: =IF(Foglio1!$H$12 <> "", Foglio1!$H$12 + G67*10^-3, NA()) ->  | I67: 550 | J67: =LN(I67) -> 6.309918278 | K67: =IF(Foglio1!$C$13 <> "", 8.314472*Foglio1!$C$13*Foglio2!J67, NA()) ->  | L67: =IF(Foglio1!$H$13 <> "", Foglio1!$H$13 + K67*10^-3, NA()) ->  | M67: 550 | N67: =LN(M67) -> 6.309918278 | O67: =IF(Foglio1!$C$14 <> "", 8.314472*Foglio1!$C$14*Foglio2!N67, NA()) ->  | P67: =IF(Foglio1!$H$14 <> "", Foglio1!$H$14 + O67*10^-3, NA()) ->  | Q67: 550 | R67: =LN(Q67) -> 6.309918278 | S67: =IF(Foglio1!$C$15 <> "", 8.314472*Foglio1!$C$15*Foglio2!R67, NA()) ->  | T67: =IF(Foglio1!$H$15 <> "", Foglio1!$H$15 + S67*10^-3, NA()) -> 
A68: 559 | B68: 6.326149473 | C68: =IF(Foglio1!$C$11 <> "", 8.314472*Foglio1!$C$11*Foglio2!B68, NA()) -> 15779.5778 | D68: =IF(Foglio1!$H$11 <> "", Foglio1!$H$11 + C68*10^-3, NA()) -> -74.2204222 | E68: 559 | F68: 6.326149473 | G68: =IF(Foglio1!$C$12 <> "", 8.314472*Foglio1!$C$12*Foglio2!F68, NA()) ->  | H68: =IF(Foglio1!$H$12 <> "", Foglio1!$H$12 + G68*10^-3, NA()) ->  | I68: 559 | J68: 6.326149473 | K68: =IF(Foglio1!$C$13 <> "", 8.314472*Foglio1!$C$13*Foglio2!J68, NA()) ->  | L68: =IF(Foglio1!$H$13 <> "", Foglio1!$H$13 + K68*10^-3, NA()) ->  | M68: 559 | N68: 6.326149473 | O68: =IF(Foglio1!$C$14 <> "", 8.314472*Foglio1!$C$14*Foglio2!N68, NA()) ->  | P68: =IF(Foglio1!$H$14 <> "", Foglio1!$H$14 + O68*10^-3, NA()) ->  | Q68: 559 | R68: 6.326149473 | S68: =IF(Foglio1!$C$15 <> "", 8.314472*Foglio1!$C$15*Foglio2!R68, NA()) ->  | T68: =IF(Foglio1!$H$15 <> "", Foglio1!$H$15 + S68*10^-3, NA()) -> 
A69: 568 | B69: 6.342121419 | C69: =IF(Foglio1!$C$11 <> "", 8.314472*Foglio1!$C$11*Foglio2!B69, NA()) -> 15819.41729 | D69: =IF(Foglio1!$H$11 <> "", Foglio1!$H$11 + C69*10^-3, NA()) -> -74.18058271 | E69: 568 | F69: 6.342121419 | G69: =IF(Foglio1!$C$12 <> "", 8.314472*Foglio1!$C$12*Foglio2!F69, NA()) ->  | H69: =IF(Foglio1!$H$12 <> "", Foglio1!$H$12 + G69*10^-3, NA()) ->  | I69: 568 | J69: 6.342121419 | K69: =IF(Foglio1!$C$13 <> "", 8.314472*Foglio1!$C$13*Foglio2!J69, NA()) ->  | L69: =IF(Foglio1!$H$13 <> "", Foglio1!$H$13 + K69*10^-3, NA()) ->  | M69: 568 | N69: 6.342121419 | O69: =IF(Foglio1!$C$14 <> "", 8.314472*Foglio1!$C$14*Foglio2!N69, NA()) ->  | P69: =IF(Foglio1!$H$14 <> "", Foglio1!$H$14 + O69*10^-3, NA()) ->  | Q69: 568 | R69: 6.342121419 | S69: =IF(Foglio1!$C$15 <> "", 8.314472*Foglio1!$C$15*Foglio2!R69, NA()) ->  | T69: =IF(Foglio1!$H$15 <> "", Foglio1!$H$15 + S69*10^-3, NA()) -> 
A70: 577 | B70: 6.357842267 | C70: =IF(Foglio1!$C$11 <> "", 8.314472*Foglio1!$C$11*Foglio2!B70, NA()) -> 15858.63045 | D70: =IF(Foglio1!$H$11 <> "", Foglio1!$H$11 + C70*10^-3, NA()) -> -74.14136955 | E70: 577 | F70: 6.357842267 | G70: =IF(Foglio1!$C$12 <> "", 8.314472*Foglio1!$C$12*Foglio2!F70, NA()) ->  | H70: =IF(Foglio1!$H$12 <> "", Foglio1!$H$12 + G70*10^-3, NA()) ->  | I70: 577 | J70: 6.357842267 | K70: =IF(Foglio1!$C$13 <> "", 8.314472*Foglio1!$C$13*Foglio2!J70, NA()) ->  | L70: =IF(Foglio1!$H$13 <> "", Foglio1!$H$13 + K70*10^-3, NA()) ->  | M70: 577 | N70: 6.357842267 | O70: =IF(Foglio1!$C$14 <> "", 8.314472*Foglio1!$C$14*Foglio2!N70, NA()) ->  | P70: =IF(Foglio1!$H$14 <> "", Foglio1!$H$14 + O70*10^-3, NA()) ->  | Q70: 577 | R70: 6.357842267 | S70: =IF(Foglio1!$C$15 <> "", 8.314472*Foglio1!$C$15*Foglio2!R70, NA()) ->  | T70: =IF(Foglio1!$H$15 <> "", Foglio1!$H$15 + S70*10^-3, NA()) -> 
A71: 586 | B71: 6.37331979 | C71: =IF(Foglio1!$C$11 <> "", 8.314472*Foglio1!$C$11*Foglio2!B71, NA()) -> 15897.23668 | D71: =IF(Foglio1!$H$11 <> "", Foglio1!$H$11 + C71*10^-3, NA()) -> -74.10276332 | E71: 586 | F71: 6.37331979 | G71: =IF(Foglio1!$C$12 <> "", 8.314472*Foglio1!$C$12*Foglio2!F71, NA()) ->  | H71: =IF(Foglio1!$H$12 <> "", Foglio1!$H$12 + G71*10^-3, NA()) ->  | I71: 586 | J71: 6.37331979 | K71: =IF(Foglio1!$C$13 <> "", 8.314472*Foglio1!$C$13*Foglio2!J71, NA()) ->  | L71: =IF(Foglio1!$H$13 <> "", Foglio1!$H$13 + K71*10^-3, NA()) ->  | M71: 586 | N71: 6.37331979 | O71: =IF(Foglio1!$C$14 <> "", 8.314472*Foglio1!$C$14*Foglio2!N71, NA()) ->  | P71: =IF(Foglio1!$H$14 <> "", Foglio1!$H$14 + O71*10^-3, NA()) ->  | Q71: 586 | R71: 6.37331979 | S71: =IF(Foglio1!$C$15 <> "", 8.314472*Foglio1!$C$15*Foglio2!R71, NA()) ->  | T71: =IF(Foglio1!$H$15 <> "", Foglio1!$H$15 + S71*10^-3, NA()) -> 
A72: 595 | B72: 6.388561406 | C72: =IF(Foglio1!$C$11 <> "", 8.314472*Foglio1!$C$11*Foglio2!B72, NA()) -> 15935.25448 | D72: =IF(Foglio1!$H$11 <> "", Foglio1!$H$11 + C72*10^-3, NA()) -> -74.06474552 | E72: 595 | F72: 6.388561406 | G72: =IF(Foglio1!$C$12 <> "", 8.314472*Foglio1!$C$12*Foglio2!F72, NA()) ->  | H72: =IF(Foglio1!$H$12 <> "", Foglio1!$H$12 + G72*10^-3, NA()) ->  | I72: 595 | J72: 6.388561406 | K72: =IF(Foglio1!$C$13 <> "", 8.314472*Foglio1!$C$13*Foglio2!J72, NA()) ->  | L72: =IF(Foglio1!$H$13 <> "", Foglio1!$H$13 + K72*10^-3, NA()) ->  | M72: 595 | N72: 6.388561406 | O72: =IF(Foglio1!$C$14 <> "", 8.314472*Foglio1!$C$14*Foglio2!N72, NA()) ->  | P72: =IF(Foglio1!$H$14 <> "", Foglio1!$H$14 + O72*10^-3, NA()) ->  | Q72: 595 | R72: 6.388561406 | S72: =IF(Foglio1!$C$15 <> "", 8.314472*Foglio1!$C$15*Foglio2!R72, NA()) ->  | T72: =IF(Foglio1!$H$15 <> "", Foglio1!$H$15 + S72*10^-3, NA()) -> 
A73: 604 | B73: 6.403574198 | C73: =IF(Foglio1!$C$11 <> "", 8.314472*Foglio1!$C$11*Foglio2!B73, NA()) -> 15972.70151 | D73: =IF(Foglio1!$H$11 <> "", Foglio1!$H$11 + C73*10^-3, NA()) -> -74.02729849 | E73: 604 | F73: 6.403574198 | G73: =IF(Foglio1!$C$12 <> "", 8.314472*Foglio1!$C$12*Foglio2!F73, NA()) ->  | H73: =IF(Foglio1!$H$12 <> "", Foglio1!$H$12 + G73*10^-3, NA()) ->  | I73: 604 | J73: 6.403574198 | K73: =IF(Foglio1!$C$13 <> "", 8.314472*Foglio1!$C$13*Foglio2!J73, NA()) ->  | L73: =IF(Foglio1!$H$13 <> "", Foglio1!$H$13 + K73*10^-3, NA()) ->  | M73: 604 | N73: 6.403574198 | O73: =IF(Foglio1!$C$14 <> "", 8.314472*Foglio1!$C$14*Foglio2!N73, NA()) ->  | P73: =IF(Foglio1!$H$14 <> "", Foglio1!$H$14 + O73*10^-3, NA()) ->  | Q73: 604 | R73: 6.403574198 | S73: =IF(Foglio1!$C$15 <> "", 8.314472*Foglio1!$C$15*Foglio2!R73, NA()) ->  | T73: =IF(Foglio1!$H$15 <> "", Foglio1!$H$15 + S73*10^-3, NA()) -> 
A74: 613 | B74: 6.418364936 | C74: =IF(Foglio1!$C$11 <> "", 8.314472*Foglio1!$C$11*Foglio2!B74, NA()) -> 16009.59466 | D74: =IF(Foglio1!$H$11 <> "", Foglio1!$H$11 + C74*10^-3, NA()) -> -73.99040534 | E74: 613 | F74: 6.418364936 | G74: =IF(Foglio1!$C$12 <> "", 8.314472*Foglio1!$C$12*Foglio2!F74, NA()) ->  | H74: =IF(Foglio1!$H$12 <> "", Foglio1!$H$12 + G74*10^-3, NA()) ->  | I74: 613 | J74: 6.418364936 | K74: =IF(Foglio1!$C$13 <> "", 8.314472*Foglio1!$C$13*Foglio2!J74, NA()) ->  | L74: =IF(Foglio1!$H$13 <> "", Foglio1!$H$13 + K74*10^-3, NA()) ->  | M74: 613 | N74: 6.418364936 | O74: =IF(Foglio1!$C$14 <> "", 8.314472*Foglio1!$C$14*Foglio2!N74, NA()) ->  | P74: =IF(Foglio1!$H$14 <> "", Foglio1!$H$14 + O74*10^-3, NA()) ->  | Q74: 613 | R74: 6.418364936 | S74: =IF(Foglio1!$C$15 <> "", 8.314472*Foglio1!$C$15*Foglio2!R74, NA()) ->  | T74: =IF(Foglio1!$H$15 <> "", Foglio1!$H$15 + S74*10^-3, NA()) -> 
A75: 622 | B75: 6.432940093 | C75: =IF(Foglio1!$C$11 <> "", 8.314472*Foglio1!$C$11*Foglio2!B75, NA()) -> 16045.95008 | D75: =IF(Foglio1!$H$11 <> "", Foglio1!$H$11 + C75*10^-3, NA()) -> -73.95404992 | E75: 622 | F75: 6.432940093 | G75: =IF(Foglio1!$C$12 <> "", 8.314472*Foglio1!$C$12*Foglio2!F75, NA()) ->  | H75: =IF(Foglio1!$H$12 <> "", Foglio1!$H$12 + G75*10^-3, NA()) ->  | I75: 622 | J75: 6.432940093 | K75: =IF(Foglio1!$C$13 <> "", 8.314472*Foglio1!$C$13*Foglio2!J75, NA()) ->  | L75: =IF(Foglio1!$H$13 <> "", Foglio1!$H$13 + K75*10^-3, NA()) ->  | M75: 622 | N75: 6.432940093 | O75: =IF(Foglio1!$C$14 <> "", 8.314472*Foglio1!$C$14*Foglio2!N75, NA()) ->  | P75: =IF(Foglio1!$H$14 <> "", Foglio1!$H$14 + O75*10^-3, NA()) ->  | Q75: 622 | R75: 6.432940093 | S75: =IF(Foglio1!$C$15 <> "", 8.314472*Foglio1!$C$15*Foglio2!R75, NA()) ->  | T75: =IF(Foglio1!$H$15 <> "", Foglio1!$H$15 + S75*10^-3, NA()) -> 
A76: 631 | B76: 6.447305863 | C76: =IF(Foglio1!$C$11 <> "", 8.314472*Foglio1!$C$11*Foglio2!B76, NA()) -> 16081.78322 | D76: =IF(Foglio1!$H$11 <> "", Foglio1!$H$11 + C76*10^-3, NA()) -> -73.91821678 | E76: 631 | F76: 6.447305863 | G76: =IF(Foglio1!$C$12 <> "", 8.314472*Foglio1!$C$12*Foglio2!F76, NA()) ->  | H76: =IF(Foglio1!$H$12 <> "", Foglio1!$H$12 + G76*10^-3, NA()) ->  | I76: 631 | J76: 6.447305863 | K76: =IF(Foglio1!$C$13 <> "", 8.314472*Foglio1!$C$13*Foglio2!J76, NA()) ->  | L76: =IF(Foglio1!$H$13 <> "", Foglio1!$H$13 + K76*10^-3, NA()) ->  | M76: 631 | N76: 6.447305863 | O76: =IF(Foglio1!$C$14 <> "", 8.314472*Foglio1!$C$14*Foglio2!N76, NA()) ->  | P76: =IF(Foglio1!$H$14 <> "", Foglio1!$H$14 + O76*10^-3, NA()) ->  | Q76: 631 | R76: 6.447305863 | S76: =IF(Foglio1!$C$15 <> "", 8.314472*Foglio1!$C$15*Foglio2!R76, NA()) ->  | T76: =IF(Foglio1!$H$15 <> "", Foglio1!$H$15 + S76*10^-3, NA()) -> 
A77: 640 | B77: 6.461468176 | C77: =IF(Foglio1!$C$11 <> "", 8.314472*Foglio1!$C$11*Foglio2!B77, NA()) -> 16117.10887 | D77: =IF(Foglio1!$H$11 <> "", Foglio1!$H$11 + C77*10^-3, NA()) -> -73.88289113 | E77: 640 | F77: 6.461468176 | G77: =IF(Foglio1!$C$12 <> "", 8.314472*Foglio1!$C$12*Foglio2!F77, NA()) ->  | H77: =IF(Foglio1!$H$12 <> "", Foglio1!$H$12 + G77*10^-3, NA()) ->  | I77: 640 | J77: 6.461468176 | K77: =IF(Foglio1!$C$13 <> "", 8.314472*Foglio1!$C$13*Foglio2!J77, NA()) ->  | L77: =IF(Foglio1!$H$13 <> "", Foglio1!$H$13 + K77*10^-3, NA()) ->  | M77: 640 | N77: 6.461468176 | O77: =IF(Foglio1!$C$14 <> "", 8.314472*Foglio1!$C$14*Foglio2!N77, NA()) ->  | P77: =IF(Foglio1!$H$14 <> "", Foglio1!$H$14 + O77*10^-3, NA()) ->  | Q77: 640 | R77: 6.461468176 | S77: =IF(Foglio1!$C$15 <> "", 8.314472*Foglio1!$C$15*Foglio2!R77, NA()) ->  | T77: =IF(Foglio1!$H$15 <> "", Foglio1!$H$15 + S77*10^-3, NA()) -> 
A78: 649 | B78: 6.475432717 | C78: =IF(Foglio1!$C$11 <> "", 8.314472*Foglio1!$C$11*Foglio2!B78, NA()) -> 16151.9412 | D78: =IF(Foglio1!$H$11 <> "", Foglio1!$H$11 + C78*10^-3, NA()) -> -73.8480588 | E78: 649 | F78: 6.475432717 | G78: =IF(Foglio1!$C$12 <> "", 8.314472*Foglio1!$C$12*Foglio2!F78, NA()) ->  | H78: =IF(Foglio1!$H$12 <> "", Foglio1!$H$12 + G78*10^-3, NA()) ->  | I78: 649 | J78: 6.475432717 | K78: =IF(Foglio1!$C$13 <> "", 8.314472*Foglio1!$C$13*Foglio2!J78, NA()) ->  | L78: =IF(Foglio1!$H$13 <> "", Foglio1!$H$13 + K78*10^-3, NA()) ->  | M78: 649 | N78: 6.475432717 | O78: =IF(Foglio1!$C$14 <> "", 8.314472*Foglio1!$C$14*Foglio2!N78, NA()) ->  | P78: =IF(Foglio1!$H$14 <> "", Foglio1!$H$14 + O78*10^-3, NA()) ->  | Q78: 649 | R78: 6.475432717 | S78: =IF(Foglio1!$C$15 <> "", 8.314472*Foglio1!$C$15*Foglio2!R78, NA()) ->  | T78: =IF(Foglio1!$H$15 <> "", Foglio1!$H$15 + S78*10^-3, NA()) -> 
A79: 658 | B79: 6.489204931 | C79: =IF(Foglio1!$C$11 <> "", 8.314472*Foglio1!$C$11*Foglio2!B79, NA()) -> 16186.29381 | D79: =IF(Foglio1!$H$11 <> "", Foglio1!$H$11 + C79*10^-3, NA()) -> -73.81370619 | E79: 658 | F79: 6.489204931 | G79: =IF(Foglio1!$C$12 <> "", 8.314472*Foglio1!$C$12*Foglio2!F79, NA()) ->  | H79: =IF(Foglio1!$H$12 <> "", Foglio1!$H$12 + G79*10^-3, NA()) ->  | I79: 658 | J79: 6.489204931 | K79: =IF(Foglio1!$C$13 <> "", 8.314472*Foglio1!$C$13*Foglio2!J79, NA()) ->  | L79: =IF(Foglio1!$H$13 <> "", Foglio1!$H$13 + K79*10^-3, NA()) ->  | M79: 658 | N79: 6.489204931 | O79: =IF(Foglio1!$C$14 <> "", 8.314472*Foglio1!$C$14*Foglio2!N79, NA()) ->  | P79: =IF(Foglio1!$H$14 <> "", Foglio1!$H$14 + O79*10^-3, NA()) ->  | Q79: 658 | R79: 6.489204931 | S79: =IF(Foglio1!$C$15 <> "", 8.314472*Foglio1!$C$15*Foglio2!R79, NA()) ->  | T79: =IF(Foglio1!$H$15 <> "", Foglio1!$H$15 + S79*10^-3, NA()) -> 
A80: 667 | B80: 6.502790046 | C80: =IF(Foglio1!$C$11 <> "", 8.314472*Foglio1!$C$11*Foglio2!B80, NA()) -> 16220.17973 | D80: =IF(Foglio1!$H$11 <> "", Foglio1!$H$11 + C80*10^-3, NA()) -> -73.77982027 | E80: 667 | F80: 6.502790046 | G80: =IF(Foglio1!$C$12 <> "", 8.314472*Foglio1!$C$12*Foglio2!F80, NA()) ->  | H80: =IF(Foglio1!$H$12 <> "", Foglio1!$H$12 + G80*10^-3, NA()) ->  | I80: 667 | J80: 6.502790046 | K80: =IF(Foglio1!$C$13 <> "", 8.314472*Foglio1!$C$13*Foglio2!J80, NA()) ->  | L80: =IF(Foglio1!$H$13 <> "", Foglio1!$H$13 + K80*10^-3, NA()) ->  | M80: 667 | N80: 6.502790046 | O80: =IF(Foglio1!$C$14 <> "", 8.314472*Foglio1!$C$14*Foglio2!N80, NA()) ->  | P80: =IF(Foglio1!$H$14 <> "", Foglio1!$H$14 + O80*10^-3, NA()) ->  | Q80: 667 | R80: 6.502790046 | S80: =IF(Foglio1!$C$15 <> "", 8.314472*Foglio1!$C$15*Foglio2!R80, NA()) ->  | T80: =IF(Foglio1!$H$15 <> "", Foglio1!$H$15 + S80*10^-3, NA()) -> 
A81: 676 | B81: 6.516193076 | C81: =IF(Foglio1!$C$11 <> "", 8.314472*Foglio1!$C$11*Foglio2!B81, NA()) -> 16253.61146 | D81: =IF(Foglio1!$H$11 <> "", Foglio1!$H$11 + C81*10^-3, NA()) -> -73.74638854 | E81: 676 | F81: 6.516193076 | G81: =IF(Foglio1!$C$12 <> "", 8.314472*Foglio1!$C$12*Foglio2!F81, NA()) ->  | H81: =IF(Foglio1!$H$12 <> "", Foglio1!$H$12 + G81*10^-3, NA()) ->  | I81: 676 | J81: 6.516193076 | K81: =IF(Foglio1!$C$13 <> "", 8.314472*Foglio1!$C$13*Foglio2!J81, NA()) ->  | L81: =IF(Foglio1!$H$13 <> "", Foglio1!$H$13 + K81*10^-3, NA()) ->  | M81: 676 | N81: 6.516193076 | O81: =IF(Foglio1!$C$14 <> "", 8.314472*Foglio1!$C$14*Foglio2!N81, NA()) ->  | P81: =IF(Foglio1!$H$14 <> "", Foglio1!$H$14 + O81*10^-3, NA()) ->  | Q81: 676 | R81: 6.516193076 | S81: =IF(Foglio1!$C$15 <> "", 8.314472*Foglio1!$C$15*Foglio2!R81, NA()) ->  | T81: =IF(Foglio1!$H$15 <> "", Foglio1!$H$15 + S81*10^-3, NA()) -> 
A82: 685 | B82: 6.529418838 | C82: =IF(Foglio1!$C$11 <> "", 8.314472*Foglio1!$C$11*Foglio2!B82, NA()) -> 16286.60103 | D82: =IF(Foglio1!$H$11 <> "", Foglio1!$H$11 + C82*10^-3, NA()) -> -73.71339897 | E82: 685 | F82: 6.529418838 | G82: =IF(Foglio1!$C$12 <> "", 8.314472*Foglio1!$C$12*Foglio2!F82, NA()) ->  | H82: =IF(Foglio1!$H$12 <> "", Foglio1!$H$12 + G82*10^-3, NA()) ->  | I82: 685 | J82: 6.529418838 | K82: =IF(Foglio1!$C$13 <> "", 8.314472*Foglio1!$C$13*Foglio2!J82, NA()) ->  | L82: =IF(Foglio1!$H$13 <> "", Foglio1!$H$13 + K82*10^-3, NA()) ->  | M82: 685 | N82: 6.529418838 | O82: =IF(Foglio1!$C$14 <> "", 8.314472*Foglio1!$C$14*Foglio2!N82, NA()) ->  | P82: =IF(Foglio1!$H$14 <> "", Foglio1!$H$14 + O82*10^-3, NA()) ->  | Q82: 685 | R82: 6.529418838 | S82: =IF(Foglio1!$C$15 <> "", 8.314472*Foglio1!$C$15*Foglio2!R82, NA()) ->  | T82: =IF(Foglio1!$H$15 <> "", Foglio1!$H$15 + S82*10^-3, NA()) -> 
A83: 694 | B83: 6.542471961 | C83: =IF(Foglio1!$C$11 <> "", 8.314472*Foglio1!$C$11*Foglio2!B83, NA()) -> 16319.15998 | D83: =IF(Foglio1!$H$11 <> "", Foglio1!$H$11 + C83*10^-3, NA()) -> -73.68084002 | E83: 694 | F83: 6.542471961 | G83: =IF(Foglio1!$C$12 <> "", 8.314472*Foglio1!$C$12*Foglio2!F83, NA()) ->  | H83: =IF(Foglio1!$H$12 <> "", Foglio1!$H$12 + G83*10^-3, NA()) ->  | I83: 694 | J83: 6.542471961 | K83: =IF(Foglio1!$C$13 <> "", 8.314472*Foglio1!$C$13*Foglio2!J83, NA()) ->  | L83: =IF(Foglio1!$H$13 <> "", Foglio1!$H$13 + K83*10^-3, NA()) ->  | M83: 694 | N83: 6.542471961 | O83: =IF(Foglio1!$C$14 <> "", 8.314472*Foglio1!$C$14*Foglio2!N83, NA()) ->  | P83: =IF(Foglio1!$H$14 <> "", Foglio1!$H$14 + O83*10^-3, NA()) ->  | Q83: 694 | R83: 6.542471961 | S83: =IF(Foglio1!$C$15 <> "", 8.314472*Foglio1!$C$15*Foglio2!R83, NA()) ->  | T83: =IF(Foglio1!$H$15 <> "", Foglio1!$H$15 + S83*10^-3, NA()) -> 
A84: 703 | B84: 6.555356892 | C84: =IF(Foglio1!$C$11 <> "", 8.314472*Foglio1!$C$11*Foglio2!B84, NA()) -> 16351.2994 | D84: =IF(Foglio1!$H$11 <> "", Foglio1!$H$11 + C84*10^-3, NA()) -> -73.6487006 | E84: 703 | F84: 6.555356892 | G84: =IF(Foglio1!$C$12 <> "", 8.314472*Foglio1!$C$12*Foglio2!F84, NA()) ->  | H84: =IF(Foglio1!$H$12 <> "", Foglio1!$H$12 + G84*10^-3, NA()) ->  | I84: 703 | J84: 6.555356892 | K84: =IF(Foglio1!$C$13 <> "", 8.314472*Foglio1!$C$13*Foglio2!J84, NA()) ->  | L84: =IF(Foglio1!$H$13 <> "", Foglio1!$H$13 + K84*10^-3, NA()) ->  | M84: 703 | N84: 6.555356892 | O84: =IF(Foglio1!$C$14 <> "", 8.314472*Foglio1!$C$14*Foglio2!N84, NA()) ->  | P84: =IF(Foglio1!$H$14 <> "", Foglio1!$H$14 + O84*10^-3, NA()) ->  | Q84: 703 | R84: 6.555356892 | S84: =IF(Foglio1!$C$15 <> "", 8.314472*Foglio1!$C$15*Foglio2!R84, NA()) ->  | T84: =IF(Foglio1!$H$15 <> "", Foglio1!$H$15 + S84*10^-3, NA()) -> 
A85: 712 | B85: 6.568077911 | C85: =IF(Foglio1!$C$11 <> "", 8.314472*Foglio1!$C$11*Foglio2!B85, NA()) -> 16383.02997 | D85: =IF(Foglio1!$H$11 <> "", Foglio1!$H$11 + C85*10^-3, NA()) -> -73.61697003 | E85: 712 | F85: 6.568077911 | G85: =IF(Foglio1!$C$12 <> "", 8.314472*Foglio1!$C$12*Foglio2!F85, NA()) ->  | H85: =IF(Foglio1!$H$12 <> "", Foglio1!$H$12 + G85*10^-3, NA()) ->  | I85: 712 | J85: 6.568077911 | K85: =IF(Foglio1!$C$13 <> "", 8.314472*Foglio1!$C$13*Foglio2!J85, NA()) ->  | L85: =IF(Foglio1!$H$13 <> "", Foglio1!$H$13 + K85*10^-3, NA()) ->  | M85: 712 | N85: 6.568077911 | O85: =IF(Foglio1!$C$14 <> "", 8.314472*Foglio1!$C$14*Foglio2!N85, NA()) ->  | P85: =IF(Foglio1!$H$14 <> "", Foglio1!$H$14 + O85*10^-3, NA()) ->  | Q85: 712 | R85: 6.568077911 | S85: =IF(Foglio1!$C$15 <> "", 8.314472*Foglio1!$C$15*Foglio2!R85, NA()) ->  | T85: =IF(Foglio1!$H$15 <> "", Foglio1!$H$15 + S85*10^-3, NA()) -> 
A86: 721 | B86: 6.580639137 | C86: =IF(Foglio1!$C$11 <> "", 8.314472*Foglio1!$C$11*Foglio2!B86, NA()) -> 16414.36195 | D86: =IF(Foglio1!$H$11 <> "", Foglio1!$H$11 + C86*10^-3, NA()) -> -73.58563805 | E86: 721 | F86: 6.580639137 | G86: =IF(Foglio1!$C$12 <> "", 8.314472*Foglio1!$C$12*Foglio2!F86, NA()) ->  | H86: =IF(Foglio1!$H$12 <> "", Foglio1!$H$12 + G86*10^-3, NA()) ->  | I86: 721 | J86: 6.580639137 | K86: =IF(Foglio1!$C$13 <> "", 8.314472*Foglio1!$C$13*Foglio2!J86, NA()) ->  | L86: =IF(Foglio1!$H$13 <> "", Foglio1!$H$13 + K86*10^-3, NA()) ->  | M86: 721 | N86: 6.580639137 | O86: =IF(Foglio1!$C$14 <> "", 8.314472*Foglio1!$C$14*Foglio2!N86, NA()) ->  | P86: =IF(Foglio1!$H$14 <> "", Foglio1!$H$14 + O86*10^-3, NA()) ->  | Q86: 721 | R86: 6.580639137 | S86: =IF(Foglio1!$C$15 <> "", 8.314472*Foglio1!$C$15*Foglio2!R86, NA()) ->  | T86: =IF(Foglio1!$H$15 <> "", Foglio1!$H$15 + S86*10^-3, NA()) -> 
A87: 730 | B87: 6.593044534 | C87: =IF(Foglio1!$C$11 <> "", 8.314472*Foglio1!$C$11*Foglio2!B87, NA()) -> 16445.30525 | D87: =IF(Foglio1!$H$11 <> "", Foglio1!$H$11 + C87*10^-3, NA()) -> -73.55469475 | E87: 730 | F87: 6.593044534 | G87: =IF(Foglio1!$C$12 <> "", 8.314472*Foglio1!$C$12*Foglio2!F87, NA()) ->  | H87: =IF(Foglio1!$H$12 <> "", Foglio1!$H$12 + G87*10^-3, NA()) ->  | I87: 730 | J87: 6.593044534 | K87: =IF(Foglio1!$C$13 <> "", 8.314472*Foglio1!$C$13*Foglio2!J87, NA()) ->  | L87: =IF(Foglio1!$H$13 <> "", Foglio1!$H$13 + K87*10^-3, NA()) ->  | M87: 730 | N87: 6.593044534 | O87: =IF(Foglio1!$C$14 <> "", 8.314472*Foglio1!$C$14*Foglio2!N87, NA()) ->  | P87: =IF(Foglio1!$H$14 <> "", Foglio1!$H$14 + O87*10^-3, NA()) ->  | Q87: 730 | R87: 6.593044534 | S87: =IF(Foglio1!$C$15 <> "", 8.314472*Foglio1!$C$15*Foglio2!R87, NA()) ->  | T87: =IF(Foglio1!$H$15 <> "", Foglio1!$H$15 + S87*10^-3, NA()) -> 
A88: 739 | B88: 6.605297921 | C88: =IF(Foglio1!$C$11 <> "", 8.314472*Foglio1!$C$11*Foglio2!B88, NA()) -> 16475.86938 | D88: =IF(Foglio1!$H$11 <> "", Foglio1!$H$11 + C88*10^-3, NA()) -> -73.52413062 | E88: 739 | F88: 6.605297921 | G88: =IF(Foglio1!$C$12 <> "", 8.314472*Foglio1!$C$12*Foglio2!F88, NA()) ->  | H88: =IF(Foglio1!$H$12 <> "", Foglio1!$H$12 + G88*10^-3, NA()) ->  | I88: 739 | J88: 6.605297921 | K88: =IF(Foglio1!$C$13 <> "", 8.314472*Foglio1!$C$13*Foglio2!J88, NA()) ->  | L88: =IF(Foglio1!$H$13 <> "", Foglio1!$H$13 + K88*10^-3, NA()) ->  | M88: 739 | N88: 6.605297921 | O88: =IF(Foglio1!$C$14 <> "", 8.314472*Foglio1!$C$14*Foglio2!N88, NA()) ->  | P88: =IF(Foglio1!$H$14 <> "", Foglio1!$H$14 + O88*10^-3, NA()) ->  | Q88: 739 | R88: 6.605297921 | S88: =IF(Foglio1!$C$15 <> "", 8.314472*Foglio1!$C$15*Foglio2!R88, NA()) ->  | T88: =IF(Foglio1!$H$15 <> "", Foglio1!$H$15 + S88*10^-3, NA()) -> 
A89: 748 | B89: 6.617402978 | C89: =IF(Foglio1!$C$11 <> "", 8.314472*Foglio1!$C$11*Foglio2!B89, NA()) -> 16506.06353 | D89: =IF(Foglio1!$H$11 <> "", Foglio1!$H$11 + C89*10^-3, NA()) -> -73.49393647 | E89: 748 | F89: 6.617402978 | G89: =IF(Foglio1!$C$12 <> "", 8.314472*Foglio1!$C$12*Foglio2!F89, NA()) ->  | H89: =IF(Foglio1!$H$12 <> "", Foglio1!$H$12 + G89*10^-3, NA()) ->  | I89: 748 | J89: 6.617402978 | K89: =IF(Foglio1!$C$13 <> "", 8.314472*Foglio1!$C$13*Foglio2!J89, NA()) ->  | L89: =IF(Foglio1!$H$13 <> "", Foglio1!$H$13 + K89*10^-3, NA()) ->  | M89: 748 | N89: 6.617402978 | O89: =IF(Foglio1!$C$14 <> "", 8.314472*Foglio1!$C$14*Foglio2!N89, NA()) ->  | P89: =IF(Foglio1!$H$14 <> "", Foglio1!$H$14 + O89*10^-3, NA()) ->  | Q89: 748 | R89: 6.617402978 | S89: =IF(Foglio1!$C$15 <> "", 8.314472*Foglio1!$C$15*Foglio2!R89, NA()) ->  | T89: =IF(Foglio1!$H$15 <> "", Foglio1!$H$15 + S89*10^-3, NA()) -> 
A90: 757 | B90: 6.629363253 | C90: =IF(Foglio1!$C$11 <> "", 8.314472*Foglio1!$C$11*Foglio2!B90, NA()) -> 16535.89654 | D90: =IF(Foglio1!$H$11 <> "", Foglio1!$H$11 + C90*10^-3, NA()) -> -73.46410346 | E90: 757 | F90: 6.629363253 | G90: =IF(Foglio1!$C$12 <> "", 8.314472*Foglio1!$C$12*Foglio2!F90, NA()) ->  | H90: =IF(Foglio1!$H$12 <> "", Foglio1!$H$12 + G90*10^-3, NA()) ->  | I90: 757 | J90: 6.629363253 | K90: =IF(Foglio1!$C$13 <> "", 8.314472*Foglio1!$C$13*Foglio2!J90, NA()) ->  | L90: =IF(Foglio1!$H$13 <> "", Foglio1!$H$13 + K90*10^-3, NA()) ->  | M90: 757 | N90: 6.629363253 | O90: =IF(Foglio1!$C$14 <> "", 8.314472*Foglio1!$C$14*Foglio2!N90, NA()) ->  | P90: =IF(Foglio1!$H$14 <> "", Foglio1!$H$14 + O90*10^-3, NA()) ->  | Q90: 757 | R90: 6.629363253 | S90: =IF(Foglio1!$C$15 <> "", 8.314472*Foglio1!$C$15*Foglio2!R90, NA()) ->  | T90: =IF(Foglio1!$H$15 <> "", Foglio1!$H$15 + S90*10^-3, NA()) -> 
A91: 766 | B91: 6.64118217 | C91: =IF(Foglio1!$C$11 <> "", 8.314472*Foglio1!$C$11*Foglio2!B91, NA()) -> 16565.37696 | D91: =IF(Foglio1!$H$11 <> "", Foglio1!$H$11 + C91*10^-3, NA()) -> -73.43462304 | E91: 766 | F91: 6.64118217 | G91: =IF(Foglio1!$C$12 <> "", 8.314472*Foglio1!$C$12*Foglio2!F91, NA()) ->  | H91: =IF(Foglio1!$H$12 <> "", Foglio1!$H$12 + G91*10^-3, NA()) ->  | I91: 766 | J91: 6.64118217 | K91: =IF(Foglio1!$C$13 <> "", 8.314472*Foglio1!$C$13*Foglio2!J91, NA()) ->  | L91: =IF(Foglio1!$H$13 <> "", Foglio1!$H$13 + K91*10^-3, NA()) ->  | M91: 766 | N91: 6.64118217 | O91: =IF(Foglio1!$C$14 <> "", 8.314472*Foglio1!$C$14*Foglio2!N91, NA()) ->  | P91: =IF(Foglio1!$H$14 <> "", Foglio1!$H$14 + O91*10^-3, NA()) ->  | Q91: 766 | R91: 6.64118217 | S91: =IF(Foglio1!$C$15 <> "", 8.314472*Foglio1!$C$15*Foglio2!R91, NA()) ->  | T91: =IF(Foglio1!$H$15 <> "", Foglio1!$H$15 + S91*10^-3, NA()) -> 
A92: 775 | B92: 6.652863029 | C92: =IF(Foglio1!$C$11 <> "", 8.314472*Foglio1!$C$11*Foglio2!B92, NA()) -> 16594.51301 | D92: =IF(Foglio1!$H$11 <> "", Foglio1!$H$11 + C92*10^-3, NA()) -> -73.40548699 | E92: 775 | F92: 6.652863029 | G92: =IF(Foglio1!$C$12 <> "", 8.314472*Foglio1!$C$12*Foglio2!F92, NA()) ->  | H92: =IF(Foglio1!$H$12 <> "", Foglio1!$H$12 + G92*10^-3, NA()) ->  | I92: 775 | J92: 6.652863029 | K92: =IF(Foglio1!$C$13 <> "", 8.314472*Foglio1!$C$13*Foglio2!J92, NA()) ->  | L92: =IF(Foglio1!$H$13 <> "", Foglio1!$H$13 + K92*10^-3, NA()) ->  | M92: 775 | N92: 6.652863029 | O92: =IF(Foglio1!$C$14 <> "", 8.314472*Foglio1!$C$14*Foglio2!N92, NA()) ->  | P92: =IF(Foglio1!$H$14 <> "", Foglio1!$H$14 + O92*10^-3, NA()) ->  | Q92: 775 | R92: 6.652863029 | S92: =IF(Foglio1!$C$15 <> "", 8.314472*Foglio1!$C$15*Foglio2!R92, NA()) ->  | T92: =IF(Foglio1!$H$15 <> "", Foglio1!$H$15 + S92*10^-3, NA()) -> 
A93: 784 | B93: 6.66440902 | C93: =IF(Foglio1!$C$11 <> "", 8.314472*Foglio1!$C$11*Foglio2!B93, NA()) -> 16623.31266 | D93: =IF(Foglio1!$H$11 <> "", Foglio1!$H$11 + C93*10^-3, NA()) -> -73.37668734 | E93: 784 | F93: 6.66440902 | G93: =IF(Foglio1!$C$12 <> "", 8.314472*Foglio1!$C$12*Foglio2!F93, NA()) ->  | H93: =IF(Foglio1!$H$12 <> "", Foglio1!$H$12 + G93*10^-3, NA()) ->  | I93: 784 | J93: 6.66440902 | K93: =IF(Foglio1!$C$13 <> "", 8.314472*Foglio1!$C$13*Foglio2!J93, NA()) ->  | L93: =IF(Foglio1!$H$13 <> "", Foglio1!$H$13 + K93*10^-3, NA()) ->  | M93: 784 | N93: 6.66440902 | O93: =IF(Foglio1!$C$14 <> "", 8.314472*Foglio1!$C$14*Foglio2!N93, NA()) ->  | P93: =IF(Foglio1!$H$14 <> "", Foglio1!$H$14 + O93*10^-3, NA()) ->  | Q93: 784 | R93: 6.66440902 | S93: =IF(Foglio1!$C$15 <> "", 8.314472*Foglio1!$C$15*Foglio2!R93, NA()) ->  | T93: =IF(Foglio1!$H$15 <> "", Foglio1!$H$15 + S93*10^-3, NA()) -> 
A94: 793 | B94: 6.675823222 | C94: =IF(Foglio1!$C$11 <> "", 8.314472*Foglio1!$C$11*Foglio2!B94, NA()) -> 16651.78358 | D94: =IF(Foglio1!$H$11 <> "", Foglio1!$H$11 + C94*10^-3, NA()) -> -73.34821642 | E94: 793 | F94: 6.675823222 | G94: =IF(Foglio1!$C$12 <> "", 8.314472*Foglio1!$C$12*Foglio2!F94, NA()) ->  | H94: =IF(Foglio1!$H$12 <> "", Foglio1!$H$12 + G94*10^-3, NA()) ->  | I94: 793 | J94: 6.675823222 | K94: =IF(Foglio1!$C$13 <> "", 8.314472*Foglio1!$C$13*Foglio2!J94, NA()) ->  | L94: =IF(Foglio1!$H$13 <> "", Foglio1!$H$13 + K94*10^-3, NA()) ->  | M94: 793 | N94: 6.675823222 | O94: =IF(Foglio1!$C$14 <> "", 8.314472*Foglio1!$C$14*Foglio2!N94, NA()) ->  | P94: =IF(Foglio1!$H$14 <> "", Foglio1!$H$14 + O94*10^-3, NA()) ->  | Q94: 793 | R94: 6.675823222 | S94: =IF(Foglio1!$C$15 <> "", 8.314472*Foglio1!$C$15*Foglio2!R94, NA()) ->  | T94: =IF(Foglio1!$H$15 <> "", Foglio1!$H$15 + S94*10^-3, NA()) -> 
A95: 802 | B95: 6.687108608 | C95: =IF(Foglio1!$C$11 <> "", 8.314472*Foglio1!$C$11*Foglio2!B95, NA()) -> 16679.93318 | D95: =IF(Foglio1!$H$11 <> "", Foglio1!$H$11 + C95*10^-3, NA()) -> -73.32006682 | E95: 802 | F95: 6.687108608 | G95: =IF(Foglio1!$C$12 <> "", 8.314472*Foglio1!$C$12*Foglio2!F95, NA()) ->  | H95: =IF(Foglio1!$H$12 <> "", Foglio1!$H$12 + G95*10^-3, NA()) ->  | I95: 802 | J95: 6.687108608 | K95: =IF(Foglio1!$C$13 <> "", 8.314472*Foglio1!$C$13*Foglio2!J95, NA()) ->  | L95: =IF(Foglio1!$H$13 <> "", Foglio1!$H$13 + K95*10^-3, NA()) ->  | M95: 802 | N95: 6.687108608 | O95: =IF(Foglio1!$C$14 <> "", 8.314472*Foglio1!$C$14*Foglio2!N95, NA()) ->  | P95: =IF(Foglio1!$H$14 <> "", Foglio1!$H$14 + O95*10^-3, NA()) ->  | Q95: 802 | R95: 6.687108608 | S95: =IF(Foglio1!$C$15 <> "", 8.314472*Foglio1!$C$15*Foglio2!R95, NA()) ->  | T95: =IF(Foglio1!$H$15 <> "", Foglio1!$H$15 + S95*10^-3, NA()) -> 
A96: 811 | B96: 6.698268054 | C96: =IF(Foglio1!$C$11 <> "", 8.314472*Foglio1!$C$11*Foglio2!B96, NA()) -> 16707.76866 | D96: =IF(Foglio1!$H$11 <> "", Foglio1!$H$11 + C96*10^-3, NA()) -> -73.29223134 | E96: 811 | F96: 6.698268054 | G96: =IF(Foglio1!$C$12 <> "", 8.314472*Foglio1!$C$12*Foglio2!F96, NA()) ->  | H96: =IF(Foglio1!$H$12 <> "", Foglio1!$H$12 + G96*10^-3, NA()) ->  | I96: 811 | J96: 6.698268054 | K96: =IF(Foglio1!$C$13 <> "", 8.314472*Foglio1!$C$13*Foglio2!J96, NA()) ->  | L96: =IF(Foglio1!$H$13 <> "", Foglio1!$H$13 + K96*10^-3, NA()) ->  | M96: 811 | N96: 6.698268054 | O96: =IF(Foglio1!$C$14 <> "", 8.314472*Foglio1!$C$14*Foglio2!N96, NA()) ->  | P96: =IF(Foglio1!$H$14 <> "", Foglio1!$H$14 + O96*10^-3, NA()) ->  | Q96: 811 | R96: 6.698268054 | S96: =IF(Foglio1!$C$15 <> "", 8.314472*Foglio1!$C$15*Foglio2!R96, NA()) ->  | T96: =IF(Foglio1!$H$15 <> "", Foglio1!$H$15 + S96*10^-3, NA()) -> 
A97: 820 | B97: 6.70930434 | C97: =IF(Foglio1!$C$11 <> "", 8.314472*Foglio1!$C$11*Foglio2!B97, NA()) -> 16735.29692 | D97: =IF(Foglio1!$H$11 <> "", Foglio1!$H$11 + C97*10^-3, NA()) -> -73.26470308 | E97: 820 | F97: 6.70930434 | G97: =IF(Foglio1!$C$12 <> "", 8.314472*Foglio1!$C$12*Foglio2!F97, NA()) ->  | H97: =IF(Foglio1!$H$12 <> "", Foglio1!$H$12 + G97*10^-3, NA()) ->  | I97: 820 | J97: 6.70930434 | K97: =IF(Foglio1!$C$13 <> "", 8.314472*Foglio1!$C$13*Foglio2!J97, NA()) ->  | L97: =IF(Foglio1!$H$13 <> "", Foglio1!$H$13 + K97*10^-3, NA()) ->  | M97: 820 | N97: 6.70930434 | O97: =IF(Foglio1!$C$14 <> "", 8.314472*Foglio1!$C$14*Foglio2!N97, NA()) ->  | P97: =IF(Foglio1!$H$14 <> "", Foglio1!$H$14 + O97*10^-3, NA()) ->  | Q97: 820 | R97: 6.70930434 | S97: =IF(Foglio1!$C$15 <> "", 8.314472*Foglio1!$C$15*Foglio2!R97, NA()) ->  | T97: =IF(Foglio1!$H$15 <> "", Foglio1!$H$15 + S97*10^-3, NA()) -> 
A98: 829 | B98: 6.720220155 | C98: =IF(Foglio1!$C$11 <> "", 8.314472*Foglio1!$C$11*Foglio2!B98, NA()) -> 16762.52469 | D98: =IF(Foglio1!$H$11 <> "", Foglio1!$H$11 + C98*10^-3, NA()) -> -73.23747531 | E98: 829 | F98: 6.720220155 | G98: =IF(Foglio1!$C$12 <> "", 8.314472*Foglio1!$C$12*Foglio2!F98, NA()) ->  | H98: =IF(Foglio1!$H$12 <> "", Foglio1!$H$12 + G98*10^-3, NA()) ->  | I98: 829 | J98: 6.720220155 | K98: =IF(Foglio1!$C$13 <> "", 8.314472*Foglio1!$C$13*Foglio2!J98, NA()) ->  | L98: =IF(Foglio1!$H$13 <> "", Foglio1!$H$13 + K98*10^-3, NA()) ->  | M98: 829 | N98: 6.720220155 | O98: =IF(Foglio1!$C$14 <> "", 8.314472*Foglio1!$C$14*Foglio2!N98, NA()) ->  | P98: =IF(Foglio1!$H$14 <> "", Foglio1!$H$14 + O98*10^-3, NA()) ->  | Q98: 829 | R98: 6.720220155 | S98: =IF(Foglio1!$C$15 <> "", 8.314472*Foglio1!$C$15*Foglio2!R98, NA()) ->  | T98: =IF(Foglio1!$H$15 <> "", Foglio1!$H$15 + S98*10^-3, NA()) -> 
A99: 838 | B99: 6.7310181 | C99: =IF(Foglio1!$C$11 <> "", 8.314472*Foglio1!$C$11*Foglio2!B99, NA()) -> 16789.45846 | D99: =IF(Foglio1!$H$11 <> "", Foglio1!$H$11 + C99*10^-3, NA()) -> -73.21054154 | E99: 838 | F99: 6.7310181 | G99: =IF(Foglio1!$C$12 <> "", 8.314472*Foglio1!$C$12*Foglio2!F99, NA()) ->  | H99: =IF(Foglio1!$H$12 <> "", Foglio1!$H$12 + G99*10^-3, NA()) ->  | I99: 838 | J99: 6.7310181 | K99: =IF(Foglio1!$C$13 <> "", 8.314472*Foglio1!$C$13*Foglio2!J99, NA()) ->  | L99: =IF(Foglio1!$H$13 <> "", Foglio1!$H$13 + K99*10^-3, NA()) ->  | M99: 838 | N99: 6.7310181 | O99: =IF(Foglio1!$C$14 <> "", 8.314472*Foglio1!$C$14*Foglio2!N99, NA()) ->  | P99: =IF(Foglio1!$H$14 <> "", Foglio1!$H$14 + O99*10^-3, NA()) ->  | Q99: 838 | R99: 6.7310181 | S99: =IF(Foglio1!$C$15 <> "", 8.314472*Foglio1!$C$15*Foglio2!R99, NA()) ->  | T99: =IF(Foglio1!$H$15 <> "", Foglio1!$H$15 + S99*10^-3, NA()) -> 
A100: 847 | B100: 6.741700695 | C100: =IF(Foglio1!$C$11 <> "", 8.314472*Foglio1!$C$11*Foglio2!B100, NA()) -> 16816.1045 | D100: =IF(Foglio1!$H$11 <> "", Foglio1!$H$11 + C100*10^-3, NA()) -> -73.1838955 | E100: 847 | F100: 6.741700695 | G100: =IF(Foglio1!$C$12 <> "", 8.314472*Foglio1!$C$12*Foglio2!F100, NA()) ->  | H100: =IF(Foglio1!$H$12 <> "", Foglio1!$H$12 + G100*10^-3, NA()) ->  | I100: 847 | J100: 6.741700695 | K100: =IF(Foglio1!$C$13 <> "", 8.314472*Foglio1!$C$13*Foglio2!J100, NA()) ->  | L100: =IF(Foglio1!$H$13 <> "", Foglio1!$H$13 + K100*10^-3, NA()) ->  | M100: 847 | N100: 6.741700695 | O100: =IF(Foglio1!$C$14 <> "", 8.314472*Foglio1!$C$14*Foglio2!N100, NA()) ->  | P100: =IF(Foglio1!$H$14 <> "", Foglio1!$H$14 + O100*10^-3, NA()) ->  | Q100: 847 | R100: 6.741700695 | S100: =IF(Foglio1!$C$15 <> "", 8.314472*Foglio1!$C$15*Foglio2!R100, NA()) ->  | T100: =IF(Foglio1!$H$15 <> "", Foglio1!$H$15 + S100*10^-3, NA()) -> 
A101: 856 | B101: 6.752270376 | C101: =IF(Foglio1!$C$11 <> "", 8.314472*Foglio1!$C$11*Foglio2!B101, NA()) -> 16842.46889 | D101: =IF(Foglio1!$H$11 <> "", Foglio1!$H$11 + C101*10^-3, NA()) -> -73.15753111 | E101: 856 | F101: 6.752270376 | G101: =IF(Foglio1!$C$12 <> "", 8.314472*Foglio1!$C$12*Foglio2!F101, NA()) ->  | H101: =IF(Foglio1!$H$12 <> "", Foglio1!$H$12 + G101*10^-3, NA()) ->  | I101: 856 | J101: 6.752270376 | K101: =IF(Foglio1!$C$13 <> "", 8.314472*Foglio1!$C$13*Foglio2!J101, NA()) ->  | L101: =IF(Foglio1!$H$13 <> "", Foglio1!$H$13 + K101*10^-3, NA()) ->  | M101: 856 | N101: 6.752270376 | O101: =IF(Foglio1!$C$14 <> "", 8.314472*Foglio1!$C$14*Foglio2!N101, NA()) ->  | P101: =IF(Foglio1!$H$14 <> "", Foglio1!$H$14 + O101*10^-3, NA()) ->  | Q101: 856 | R101: 6.752270376 | S101: =IF(Foglio1!$C$15 <> "", 8.314472*Foglio1!$C$15*Foglio2!R101, NA()) ->  | T101: =IF(Foglio1!$H$15 <> "", Foglio1!$H$15 + S101*10^-3, NA()) -> 
A102: 865 | B102: 6.762729507 | C102: =IF(Foglio1!$C$11 <> "", 8.314472*Foglio1!$C$11*Foglio2!B102, NA()) -> 16868.55754 | D102: =IF(Foglio1!$H$11 <> "", Foglio1!$H$11 + C102*10^-3, NA()) -> -73.13144246 | E102: 865 | F102: 6.762729507 | G102: =IF(Foglio1!$C$12 <> "", 8.314472*Foglio1!$C$12*Foglio2!F102, NA()) ->  | H102: =IF(Foglio1!$H$12 <> "", Foglio1!$H$12 + G102*10^-3, NA()) ->  | I102: 865 | J102: 6.762729507 | K102: =IF(Foglio1!$C$13 <> "", 8.314472*Foglio1!$C$13*Foglio2!J102, NA()) ->  | L102: =IF(Foglio1!$H$13 <> "", Foglio1!$H$13 + K102*10^-3, NA()) ->  | M102: 865 | N102: 6.762729507 | O102: =IF(Foglio1!$C$14 <> "", 8.314472*Foglio1!$C$14*Foglio2!N102, NA()) ->  | P102: =IF(Foglio1!$H$14 <> "", Foglio1!$H$14 + O102*10^-3, NA()) ->  | Q102: 865 | R102: 6.762729507 | S102: =IF(Foglio1!$C$15 <> "", 8.314472*Foglio1!$C$15*Foglio2!R102, NA()) ->  | T102: =IF(Foglio1!$H$15 <> "", Foglio1!$H$15 + S102*10^-3, NA()) -> 
A103: 874 | B103: 6.773080376 | C103: =IF(Foglio1!$C$11 <> "", 8.314472*Foglio1!$C$11*Foglio2!B103, NA()) -> 16894.37614 | D103: =IF(Foglio1!$H$11 <> "", Foglio1!$H$11 + C103*10^-3, NA()) -> -73.10562386 | E103: 874 | F103: 6.773080376 | G103: =IF(Foglio1!$C$12 <> "", 8.314472*Foglio1!$C$12*Foglio2!F103, NA()) ->  | H103: =IF(Foglio1!$H$12 <> "", Foglio1!$H$12 + G103*10^-3, NA()) ->  | I103: 874 | J103: 6.773080376 | K103: =IF(Foglio1!$C$13 <> "", 8.314472*Foglio1!$C$13*Foglio2!J103, NA()) ->  | L103: =IF(Foglio1!$H$13 <> "", Foglio1!$H$13 + K103*10^-3, NA()) ->  | M103: 874 | N103: 6.773080376 | O103: =IF(Foglio1!$C$14 <> "", 8.314472*Foglio1!$C$14*Foglio2!N103, NA()) ->  | P103: =IF(Foglio1!$H$14 <> "", Foglio1!$H$14 + O103*10^-3, NA()) ->  | Q103: 874 | R103: 6.773080376 | S103: =IF(Foglio1!$C$15 <> "", 8.314472*Foglio1!$C$15*Foglio2!R103, NA()) ->  | T103: =IF(Foglio1!$H$15 <> "", Foglio1!$H$15 + S103*10^-3, NA()) -> 
A104: 883 | B104: 6.783325201 | C104: =IF(Foglio1!$C$11 <> "", 8.314472*Foglio1!$C$11*Foglio2!B104, NA()) -> 16919.93023 | D104: =IF(Foglio1!$H$11 <> "", Foglio1!$H$11 + C104*10^-3, NA()) -> -73.08006977 | E104: 883 | F104: 6.783325201 | G104: =IF(Foglio1!$C$12 <> "", 8.314472*Foglio1!$C$12*Foglio2!F104, NA()) ->  | H104: =IF(Foglio1!$H$12 <> "", Foglio1!$H$12 + G104*10^-3, NA()) ->  | I104: 883 | J104: 6.783325201 | K104: =IF(Foglio1!$C$13 <> "", 8.314472*Foglio1!$C$13*Foglio2!J104, NA()) ->  | L104: =IF(Foglio1!$H$13 <> "", Foglio1!$H$13 + K104*10^-3, NA()) ->  | M104: 883 | N104: 6.783325201 | O104: =IF(Foglio1!$C$14 <> "", 8.314472*Foglio1!$C$14*Foglio2!N104, NA()) ->  | P104: =IF(Foglio1!$H$14 <> "", Foglio1!$H$14 + O104*10^-3, NA()) ->  | Q104: 883 | R104: 6.783325201 | S104: =IF(Foglio1!$C$15 <> "", 8.314472*Foglio1!$C$15*Foglio2!R104, NA()) ->  | T104: =IF(Foglio1!$H$15 <> "", Foglio1!$H$15 + S104*10^-3, NA()) -> 
A105: 892 | B105: 6.793466133 | C105: =IF(Foglio1!$C$11 <> "", 8.314472*Foglio1!$C$11*Foglio2!B105, NA()) -> 16945.22518 | D105: =IF(Foglio1!$H$11 <> "", Foglio1!$H$11 + C105*10^-3, NA()) -> -73.05477482 | E105: 892 | F105: 6.793466133 | G105: =IF(Foglio1!$C$12 <> "", 8.314472*Foglio1!$C$12*Foglio2!F105, NA()) ->  | H105: =IF(Foglio1!$H$12 <> "", Foglio1!$H$12 + G105*10^-3, NA()) ->  | I105: 892 | J105: 6.793466133 | K105: =IF(Foglio1!$C$13 <> "", 8.314472*Foglio1!$C$13*Foglio2!J105, NA()) ->  | L105: =IF(Foglio1!$H$13 <> "", Foglio1!$H$13 + K105*10^-3, NA()) ->  | M105: 892 | N105: 6.793466133 | O105: =IF(Foglio1!$C$14 <> "", 8.314472*Foglio1!$C$14*Foglio2!N105, NA()) ->  | P105: =IF(Foglio1!$H$14 <> "", Foglio1!$H$14 + O105*10^-3, NA()) ->  | Q105: 892 | R105: 6.793466133 | S105: =IF(Foglio1!$C$15 <> "", 8.314472*Foglio1!$C$15*Foglio2!R105, NA()) ->  | T105: =IF(Foglio1!$H$15 <> "", Foglio1!$H$15 + S105*10^-3, NA()) -> 
A106: 901 | B106: 6.803505258 | C106: =IF(Foglio1!$C$11 <> "", 8.314472*Foglio1!$C$11*Foglio2!B106, NA()) -> 16970.26619 | D106: =IF(Foglio1!$H$11 <> "", Foglio1!$H$11 + C106*10^-3, NA()) -> -73.02973381 | E106: 901 | F106: 6.803505258 | G106: =IF(Foglio1!$C$12 <> "", 8.314472*Foglio1!$C$12*Foglio2!F106, NA()) ->  | H106: =IF(Foglio1!$H$12 <> "", Foglio1!$H$12 + G106*10^-3, NA()) ->  | I106: 901 | J106: 6.803505258 | K106: =IF(Foglio1!$C$13 <> "", 8.314472*Foglio1!$C$13*Foglio2!J106, NA()) ->  | L106: =IF(Foglio1!$H$13 <> "", Foglio1!$H$13 + K106*10^-3, NA()) ->  | M106: 901 | N106: 6.803505258 | O106: =IF(Foglio1!$C$14 <> "", 8.314472*Foglio1!$C$14*Foglio2!N106, NA()) ->  | P106: =IF(Foglio1!$H$14 <> "", Foglio1!$H$14 + O106*10^-3, NA()) ->  | Q106: 901 | R106: 6.803505258 | S106: =IF(Foglio1!$C$15 <> "", 8.314472*Foglio1!$C$15*Foglio2!R106, NA()) ->  | T106: =IF(Foglio1!$H$15 <> "", Foglio1!$H$15 + S106*10^-3, NA()) -> 
A107: 910 | B107: 6.8134446 | C107: =IF(Foglio1!$C$11 <> "", 8.314472*Foglio1!$C$11*Foglio2!B107, NA()) -> 16995.0583 | D107: =IF(Foglio1!$H$11 <> "", Foglio1!$H$11 + C107*10^-3, NA()) -> -73.0049417 | E107: 910 | F107: 6.8134446 | G107: =IF(Foglio1!$C$12 <> "", 8.314472*Foglio1!$C$12*Foglio2!F107, NA()) ->  | H107: =IF(Foglio1!$H$12 <> "", Foglio1!$H$12 + G107*10^-3, NA()) ->  | I107: 910 | J107: 6.8134446 | K107: =IF(Foglio1!$C$13 <> "", 8.314472*Foglio1!$C$13*Foglio2!J107, NA()) ->  | L107: =IF(Foglio1!$H$13 <> "", Foglio1!$H$13 + K107*10^-3, NA()) ->  | M107: 910 | N107: 6.8134446 | O107: =IF(Foglio1!$C$14 <> "", 8.314472*Foglio1!$C$14*Foglio2!N107, NA()) ->  | P107: =IF(Foglio1!$H$14 <> "", Foglio1!$H$14 + O107*10^-3, NA()) ->  | Q107: 910 | R107: 6.8134446 | S107: =IF(Foglio1!$C$15 <> "", 8.314472*Foglio1!$C$15*Foglio2!R107, NA()) ->  | T107: =IF(Foglio1!$H$15 <> "", Foglio1!$H$15 + S107*10^-3, NA()) -> 
A108: 919 | B108: 6.823286122 | C108: =IF(Foglio1!$C$11 <> "", 8.314472*Foglio1!$C$11*Foglio2!B108, NA()) -> 17019.60642 | D108: =IF(Foglio1!$H$11 <> "", Foglio1!$H$11 + C108*10^-3, NA()) -> -72.98039358 | E108: 919 | F108: 6.823286122 | G108: =IF(Foglio1!$C$12 <> "", 8.314472*Foglio1!$C$12*Foglio2!F108, NA()) ->  | H108: =IF(Foglio1!$H$12 <> "", Foglio1!$H$12 + G108*10^-3, NA()) ->  | I108: 919 | J108: 6.823286122 | K108: =IF(Foglio1!$C$13 <> "", 8.314472*Foglio1!$C$13*Foglio2!J108, NA()) ->  | L108: =IF(Foglio1!$H$13 <> "", Foglio1!$H$13 + K108*10^-3, NA()) ->  | M108: 919 | N108: 6.823286122 | O108: =IF(Foglio1!$C$14 <> "", 8.314472*Foglio1!$C$14*Foglio2!N108, NA()) ->  | P108: =IF(Foglio1!$H$14 <> "", Foglio1!$H$14 + O108*10^-3, NA()) ->  | Q108: 919 | R108: 6.823286122 | S108: =IF(Foglio1!$C$15 <> "", 8.314472*Foglio1!$C$15*Foglio2!R108, NA()) ->  | T108: =IF(Foglio1!$H$15 <> "", Foglio1!$H$15 + S108*10^-3, NA()) -> 
A109: 928 | B109: 6.833031733 | C109: =IF(Foglio1!$C$11 <> "", 8.314472*Foglio1!$C$11*Foglio2!B109, NA()) -> 17043.91531 | D109: =IF(Foglio1!$H$11 <> "", Foglio1!$H$11 + C109*10^-3, NA()) -> -72.95608469 | E109: 928 | F109: 6.833031733 | G109: =IF(Foglio1!$C$12 <> "", 8.314472*Foglio1!$C$12*Foglio2!F109, NA()) ->  | H109: =IF(Foglio1!$H$12 <> "", Foglio1!$H$12 + G109*10^-3, NA()) ->  | I109: 928 | J109: 6.833031733 | K109: =IF(Foglio1!$C$13 <> "", 8.314472*Foglio1!$C$13*Foglio2!J109, NA()) ->  | L109: =IF(Foglio1!$H$13 <> "", Foglio1!$H$13 + K109*10^-3, NA()) ->  | M109: 928 | N109: 6.833031733 | O109: =IF(Foglio1!$C$14 <> "", 8.314472*Foglio1!$C$14*Foglio2!N109, NA()) ->  | P109: =IF(Foglio1!$H$14 <> "", Foglio1!$H$14 + O109*10^-3, NA()) ->  | Q109: 928 | R109: 6.833031733 | S109: =IF(Foglio1!$C$15 <> "", 8.314472*Foglio1!$C$15*Foglio2!R109, NA()) ->  | T109: =IF(Foglio1!$H$15 <> "", Foglio1!$H$15 + S109*10^-3, NA()) -> 
A110: 937 | B110: 6.842683282 | C110: =IF(Foglio1!$C$11 <> "", 8.314472*Foglio1!$C$11*Foglio2!B110, NA()) -> 17067.98957 | D110: =IF(Foglio1!$H$11 <> "", Foglio1!$H$11 + C110*10^-3, NA()) -> -72.93201043 | E110: 937 | F110: 6.842683282 | G110: =IF(Foglio1!$C$12 <> "", 8.314472*Foglio1!$C$12*Foglio2!F110, NA()) ->  | H110: =IF(Foglio1!$H$12 <> "", Foglio1!$H$12 + G110*10^-3, NA()) ->  | I110: 937 | J110: 6.842683282 | K110: =IF(Foglio1!$C$13 <> "", 8.314472*Foglio1!$C$13*Foglio2!J110, NA()) ->  | L110: =IF(Foglio1!$H$13 <> "", Foglio1!$H$13 + K110*10^-3, NA()) ->  | M110: 937 | N110: 6.842683282 | O110: =IF(Foglio1!$C$14 <> "", 8.314472*Foglio1!$C$14*Foglio2!N110, NA()) ->  | P110: =IF(Foglio1!$H$14 <> "", Foglio1!$H$14 + O110*10^-3, NA()) ->  | Q110: 937 | R110: 6.842683282 | S110: =IF(Foglio1!$C$15 <> "", 8.314472*Foglio1!$C$15*Foglio2!R110, NA()) ->  | T110: =IF(Foglio1!$H$15 <> "", Foglio1!$H$15 + S110*10^-3, NA()) -> 
A111: 946 | B111: 6.852242569 | C111: =IF(Foglio1!$C$11 <> "", 8.314472*Foglio1!$C$11*Foglio2!B111, NA()) -> 17091.83369 | D111: =IF(Foglio1!$H$11 <> "", Foglio1!$H$11 + C111*10^-3, NA()) -> -72.90816631 | E111: 946 | F111: 6.852242569 | G111: =IF(Foglio1!$C$12 <> "", 8.314472*Foglio1!$C$12*Foglio2!F111, NA()) ->  | H111: =IF(Foglio1!$H$12 <> "", Foglio1!$H$12 + G111*10^-3, NA()) ->  | I111: 946 | J111: 6.852242569 | K111: =IF(Foglio1!$C$13 <> "", 8.314472*Foglio1!$C$13*Foglio2!J111, NA()) ->  | L111: =IF(Foglio1!$H$13 <> "", Foglio1!$H$13 + K111*10^-3, NA()) ->  | M111: 946 | N111: 6.852242569 | O111: =IF(Foglio1!$C$14 <> "", 8.314472*Foglio1!$C$14*Foglio2!N111, NA()) ->  | P111: =IF(Foglio1!$H$14 <> "", Foglio1!$H$14 + O111*10^-3, NA()) ->  | Q111: 946 | R111: 6.852242569 | S111: =IF(Foglio1!$C$15 <> "", 8.314472*Foglio1!$C$15*Foglio2!R111, NA()) ->  | T111: =IF(Foglio1!$H$15 <> "", Foglio1!$H$15 + S111*10^-3, NA()) -> 
A112: 955 | B112: 6.86171134 | C112: =IF(Foglio1!$C$11 <> "", 8.314472*Foglio1!$C$11*Foglio2!B112, NA()) -> 17115.45204 | D112: =IF(Foglio1!$H$11 <> "", Foglio1!$H$11 + C112*10^-3, NA()) -> -72.88454796 | E112: 955 | F112: 6.86171134 | G112: =IF(Foglio1!$C$12 <> "", 8.314472*Foglio1!$C$12*Foglio2!F112, NA()) ->  | H112: =IF(Foglio1!$H$12 <> "", Foglio1!$H$12 + G112*10^-3, NA()) ->  | I112: 955 | J112: 6.86171134 | K112: =IF(Foglio1!$C$13 <> "", 8.314472*Foglio1!$C$13*Foglio2!J112, NA()) ->  | L112: =IF(Foglio1!$H$13 <> "", Foglio1!$H$13 + K112*10^-3, NA()) ->  | M112: 955 | N112: 6.86171134 | O112: =IF(Foglio1!$C$14 <> "", 8.314472*Foglio1!$C$14*Foglio2!N112, NA()) ->  | P112: =IF(Foglio1!$H$14 <> "", Foglio1!$H$14 + O112*10^-3, NA()) ->  | Q112: 955 | R112: 6.86171134 | S112: =IF(Foglio1!$C$15 <> "", 8.314472*Foglio1!$C$15*Foglio2!R112, NA()) ->  | T112: =IF(Foglio1!$H$15 <> "", Foglio1!$H$15 + S112*10^-3, NA()) -> 
A113: 964 | B113: 6.871091295 | C113: =IF(Foglio1!$C$11 <> "", 8.314472*Foglio1!$C$11*Foglio2!B113, NA()) -> 17138.84885 | D113: =IF(Foglio1!$H$11 <> "", Foglio1!$H$11 + C113*10^-3, NA()) -> -72.86115115 | E113: 964 | F113: 6.871091295 | G113: =IF(Foglio1!$C$12 <> "", 8.314472*Foglio1!$C$12*Foglio2!F113, NA()) ->  | H113: =IF(Foglio1!$H$12 <> "", Foglio1!$H$12 + G113*10^-3, NA()) ->  | I113: 964 | J113: 6.871091295 | K113: =IF(Foglio1!$C$13 <> "", 8.314472*Foglio1!$C$13*Foglio2!J113, NA()) ->  | L113: =IF(Foglio1!$H$13 <> "", Foglio1!$H$13 + K113*10^-3, NA()) ->  | M113: 964 | N113: 6.871091295 | O113: =IF(Foglio1!$C$14 <> "", 8.314472*Foglio1!$C$14*Foglio2!N113, NA()) ->  | P113: =IF(Foglio1!$H$14 <> "", Foglio1!$H$14 + O113*10^-3, NA()) ->  | Q113: 964 | R113: 6.871091295 | S113: =IF(Foglio1!$C$15 <> "", 8.314472*Foglio1!$C$15*Foglio2!R113, NA()) ->  | T113: =IF(Foglio1!$H$15 <> "", Foglio1!$H$15 + S113*10^-3, NA()) -> 
A114: 973 | B114: 6.880384082 | C114: =IF(Foglio1!$C$11 <> "", 8.314472*Foglio1!$C$11*Foglio2!B114, NA()) -> 17162.02824 | D114: =IF(Foglio1!$H$11 <> "", Foglio1!$H$11 + C114*10^-3, NA()) -> -72.83797176 | E114: 973 | F114: 6.880384082 | G114: =IF(Foglio1!$C$12 <> "", 8.314472*Foglio1!$C$12*Foglio2!F114, NA()) ->  | H114: =IF(Foglio1!$H$12 <> "", Foglio1!$H$12 + G114*10^-3, NA()) ->  | I114: 973 | J114: 6.880384082 | K114: =IF(Foglio1!$C$13 <> "", 8.314472*Foglio1!$C$13*Foglio2!J114, NA()) ->  | L114: =IF(Foglio1!$H$13 <> "", Foglio1!$H$13 + K114*10^-3, NA()) ->  | M114: 973 | N114: 6.880384082 | O114: =IF(Foglio1!$C$14 <> "", 8.314472*Foglio1!$C$14*Foglio2!N114, NA()) ->  | P114: =IF(Foglio1!$H$14 <> "", Foglio1!$H$14 + O114*10^-3, NA()) ->  | Q114: 973 | R114: 6.880384082 | S114: =IF(Foglio1!$C$15 <> "", 8.314472*Foglio1!$C$15*Foglio2!R114, NA()) ->  | T114: =IF(Foglio1!$H$15 <> "", Foglio1!$H$15 + S114*10^-3, NA()) -> 
A115: 982 | B115: 6.889591308 | C115: =IF(Foglio1!$C$11 <> "", 8.314472*Foglio1!$C$11*Foglio2!B115, NA()) -> 17184.99421 | D115: =IF(Foglio1!$H$11 <> "", Foglio1!$H$11 + C115*10^-3, NA()) -> -72.81500579 | E115: 982 | F115: 6.889591308 | G115: =IF(Foglio1!$C$12 <> "", 8.314472*Foglio1!$C$12*Foglio2!F115, NA()) ->  | H115: =IF(Foglio1!$H$12 <> "", Foglio1!$H$12 + G115*10^-3, NA()) ->  | I115: 982 | J115: 6.889591308 | K115: =IF(Foglio1!$C$13 <> "", 8.314472*Foglio1!$C$13*Foglio2!J115, NA()) ->  | L115: =IF(Foglio1!$H$13 <> "", Foglio1!$H$13 + K115*10^-3, NA()) ->  | M115: 982 | N115: 6.889591308 | O115: =IF(Foglio1!$C$14 <> "", 8.314472*Foglio1!$C$14*Foglio2!N115, NA()) ->  | P115: =IF(Foglio1!$H$14 <> "", Foglio1!$H$14 + O115*10^-3, NA()) ->  | Q115: 982 | R115: 6.889591308 | S115: =IF(Foglio1!$C$15 <> "", 8.314472*Foglio1!$C$15*Foglio2!R115, NA()) ->  | T115: =IF(Foglio1!$H$15 <> "", Foglio1!$H$15 + S115*10^-3, NA()) -> 
A116: 991 | B116: 6.898714534 | C116: =IF(Foglio1!$C$11 <> "", 8.314472*Foglio1!$C$11*Foglio2!B116, NA()) -> 17207.75065 | D116: =IF(Foglio1!$H$11 <> "", Foglio1!$H$11 + C116*10^-3, NA()) -> -72.79224935 | E116: 991 | F116: 6.898714534 | G116: =IF(Foglio1!$C$12 <> "", 8.314472*Foglio1!$C$12*Foglio2!F116, NA()) ->  | H116: =IF(Foglio1!$H$12 <> "", Foglio1!$H$12 + G116*10^-3, NA()) ->  | I116: 991 | J116: 6.898714534 | K116: =IF(Foglio1!$C$13 <> "", 8.314472*Foglio1!$C$13*Foglio2!J116, NA()) ->  | L116: =IF(Foglio1!$H$13 <> "", Foglio1!$H$13 + K116*10^-3, NA()) ->  | M116: 991 | N116: 6.898714534 | O116: =IF(Foglio1!$C$14 <> "", 8.314472*Foglio1!$C$14*Foglio2!N116, NA()) ->  | P116: =IF(Foglio1!$H$14 <> "", Foglio1!$H$14 + O116*10^-3, NA()) ->  | Q116: 991 | R116: 6.898714534 | S116: =IF(Foglio1!$C$15 <> "", 8.314472*Foglio1!$C$15*Foglio2!R116, NA()) ->  | T116: =IF(Foglio1!$H$15 <> "", Foglio1!$H$15 + S116*10^-3, NA()) -> 
A117: 1000 | B117: 6.907755279 | C117: =IF(Foglio1!$C$11 <> "", 8.314472*Foglio1!$C$11*Foglio2!B117, NA()) -> 17230.30135 | D117: =IF(Foglio1!$H$11 <> "", Foglio1!$H$11 + C117*10^-3, NA()) -> -72.76969865 | E117: 1000 | F117: 6.907755279 | G117: =IF(Foglio1!$C$12 <> "", 8.314472*Foglio1!$C$12*Foglio2!F117, NA()) ->  | H117: =IF(Foglio1!$H$12 <> "", Foglio1!$H$12 + G117*10^-3, NA()) ->  | I117: 1000 | J117: 6.907755279 | K117: =IF(Foglio1!$C$13 <> "", 8.314472*Foglio1!$C$13*Foglio2!J117, NA()) ->  | L117: =IF(Foglio1!$H$13 <> "", Foglio1!$H$13 + K117*10^-3, NA()) ->  | M117: 1000 | N117: 6.907755279 | O117: =IF(Foglio1!$C$14 <> "", 8.314472*Foglio1!$C$14*Foglio2!N117, NA()) ->  | P117: =IF(Foglio1!$H$14 <> "", Foglio1!$H$14 + O117*10^-3, NA()) ->  | Q117: 1000 | R117: 6.907755279 | S117: =IF(Foglio1!$C$15 <> "", 8.314472*Foglio1!$C$15*Foglio2!R117, NA()) ->  | T117: =IF(Foglio1!$H$15 <> "", Foglio1!$H$15 + S117*10^-3, NA()) -> 
A118: 1009 | B118: 6.91671502 | C118: =IF(Foglio1!$C$11 <> "", 8.314472*Foglio1!$C$11*Foglio2!B118, NA()) -> 17252.65001 | D118: =IF(Foglio1!$H$11 <> "", Foglio1!$H$11 + C118*10^-3, NA()) -> -72.74734999 | E118: 1009 | F118: 6.91671502 | G118: =IF(Foglio1!$C$12 <> "", 8.314472*Foglio1!$C$12*Foglio2!F118, NA()) ->  | H118: =IF(Foglio1!$H$12 <> "", Foglio1!$H$12 + G118*10^-3, NA()) ->  | I118: 1009 | J118: 6.91671502 | K118: =IF(Foglio1!$C$13 <> "", 8.314472*Foglio1!$C$13*Foglio2!J118, NA()) ->  | L118: =IF(Foglio1!$H$13 <> "", Foglio1!$H$13 + K118*10^-3, NA()) ->  | M118: 1009 | N118: 6.91671502 | O118: =IF(Foglio1!$C$14 <> "", 8.314472*Foglio1!$C$14*Foglio2!N118, NA()) ->  | P118: =IF(Foglio1!$H$14 <> "", Foglio1!$H$14 + O118*10^-3, NA()) ->  | Q118: 1009 | R118: 6.91671502 | S118: =IF(Foglio1!$C$15 <> "", 8.314472*Foglio1!$C$15*Foglio2!R118, NA()) ->  | T118: =IF(Foglio1!$H$15 <> "", Foglio1!$H$15 + S118*10^-3, NA()) -> 
A119: 1018 | B119: 6.925595197 | C119: =IF(Foglio1!$C$11 <> "", 8.314472*Foglio1!$C$11*Foglio2!B119, NA()) -> 17274.8002 | D119: =IF(Foglio1!$H$11 <> "", Foglio1!$H$11 + C119*10^-3, NA()) -> -72.7251998 | E119: 1018 | F119: 6.925595197 | G119: =IF(Foglio1!$C$12 <> "", 8.314472*Foglio1!$C$12*Foglio2!F119, NA()) ->  | H119: =IF(Foglio1!$H$12 <> "", Foglio1!$H$12 + G119*10^-3, NA()) ->  | I119: 1018 | J119: 6.925595197 | K119: =IF(Foglio1!$C$13 <> "", 8.314472*Foglio1!$C$13*Foglio2!J119, NA()) ->  | L119: =IF(Foglio1!$H$13 <> "", Foglio1!$H$13 + K119*10^-3, NA()) ->  | M119: 1018 | N119: 6.925595197 | O119: =IF(Foglio1!$C$14 <> "", 8.314472*Foglio1!$C$14*Foglio2!N119, NA()) ->  | P119: =IF(Foglio1!$H$14 <> "", Foglio1!$H$14 + O119*10^-3, NA()) ->  | Q119: 1018 | R119: 6.925595197 | S119: =IF(Foglio1!$C$15 <> "", 8.314472*Foglio1!$C$15*Foglio2!R119, NA()) ->  | T119: =IF(Foglio1!$H$15 <> "", Foglio1!$H$15 + S119*10^-3, NA()) -> 
A120: 1027 | B120: 6.93439721 | C120: =IF(Foglio1!$C$11 <> "", 8.314472*Foglio1!$C$11*Foglio2!B120, NA()) -> 17296.75543 | D120: =IF(Foglio1!$H$11 <> "", Foglio1!$H$11 + C120*10^-3, NA()) -> -72.70324457 | E120: 1027 | F120: 6.93439721 | G120: =IF(Foglio1!$C$12 <> "", 8.314472*Foglio1!$C$12*Foglio2!F120, NA()) ->  | H120: =IF(Foglio1!$H$12 <> "", Foglio1!$H$12 + G120*10^-3, NA()) ->  | I120: 1027 | J120: 6.93439721 | K120: =IF(Foglio1!$C$13 <> "", 8.314472*Foglio1!$C$13*Foglio2!J120, NA()) ->  | L120: =IF(Foglio1!$H$13 <> "", Foglio1!$H$13 + K120*10^-3, NA()) ->  | M120: 1027 | N120: 6.93439721 | O120: =IF(Foglio1!$C$14 <> "", 8.314472*Foglio1!$C$14*Foglio2!N120, NA()) ->  | P120: =IF(Foglio1!$H$14 <> "", Foglio1!$H$14 + O120*10^-3, NA()) ->  | Q120: 1027 | R120: 6.93439721 | S120: =IF(Foglio1!$C$15 <> "", 8.314472*Foglio1!$C$15*Foglio2!R120, NA()) ->  | T120: =IF(Foglio1!$H$15 <> "", Foglio1!$H$15 + S120*10^-3, NA()) -> 
A121: 1036 | B121: 6.943122423 | C121: =IF(Foglio1!$C$11 <> "", 8.314472*Foglio1!$C$11*Foglio2!B121, NA()) -> 17318.51909 | D121: =IF(Foglio1!$H$11 <> "", Foglio1!$H$11 + C121*10^-3, NA()) -> -72.68148091 | E121: 1036 | F121: 6.943122423 | G121: =IF(Foglio1!$C$12 <> "", 8.314472*Foglio1!$C$12*Foglio2!F121, NA()) ->  | H121: =IF(Foglio1!$H$12 <> "", Foglio1!$H$12 + G121*10^-3, NA()) ->  | I121: 1036 | J121: 6.943122423 | K121: =IF(Foglio1!$C$13 <> "", 8.314472*Foglio1!$C$13*Foglio2!J121, NA()) ->  | L121: =IF(Foglio1!$H$13 <> "", Foglio1!$H$13 + K121*10^-3, NA()) ->  | M121: 1036 | N121: 6.943122423 | O121: =IF(Foglio1!$C$14 <> "", 8.314472*Foglio1!$C$14*Foglio2!N121, NA()) ->  | P121: =IF(Foglio1!$H$14 <> "", Foglio1!$H$14 + O121*10^-3, NA()) ->  | Q121: 1036 | R121: 6.943122423 | S121: =IF(Foglio1!$C$15 <> "", 8.314472*Foglio1!$C$15*Foglio2!R121, NA()) ->  | T121: =IF(Foglio1!$H$15 <> "", Foglio1!$H$15 + S121*10^-3, NA()) -> 
A122: 1045 | B122: 6.951772164 | C122: =IF(Foglio1!$C$11 <> "", 8.314472*Foglio1!$C$11*Foglio2!B122, NA()) -> 17340.0945 | D122: =IF(Foglio1!$H$11 <> "", Foglio1!$H$11 + C122*10^-3, NA()) -> -72.6599055 | E122: 1045 | F122: 6.951772164 | G122: =IF(Foglio1!$C$12 <> "", 8.314472*Foglio1!$C$12*Foglio2!F122, NA()) ->  | H122: =IF(Foglio1!$H$12 <> "", Foglio1!$H$12 + G122*10^-3, NA()) ->  | I122: 1045 | J122: 6.951772164 | K122: =IF(Foglio1!$C$13 <> "", 8.314472*Foglio1!$C$13*Foglio2!J122, NA()) ->  | L122: =IF(Foglio1!$H$13 <> "", Foglio1!$H$13 + K122*10^-3, NA()) ->  | M122: 1045 | N122: 6.951772164 | O122: =IF(Foglio1!$C$14 <> "", 8.314472*Foglio1!$C$14*Foglio2!N122, NA()) ->  | P122: =IF(Foglio1!$H$14 <> "", Foglio1!$H$14 + O122*10^-3, NA()) ->  | Q122: 1045 | R122: 6.951772164 | S122: =IF(Foglio1!$C$15 <> "", 8.314472*Foglio1!$C$15*Foglio2!R122, NA()) ->  | T122: =IF(Foglio1!$H$15 <> "", Foglio1!$H$15 + S122*10^-3, NA()) -> 
A123: 1054 | B123: 6.960347729 | C123: =IF(Foglio1!$C$11 <> "", 8.314472*Foglio1!$C$11*Foglio2!B123, NA()) -> 17361.48489 | D123: =IF(Foglio1!$H$11 <> "", Foglio1!$H$11 + C123*10^-3, NA()) -> -72.63851511 | E123: 1054 | F123: 6.960347729 | G123: =IF(Foglio1!$C$12 <> "", 8.314472*Foglio1!$C$12*Foglio2!F123, NA()) ->  | H123: =IF(Foglio1!$H$12 <> "", Foglio1!$H$12 + G123*10^-3, NA()) ->  | I123: 1054 | J123: 6.960347729 | K123: =IF(Foglio1!$C$13 <> "", 8.314472*Foglio1!$C$13*Foglio2!J123, NA()) ->  | L123: =IF(Foglio1!$H$13 <> "", Foglio1!$H$13 + K123*10^-3, NA()) ->  | M123: 1054 | N123: 6.960347729 | O123: =IF(Foglio1!$C$14 <> "", 8.314472*Foglio1!$C$14*Foglio2!N123, NA()) ->  | P123: =IF(Foglio1!$H$14 <> "", Foglio1!$H$14 + O123*10^-3, NA()) ->  | Q123: 1054 | R123: 6.960347729 | S123: =IF(Foglio1!$C$15 <> "", 8.314472*Foglio1!$C$15*Foglio2!R123, NA()) ->  | T123: =IF(Foglio1!$H$15 <> "", Foglio1!$H$15 + S123*10^-3, NA()) -> 
A124: 1063 | B124: 6.968850378 | C124: =IF(Foglio1!$C$11 <> "", 8.314472*Foglio1!$C$11*Foglio2!B124, NA()) -> 17382.6934 | D124: =IF(Foglio1!$H$11 <> "", Foglio1!$H$11 + C124*10^-3, NA()) -> -72.6173066 | E124: 1063 | F124: 6.968850378 | G124: =IF(Foglio1!$C$12 <> "", 8.314472*Foglio1!$C$12*Foglio2!F124, NA()) ->  | H124: =IF(Foglio1!$H$12 <> "", Foglio1!$H$12 + G124*10^-3, NA()) ->  | I124: 1063 | J124: 6.968850378 | K124: =IF(Foglio1!$C$13 <> "", 8.314472*Foglio1!$C$13*Foglio2!J124, NA()) ->  | L124: =IF(Foglio1!$H$13 <> "", Foglio1!$H$13 + K124*10^-3, NA()) ->  | M124: 1063 | N124: 6.968850378 | O124: =IF(Foglio1!$C$14 <> "", 8.314472*Foglio1!$C$14*Foglio2!N124, NA()) ->  | P124: =IF(Foglio1!$H$14 <> "", Foglio1!$H$14 + O124*10^-3, NA()) ->  | Q124: 1063 | R124: 6.968850378 | S124: =IF(Foglio1!$C$15 <> "", 8.314472*Foglio1!$C$15*Foglio2!R124, NA()) ->  | T124: =IF(Foglio1!$H$15 <> "", Foglio1!$H$15 + S124*10^-3, NA()) -> 
A125: 1072 | B125: 6.977281342 | C125: =IF(Foglio1!$C$11 <> "", 8.314472*Foglio1!$C$11*Foglio2!B125, NA()) -> 17403.72311 | D125: =IF(Foglio1!$H$11 <> "", Foglio1!$H$11 + C125*10^-3, NA()) -> -72.59627689 | E125: 1072 | F125: 6.977281342 | G125: =IF(Foglio1!$C$12 <> "", 8.314472*Foglio1!$C$12*Foglio2!F125, NA()) ->  | H125: =IF(Foglio1!$H$12 <> "", Foglio1!$H$12 + G125*10^-3, NA()) ->  | I125: 1072 | J125: 6.977281342 | K125: =IF(Foglio1!$C$13 <> "", 8.314472*Foglio1!$C$13*Foglio2!J125, NA()) ->  | L125: =IF(Foglio1!$H$13 <> "", Foglio1!$H$13 + K125*10^-3, NA()) ->  | M125: 1072 | N125: 6.977281342 | O125: =IF(Foglio1!$C$14 <> "", 8.314472*Foglio1!$C$14*Foglio2!N125, NA()) ->  | P125: =IF(Foglio1!$H$14 <> "", Foglio1!$H$14 + O125*10^-3, NA()) ->  | Q125: 1072 | R125: 6.977281342 | S125: =IF(Foglio1!$C$15 <> "", 8.314472*Foglio1!$C$15*Foglio2!R125, NA()) ->  | T125: =IF(Foglio1!$H$15 <> "", Foglio1!$H$15 + S125*10^-3, NA()) -> 
A126: 1081 | B126: 6.985641818 | C126: =IF(Foglio1!$C$11 <> "", 8.314472*Foglio1!$C$11*Foglio2!B126, NA()) -> 17424.57699 | D126: =IF(Foglio1!$H$11 <> "", Foglio1!$H$11 + C126*10^-3, NA()) -> -72.57542301 | E126: 1081 | F126: 6.985641818 | G126: =IF(Foglio1!$C$12 <> "", 8.314472*Foglio1!$C$12*Foglio2!F126, NA()) ->  | H126: =IF(Foglio1!$H$12 <> "", Foglio1!$H$12 + G126*10^-3, NA()) ->  | I126: 1081 | J126: 6.985641818 | K126: =IF(Foglio1!$C$13 <> "", 8.314472*Foglio1!$C$13*Foglio2!J126, NA()) ->  | L126: =IF(Foglio1!$H$13 <> "", Foglio1!$H$13 + K126*10^-3, NA()) ->  | M126: 1081 | N126: 6.985641818 | O126: =IF(Foglio1!$C$14 <> "", 8.314472*Foglio1!$C$14*Foglio2!N126, NA()) ->  | P126: =IF(Foglio1!$H$14 <> "", Foglio1!$H$14 + O126*10^-3, NA()) ->  | Q126: 1081 | R126: 6.985641818 | S126: =IF(Foglio1!$C$15 <> "", 8.314472*Foglio1!$C$15*Foglio2!R126, NA()) ->  | T126: =IF(Foglio1!$H$15 <> "", Foglio1!$H$15 + S126*10^-3, NA()) -> 
A127: 1090 | B127: 6.993932975 | C127: =IF(Foglio1!$C$11 <> "", 8.314472*Foglio1!$C$11*Foglio2!B127, NA()) -> 17445.25797 | D127: =IF(Foglio1!$H$11 <> "", Foglio1!$H$11 + C127*10^-3, NA()) -> -72.55474203 | E127: 1090 | F127: 6.993932975 | G127: =IF(Foglio1!$C$12 <> "", 8.314472*Foglio1!$C$12*Foglio2!F127, NA()) ->  | H127: =IF(Foglio1!$H$12 <> "", Foglio1!$H$12 + G127*10^-3, NA()) ->  | I127: 1090 | J127: 6.993932975 | K127: =IF(Foglio1!$C$13 <> "", 8.314472*Foglio1!$C$13*Foglio2!J127, NA()) ->  | L127: =IF(Foglio1!$H$13 <> "", Foglio1!$H$13 + K127*10^-3, NA()) ->  | M127: 1090 | N127: 6.993932975 | O127: =IF(Foglio1!$C$14 <> "", 8.314472*Foglio1!$C$14*Foglio2!N127, NA()) ->  | P127: =IF(Foglio1!$H$14 <> "", Foglio1!$H$14 + O127*10^-3, NA()) ->  | Q127: 1090 | R127: 6.993932975 | S127: =IF(Foglio1!$C$15 <> "", 8.314472*Foglio1!$C$15*Foglio2!R127, NA()) ->  | T127: =IF(Foglio1!$H$15 <> "", Foglio1!$H$15 + S127*10^-3, NA()) -> 
A128: 1099 | B128: 7.002155954 | C128: =IF(Foglio1!$C$11 <> "", 8.314472*Foglio1!$C$11*Foglio2!B128, NA()) -> 17465.76889 | D128: =IF(Foglio1!$H$11 <> "", Foglio1!$H$11 + C128*10^-3, NA()) -> -72.53423111 | E128: 1099 | F128: 7.002155954 | G128: =IF(Foglio1!$C$12 <> "", 8.314472*Foglio1!$C$12*Foglio2!F128, NA()) ->  | H128: =IF(Foglio1!$H$12 <> "", Foglio1!$H$12 + G128*10^-3, NA()) ->  | I128: 1099 | J128: 7.002155954 | K128: =IF(Foglio1!$C$13 <> "", 8.314472*Foglio1!$C$13*Foglio2!J128, NA()) ->  | L128: =IF(Foglio1!$H$13 <> "", Foglio1!$H$13 + K128*10^-3, NA()) ->  | M128: 1099 | N128: 7.002155954 | O128: =IF(Foglio1!$C$14 <> "", 8.314472*Foglio1!$C$14*Foglio2!N128, NA()) ->  | P128: =IF(Foglio1!$H$14 <> "", Foglio1!$H$14 + O128*10^-3, NA()) ->  | Q128: 1099 | R128: 7.002155954 | S128: =IF(Foglio1!$C$15 <> "", 8.314472*Foglio1!$C$15*Foglio2!R128, NA()) ->  | T128: =IF(Foglio1!$H$15 <> "", Foglio1!$H$15 + S128*10^-3, NA()) -> 
A129: 1108 | B129: 7.010311867 | C129: =IF(Foglio1!$C$11 <> "", 8.314472*Foglio1!$C$11*Foglio2!B129, NA()) -> 17486.11252 | D129: =IF(Foglio1!$H$11 <> "", Foglio1!$H$11 + C129*10^-3, NA()) -> -72.51388748 | E129: 1108 | F129: 7.010311867 | G129: =IF(Foglio1!$C$12 <> "", 8.314472*Foglio1!$C$12*Foglio2!F129, NA()) ->  | H129: =IF(Foglio1!$H$12 <> "", Foglio1!$H$12 + G129*10^-3, NA()) ->  | I129: 1108 | J129: 7.010311867 | K129: =IF(Foglio1!$C$13 <> "", 8.314472*Foglio1!$C$13*Foglio2!J129, NA()) ->  | L129: =IF(Foglio1!$H$13 <> "", Foglio1!$H$13 + K129*10^-3, NA()) ->  | M129: 1108 | N129: 7.010311867 | O129: =IF(Foglio1!$C$14 <> "", 8.314472*Foglio1!$C$14*Foglio2!N129, NA()) ->  | P129: =IF(Foglio1!$H$14 <> "", Foglio1!$H$14 + O129*10^-3, NA()) ->  | Q129: 1108 | R129: 7.010311867 | S129: =IF(Foglio1!$C$15 <> "", 8.314472*Foglio1!$C$15*Foglio2!R129, NA()) ->  | T129: =IF(Foglio1!$H$15 <> "", Foglio1!$H$15 + S129*10^-3, NA()) -> 
A130: 1117 | B130: 7.018401799 | C130: =IF(Foglio1!$C$11 <> "", 8.314472*Foglio1!$C$11*Foglio2!B130, NA()) -> 17506.29157 | D130: =IF(Foglio1!$H$11 <> "", Foglio1!$H$11 + C130*10^-3, NA()) -> -72.49370843 | E130: 1117 | F130: 7.018401799 | G130: =IF(Foglio1!$C$12 <> "", 8.314472*Foglio1!$C$12*Foglio2!F130, NA()) ->  | H130: =IF(Foglio1!$H$12 <> "", Foglio1!$H$12 + G130*10^-3, NA()) ->  | I130: 1117 | J130: 7.018401799 | K130: =IF(Foglio1!$C$13 <> "", 8.314472*Foglio1!$C$13*Foglio2!J130, NA()) ->  | L130: =IF(Foglio1!$H$13 <> "", Foglio1!$H$13 + K130*10^-3, NA()) ->  | M130: 1117 | N130: 7.018401799 | O130: =IF(Foglio1!$C$14 <> "", 8.314472*Foglio1!$C$14*Foglio2!N130, NA()) ->  | P130: =IF(Foglio1!$H$14 <> "", Foglio1!$H$14 + O130*10^-3, NA()) ->  | Q130: 1117 | R130: 7.018401799 | S130: =IF(Foglio1!$C$15 <> "", 8.314472*Foglio1!$C$15*Foglio2!R130, NA()) ->  | T130: =IF(Foglio1!$H$15 <> "", Foglio1!$H$15 + S130*10^-3, NA()) -> 
A131: 1126 | B131: =LN(A131) -> 7.026426809 | C131: =IF(Foglio1!$C$11 <> "", 8.314472*Foglio1!$C$11*Foglio2!B131, NA()) -> 17526.30869 | D131: =IF(Foglio1!$H$11 <> "", Foglio1!$H$11 + C131*10^-3, NA()) -> -72.47369131 | E131: 1126 | F131: =LN(E131) -> 7.026426809 | G131: =IF(Foglio1!$C$12 <> "", 8.314472*Foglio1!$C$12*Foglio2!F131, NA()) ->  | H131: =IF(Foglio1!$H$12 <> "", Foglio1!$H$12 + G131*10^-3, NA()) ->  | I131: 1126 | J131: =LN(I131) -> 7.026426809 | K131: =IF(Foglio1!$C$13 <> "", 8.314472*Foglio1!$C$13*Foglio2!J131, NA()) ->  | L131: =IF(Foglio1!$H$13 <> "", Foglio1!$H$13 + K131*10^-3, NA()) ->  | M131: 1126 | N131: =LN(M131) -> 7.026426809 | O131: =IF(Foglio1!$C$14 <> "", 8.314472*Foglio1!$C$14*Foglio2!N131, NA()) ->  | P131: =IF(Foglio1!$H$14 <> "", Foglio1!$H$14 + O131*10^-3, NA()) ->  | Q131: 1126 | R131: =LN(Q131) -> 7.026426809 | S131: =IF(Foglio1!$C$15 <> "", 8.314472*Foglio1!$C$15*Foglio2!R131, NA()) ->  | T131: =IF(Foglio1!$H$15 <> "", Foglio1!$H$15 + S131*10^-3, NA()) -> 
A132: 1135 | B132: 7.03438793 | C132: =IF(Foglio1!$C$11 <> "", 8.314472*Foglio1!$C$11*Foglio2!B132, NA()) -> 17546.16644 | D132: =IF(Foglio1!$H$11 <> "", Foglio1!$H$11 + C132*10^-3, NA()) -> -72.45383356 | E132: 1135 | F132: 7.03438793 | G132: =IF(Foglio1!$C$12 <> "", 8.314472*Foglio1!$C$12*Foglio2!F132, NA()) ->  | H132: =IF(Foglio1!$H$12 <> "", Foglio1!$H$12 + G132*10^-3, NA()) ->  | I132: 1135 | J132: 7.03438793 | K132: =IF(Foglio1!$C$13 <> "", 8.314472*Foglio1!$C$13*Foglio2!J132, NA()) ->  | L132: =IF(Foglio1!$H$13 <> "", Foglio1!$H$13 + K132*10^-3, NA()) ->  | M132: 1135 | N132: 7.03438793 | O132: =IF(Foglio1!$C$14 <> "", 8.314472*Foglio1!$C$14*Foglio2!N132, NA()) ->  | P132: =IF(Foglio1!$H$14 <> "", Foglio1!$H$14 + O132*10^-3, NA()) ->  | Q132: 1135 | R132: 7.03438793 | S132: =IF(Foglio1!$C$15 <> "", 8.314472*Foglio1!$C$15*Foglio2!R132, NA()) ->  | T132: =IF(Foglio1!$H$15 <> "", Foglio1!$H$15 + S132*10^-3, NA()) -> 
A133: 1144 | B133: 7.042286172 | C133: =IF(Foglio1!$C$11 <> "", 8.314472*Foglio1!$C$11*Foglio2!B133, NA()) -> 17565.86736 | D133: =IF(Foglio1!$H$11 <> "", Foglio1!$H$11 + C133*10^-3, NA()) -> -72.43413264 | E133: 1144 | F133: 7.042286172 | G133: =IF(Foglio1!$C$12 <> "", 8.314472*Foglio1!$C$12*Foglio2!F133, NA()) ->  | H133: =IF(Foglio1!$H$12 <> "", Foglio1!$H$12 + G133*10^-3, NA()) ->  | I133: 1144 | J133: 7.042286172 | K133: =IF(Foglio1!$C$13 <> "", 8.314472*Foglio1!$C$13*Foglio2!J133, NA()) ->  | L133: =IF(Foglio1!$H$13 <> "", Foglio1!$H$13 + K133*10^-3, NA()) ->  | M133: 1144 | N133: 7.042286172 | O133: =IF(Foglio1!$C$14 <> "", 8.314472*Foglio1!$C$14*Foglio2!N133, NA()) ->  | P133: =IF(Foglio1!$H$14 <> "", Foglio1!$H$14 + O133*10^-3, NA()) ->  | Q133: 1144 | R133: 7.042286172 | S133: =IF(Foglio1!$C$15 <> "", 8.314472*Foglio1!$C$15*Foglio2!R133, NA()) ->  | T133: =IF(Foglio1!$H$15 <> "", Foglio1!$H$15 + S133*10^-3, NA()) -> 
A134: 1153 | B134: 7.05012252 | C134: =IF(Foglio1!$C$11 <> "", 8.314472*Foglio1!$C$11*Foglio2!B134, NA()) -> 17585.41389 | D134: =IF(Foglio1!$H$11 <> "", Foglio1!$H$11 + C134*10^-3, NA()) -> -72.41458611 | E134: 1153 | F134: 7.05012252 | G134: =IF(Foglio1!$C$12 <> "", 8.314472*Foglio1!$C$12*Foglio2!F134, NA()) ->  | H134: =IF(Foglio1!$H$12 <> "", Foglio1!$H$12 + G134*10^-3, NA()) ->  | I134: 1153 | J134: 7.05012252 | K134: =IF(Foglio1!$C$13 <> "", 8.314472*Foglio1!$C$13*Foglio2!J134, NA()) ->  | L134: =IF(Foglio1!$H$13 <> "", Foglio1!$H$13 + K134*10^-3, NA()) ->  | M134: 1153 | N134: 7.05012252 | O134: =IF(Foglio1!$C$14 <> "", 8.314472*Foglio1!$C$14*Foglio2!N134, NA()) ->  | P134: =IF(Foglio1!$H$14 <> "", Foglio1!$H$14 + O134*10^-3, NA()) ->  | Q134: 1153 | R134: 7.05012252 | S134: =IF(Foglio1!$C$15 <> "", 8.314472*Foglio1!$C$15*Foglio2!R134, NA()) ->  | T134: =IF(Foglio1!$H$15 <> "", Foglio1!$H$15 + S134*10^-3, NA()) -> 
A135: 1162 | B135: 7.057897937 | C135: =IF(Foglio1!$C$11 <> "", 8.314472*Foglio1!$C$11*Foglio2!B135, NA()) -> 17604.80843 | D135: =IF(Foglio1!$H$11 <> "", Foglio1!$H$11 + C135*10^-3, NA()) -> -72.39519157 | E135: 1162 | F135: 7.057897937 | G135: =IF(Foglio1!$C$12 <> "", 8.314472*Foglio1!$C$12*Foglio2!F135, NA()) ->  | H135: =IF(Foglio1!$H$12 <> "", Foglio1!$H$12 + G135*10^-3, NA()) ->  | I135: 1162 | J135: 7.057897937 | K135: =IF(Foglio1!$C$13 <> "", 8.314472*Foglio1!$C$13*Foglio2!J135, NA()) ->  | L135: =IF(Foglio1!$H$13 <> "", Foglio1!$H$13 + K135*10^-3, NA()) ->  | M135: 1162 | N135: 7.057897937 | O135: =IF(Foglio1!$C$14 <> "", 8.314472*Foglio1!$C$14*Foglio2!N135, NA()) ->  | P135: =IF(Foglio1!$H$14 <> "", Foglio1!$H$14 + O135*10^-3, NA()) ->  | Q135: 1162 | R135: 7.057897937 | S135: =IF(Foglio1!$C$15 <> "", 8.314472*Foglio1!$C$15*Foglio2!R135, NA()) ->  | T135: =IF(Foglio1!$H$15 <> "", Foglio1!$H$15 + S135*10^-3, NA()) -> 
A136: 1171 | B136: 7.065613364 | C136: =IF(Foglio1!$C$11 <> "", 8.314472*Foglio1!$C$11*Foglio2!B136, NA()) -> 17624.05334 | D136: =IF(Foglio1!$H$11 <> "", Foglio1!$H$11 + C136*10^-3, NA()) -> -72.37594666 | E136: 1171 | F136: 7.065613364 | G136: =IF(Foglio1!$C$12 <> "", 8.314472*Foglio1!$C$12*Foglio2!F136, NA()) ->  | H136: =IF(Foglio1!$H$12 <> "", Foglio1!$H$12 + G136*10^-3, NA()) ->  | I136: 1171 | J136: 7.065613364 | K136: =IF(Foglio1!$C$13 <> "", 8.314472*Foglio1!$C$13*Foglio2!J136, NA()) ->  | L136: =IF(Foglio1!$H$13 <> "", Foglio1!$H$13 + K136*10^-3, NA()) ->  | M136: 1171 | N136: 7.065613364 | O136: =IF(Foglio1!$C$14 <> "", 8.314472*Foglio1!$C$14*Foglio2!N136, NA()) ->  | P136: =IF(Foglio1!$H$14 <> "", Foglio1!$H$14 + O136*10^-3, NA()) ->  | Q136: 1171 | R136: 7.065613364 | S136: =IF(Foglio1!$C$15 <> "", 8.314472*Foglio1!$C$15*Foglio2!R136, NA()) ->  | T136: =IF(Foglio1!$H$15 <> "", Foglio1!$H$15 + S136*10^-3, NA()) -> 
A137: 1180 | B137: 7.073269717 | C137: =IF(Foglio1!$C$11 <> "", 8.314472*Foglio1!$C$11*Foglio2!B137, NA()) -> 17643.1509 | D137: =IF(Foglio1!$H$11 <> "", Foglio1!$H$11 + C137*10^-3, NA()) -> -72.3568491 | E137: 1180 | F137: 7.073269717 | G137: =IF(Foglio1!$C$12 <> "", 8.314472*Foglio1!$C$12*Foglio2!F137, NA()) ->  | H137: =IF(Foglio1!$H$12 <> "", Foglio1!$H$12 + G137*10^-3, NA()) ->  | I137: 1180 | J137: 7.073269717 | K137: =IF(Foglio1!$C$13 <> "", 8.314472*Foglio1!$C$13*Foglio2!J137, NA()) ->  | L137: =IF(Foglio1!$H$13 <> "", Foglio1!$H$13 + K137*10^-3, NA()) ->  | M137: 1180 | N137: 7.073269717 | O137: =IF(Foglio1!$C$14 <> "", 8.314472*Foglio1!$C$14*Foglio2!N137, NA()) ->  | P137: =IF(Foglio1!$H$14 <> "", Foglio1!$H$14 + O137*10^-3, NA()) ->  | Q137: 1180 | R137: 7.073269717 | S137: =IF(Foglio1!$C$15 <> "", 8.314472*Foglio1!$C$15*Foglio2!R137, NA()) ->  | T137: =IF(Foglio1!$H$15 <> "", Foglio1!$H$15 + S137*10^-3, NA()) -> 
A138: 1189 | B138: 7.080867897 | C138: =IF(Foglio1!$C$11 <> "", 8.314472*Foglio1!$C$11*Foglio2!B138, NA()) -> 17662.10336 | D138: =IF(Foglio1!$H$11 <> "", Foglio1!$H$11 + C138*10^-3, NA()) -> -72.33789664 | E138: 1189 | F138: 7.080867897 | G138: =IF(Foglio1!$C$12 <> "", 8.314472*Foglio1!$C$12*Foglio2!F138, NA()) ->  | H138: =IF(Foglio1!$H$12 <> "", Foglio1!$H$12 + G138*10^-3, NA()) ->  | I138: 1189 | J138: 7.080867897 | K138: =IF(Foglio1!$C$13 <> "", 8.314472*Foglio1!$C$13*Foglio2!J138, NA()) ->  | L138: =IF(Foglio1!$H$13 <> "", Foglio1!$H$13 + K138*10^-3, NA()) ->  | M138: 1189 | N138: 7.080867897 | O138: =IF(Foglio1!$C$14 <> "", 8.314472*Foglio1!$C$14*Foglio2!N138, NA()) ->  | P138: =IF(Foglio1!$H$14 <> "", Foglio1!$H$14 + O138*10^-3, NA()) ->  | Q138: 1189 | R138: 7.080867897 | S138: =IF(Foglio1!$C$15 <> "", 8.314472*Foglio1!$C$15*Foglio2!R138, NA()) ->  | T138: =IF(Foglio1!$H$15 <> "", Foglio1!$H$15 + S138*10^-3, NA()) -> 
A139: 1198 | B139: 7.088408779 | C139: =IF(Foglio1!$C$11 <> "", 8.314472*Foglio1!$C$11*Foglio2!B139, NA()) -> 17680.91289 | D139: =IF(Foglio1!$H$11 <> "", Foglio1!$H$11 + C139*10^-3, NA()) -> -72.31908711 | E139: 1198 | F139: 7.088408779 | G139: =IF(Foglio1!$C$12 <> "", 8.314472*Foglio1!$C$12*Foglio2!F139, NA()) ->  | H139: =IF(Foglio1!$H$12 <> "", Foglio1!$H$12 + G139*10^-3, NA()) ->  | I139: 1198 | J139: 7.088408779 | K139: =IF(Foglio1!$C$13 <> "", 8.314472*Foglio1!$C$13*Foglio2!J139, NA()) ->  | L139: =IF(Foglio1!$H$13 <> "", Foglio1!$H$13 + K139*10^-3, NA()) ->  | M139: 1198 | N139: 7.088408779 | O139: =IF(Foglio1!$C$14 <> "", 8.314472*Foglio1!$C$14*Foglio2!N139, NA()) ->  | P139: =IF(Foglio1!$H$14 <> "", Foglio1!$H$14 + O139*10^-3, NA()) ->  | Q139: 1198 | R139: 7.088408779 | S139: =IF(Foglio1!$C$15 <> "", 8.314472*Foglio1!$C$15*Foglio2!R139, NA()) ->  | T139: =IF(Foglio1!$H$15 <> "", Foglio1!$H$15 + S139*10^-3, NA()) -> 
A140: 1207 | B140: 7.095893221 | C140: =IF(Foglio1!$C$11 <> "", 8.314472*Foglio1!$C$11*Foglio2!B140, NA()) -> 17699.58165 | D140: =IF(Foglio1!$H$11 <> "", Foglio1!$H$11 + C140*10^-3, NA()) -> -72.30041835 | E140: 1207 | F140: 7.095893221 | G140: =IF(Foglio1!$C$12 <> "", 8.314472*Foglio1!$C$12*Foglio2!F140, NA()) ->  | H140: =IF(Foglio1!$H$12 <> "", Foglio1!$H$12 + G140*10^-3, NA()) ->  | I140: 1207 | J140: 7.095893221 | K140: =IF(Foglio1!$C$13 <> "", 8.314472*Foglio1!$C$13*Foglio2!J140, NA()) ->  | L140: =IF(Foglio1!$H$13 <> "", Foglio1!$H$13 + K140*10^-3, NA()) ->  | M140: 1207 | N140: 7.095893221 | O140: =IF(Foglio1!$C$14 <> "", 8.314472*Foglio1!$C$14*Foglio2!N140, NA()) ->  | P140: =IF(Foglio1!$H$14 <> "", Foglio1!$H$14 + O140*10^-3, NA()) ->  | Q140: 1207 | R140: 7.095893221 | S140: =IF(Foglio1!$C$15 <> "", 8.314472*Foglio1!$C$15*Foglio2!R140, NA()) ->  | T140: =IF(Foglio1!$H$15 <> "", Foglio1!$H$15 + S140*10^-3, NA()) -> 
A141: 1216 | B141: 7.103322063 | C141: =IF(Foglio1!$C$11 <> "", 8.314472*Foglio1!$C$11*Foglio2!B141, NA()) -> 17718.11172 | D141: =IF(Foglio1!$H$11 <> "", Foglio1!$H$11 + C141*10^-3, NA()) -> -72.28188828 | E141: 1216 | F141: 7.103322063 | G141: =IF(Foglio1!$C$12 <> "", 8.314472*Foglio1!$C$12*Foglio2!F141, NA()) ->  | H141: =IF(Foglio1!$H$12 <> "", Foglio1!$H$12 + G141*10^-3, NA()) ->  | I141: 1216 | J141: 7.103322063 | K141: =IF(Foglio1!$C$13 <> "", 8.314472*Foglio1!$C$13*Foglio2!J141, NA()) ->  | L141: =IF(Foglio1!$H$13 <> "", Foglio1!$H$13 + K141*10^-3, NA()) ->  | M141: 1216 | N141: 7.103322063 | O141: =IF(Foglio1!$C$14 <> "", 8.314472*Foglio1!$C$14*Foglio2!N141, NA()) ->  | P141: =IF(Foglio1!$H$14 <> "", Foglio1!$H$14 + O141*10^-3, NA()) ->  | Q141: 1216 | R141: 7.103322063 | S141: =IF(Foglio1!$C$15 <> "", 8.314472*Foglio1!$C$15*Foglio2!R141, NA()) ->  | T141: =IF(Foglio1!$H$15 <> "", Foglio1!$H$15 + S141*10^-3, NA()) -> 
A142: 1225 | B142: 7.110696123 | C142: =IF(Foglio1!$C$11 <> "", 8.314472*Foglio1!$C$11*Foglio2!B142, NA()) -> 17736.50514 | D142: =IF(Foglio1!$H$11 <> "", Foglio1!$H$11 + C142*10^-3, NA()) -> -72.26349486 | E142: 1225 | F142: 7.110696123 | G142: =IF(Foglio1!$C$12 <> "", 8.314472*Foglio1!$C$12*Foglio2!F142, NA()) ->  | H142: =IF(Foglio1!$H$12 <> "", Foglio1!$H$12 + G142*10^-3, NA()) ->  | I142: 1225 | J142: 7.110696123 | K142: =IF(Foglio1!$C$13 <> "", 8.314472*Foglio1!$C$13*Foglio2!J142, NA()) ->  | L142: =IF(Foglio1!$H$13 <> "", Foglio1!$H$13 + K142*10^-3, NA()) ->  | M142: 1225 | N142: 7.110696123 | O142: =IF(Foglio1!$C$14 <> "", 8.314472*Foglio1!$C$14*Foglio2!N142, NA()) ->  | P142: =IF(Foglio1!$H$14 <> "", Foglio1!$H$14 + O142*10^-3, NA()) ->  | Q142: 1225 | R142: 7.110696123 | S142: =IF(Foglio1!$C$15 <> "", 8.314472*Foglio1!$C$15*Foglio2!R142, NA()) ->  | T142: =IF(Foglio1!$H$15 <> "", Foglio1!$H$15 + S142*10^-3, NA()) -> 
A143: 1234 | B143: 7.118016204 | C143: =IF(Foglio1!$C$11 <> "", 8.314472*Foglio1!$C$11*Foglio2!B143, NA()) -> 17754.76393 | D143: =IF(Foglio1!$H$11 <> "", Foglio1!$H$11 + C143*10^-3, NA()) -> -72.24523607 | E143: 1234 | F143: 7.118016204 | G143: =IF(Foglio1!$C$12 <> "", 8.314472*Foglio1!$C$12*Foglio2!F143, NA()) ->  | H143: =IF(Foglio1!$H$12 <> "", Foglio1!$H$12 + G143*10^-3, NA()) ->  | I143: 1234 | J143: 7.118016204 | K143: =IF(Foglio1!$C$13 <> "", 8.314472*Foglio1!$C$13*Foglio2!J143, NA()) ->  | L143: =IF(Foglio1!$H$13 <> "", Foglio1!$H$13 + K143*10^-3, NA()) ->  | M143: 1234 | N143: 7.118016204 | O143: =IF(Foglio1!$C$14 <> "", 8.314472*Foglio1!$C$14*Foglio2!N143, NA()) ->  | P143: =IF(Foglio1!$H$14 <> "", Foglio1!$H$14 + O143*10^-3, NA()) ->  | Q143: 1234 | R143: 7.118016204 | S143: =IF(Foglio1!$C$15 <> "", 8.314472*Foglio1!$C$15*Foglio2!R143, NA()) ->  | T143: =IF(Foglio1!$H$15 <> "", Foglio1!$H$15 + S143*10^-3, NA()) -> 
A144: 1243 | B144: 7.125283092 | C144: =IF(Foglio1!$C$11 <> "", 8.314472*Foglio1!$C$11*Foglio2!B144, NA()) -> 17772.89003 | D144: =IF(Foglio1!$H$11 <> "", Foglio1!$H$11 + C144*10^-3, NA()) -> -72.22710997 | E144: 1243 | F144: 7.125283092 | G144: =IF(Foglio1!$C$12 <> "", 8.314472*Foglio1!$C$12*Foglio2!F144, NA()) ->  | H144: =IF(Foglio1!$H$12 <> "", Foglio1!$H$12 + G144*10^-3, NA()) ->  | I144: 1243 | J144: 7.125283092 | K144: =IF(Foglio1!$C$13 <> "", 8.314472*Foglio1!$C$13*Foglio2!J144, NA()) ->  | L144: =IF(Foglio1!$H$13 <> "", Foglio1!$H$13 + K144*10^-3, NA()) ->  | M144: 1243 | N144: 7.125283092 | O144: =IF(Foglio1!$C$14 <> "", 8.314472*Foglio1!$C$14*Foglio2!N144, NA()) ->  | P144: =IF(Foglio1!$H$14 <> "", Foglio1!$H$14 + O144*10^-3, NA()) ->  | Q144: 1243 | R144: 7.125283092 | S144: =IF(Foglio1!$C$15 <> "", 8.314472*Foglio1!$C$15*Foglio2!R144, NA()) ->  | T144: =IF(Foglio1!$H$15 <> "", Foglio1!$H$15 + S144*10^-3, NA()) -> 
A145: 1252 | B145: 7.132497552 | C145: =IF(Foglio1!$C$11 <> "", 8.314472*Foglio1!$C$11*Foglio2!B145, NA()) -> 17790.88536 | D145: =IF(Foglio1!$H$11 <> "", Foglio1!$H$11 + C145*10^-3, NA()) -> -72.20911464 | E145: 1252 | F145: 7.132497552 | G145: =IF(Foglio1!$C$12 <> "", 8.314472*Foglio1!$C$12*Foglio2!F145, NA()) ->  | H145: =IF(Foglio1!$H$12 <> "", Foglio1!$H$12 + G145*10^-3, NA()) ->  | I145: 1252 | J145: 7.132497552 | K145: =IF(Foglio1!$C$13 <> "", 8.314472*Foglio1!$C$13*Foglio2!J145, NA()) ->  | L145: =IF(Foglio1!$H$13 <> "", Foglio1!$H$13 + K145*10^-3, NA()) ->  | M145: 1252 | N145: 7.132497552 | O145: =IF(Foglio1!$C$14 <> "", 8.314472*Foglio1!$C$14*Foglio2!N145, NA()) ->  | P145: =IF(Foglio1!$H$14 <> "", Foglio1!$H$14 + O145*10^-3, NA()) ->  | Q145: 1252 | R145: 7.132497552 | S145: =IF(Foglio1!$C$15 <> "", 8.314472*Foglio1!$C$15*Foglio2!R145, NA()) ->  | T145: =IF(Foglio1!$H$15 <> "", Foglio1!$H$15 + S145*10^-3, NA()) -> 
A146: 1261 | B146: 7.139660336 | C146: =IF(Foglio1!$C$11 <> "", 8.314472*Foglio1!$C$11*Foglio2!B146, NA()) -> 17808.75179 | D146: =IF(Foglio1!$H$11 <> "", Foglio1!$H$11 + C146*10^-3, NA()) -> -72.19124821 | E146: 1261 | F146: 7.139660336 | G146: =IF(Foglio1!$C$12 <> "", 8.314472*Foglio1!$C$12*Foglio2!F146, NA()) ->  | H146: =IF(Foglio1!$H$12 <> "", Foglio1!$H$12 + G146*10^-3, NA()) ->  | I146: 1261 | J146: 7.139660336 | K146: =IF(Foglio1!$C$13 <> "", 8.314472*Foglio1!$C$13*Foglio2!J146, NA()) ->  | L146: =IF(Foglio1!$H$13 <> "", Foglio1!$H$13 + K146*10^-3, NA()) ->  | M146: 1261 | N146: 7.139660336 | O146: =IF(Foglio1!$C$14 <> "", 8.314472*Foglio1!$C$14*Foglio2!N146, NA()) ->  | P146: =IF(Foglio1!$H$14 <> "", Foglio1!$H$14 + O146*10^-3, NA()) ->  | Q146: 1261 | R146: 7.139660336 | S146: =IF(Foglio1!$C$15 <> "", 8.314472*Foglio1!$C$15*Foglio2!R146, NA()) ->  | T146: =IF(Foglio1!$H$15 <> "", Foglio1!$H$15 + S146*10^-3, NA()) -> 
A147: 1270 | B147: 7.146772179 | C147: =IF(Foglio1!$C$11 <> "", 8.314472*Foglio1!$C$11*Foglio2!B147, NA()) -> 17826.49115 | D147: =IF(Foglio1!$H$11 <> "", Foglio1!$H$11 + C147*10^-3, NA()) -> -72.17350885 | E147: 1270 | F147: 7.146772179 | G147: =IF(Foglio1!$C$12 <> "", 8.314472*Foglio1!$C$12*Foglio2!F147, NA()) ->  | H147: =IF(Foglio1!$H$12 <> "", Foglio1!$H$12 + G147*10^-3, NA()) ->  | I147: 1270 | J147: 7.146772179 | K147: =IF(Foglio1!$C$13 <> "", 8.314472*Foglio1!$C$13*Foglio2!J147, NA()) ->  | L147: =IF(Foglio1!$H$13 <> "", Foglio1!$H$13 + K147*10^-3, NA()) ->  | M147: 1270 | N147: 7.146772179 | O147: =IF(Foglio1!$C$14 <> "", 8.314472*Foglio1!$C$14*Foglio2!N147, NA()) ->  | P147: =IF(Foglio1!$H$14 <> "", Foglio1!$H$14 + O147*10^-3, NA()) ->  | Q147: 1270 | R147: 7.146772179 | S147: =IF(Foglio1!$C$15 <> "", 8.314472*Foglio1!$C$15*Foglio2!R147, NA()) ->  | T147: =IF(Foglio1!$H$15 <> "", Foglio1!$H$15 + S147*10^-3, NA()) -> 
A148: 1279 | B148: 7.153833802 | C148: =IF(Foglio1!$C$11 <> "", 8.314472*Foglio1!$C$11*Foglio2!B148, NA()) -> 17844.10525 | D148: =IF(Foglio1!$H$11 <> "", Foglio1!$H$11 + C148*10^-3, NA()) -> -72.15589475 | E148: 1279 | F148: 7.153833802 | G148: =IF(Foglio1!$C$12 <> "", 8.314472*Foglio1!$C$12*Foglio2!F148, NA()) ->  | H148: =IF(Foglio1!$H$12 <> "", Foglio1!$H$12 + G148*10^-3, NA()) ->  | I148: 1279 | J148: 7.153833802 | K148: =IF(Foglio1!$C$13 <> "", 8.314472*Foglio1!$C$13*Foglio2!J148, NA()) ->  | L148: =IF(Foglio1!$H$13 <> "", Foglio1!$H$13 + K148*10^-3, NA()) ->  | M148: 1279 | N148: 7.153833802 | O148: =IF(Foglio1!$C$14 <> "", 8.314472*Foglio1!$C$14*Foglio2!N148, NA()) ->  | P148: =IF(Foglio1!$H$14 <> "", Foglio1!$H$14 + O148*10^-3, NA()) ->  | Q148: 1279 | R148: 7.153833802 | S148: =IF(Foglio1!$C$15 <> "", 8.314472*Foglio1!$C$15*Foglio2!R148, NA()) ->  | T148: =IF(Foglio1!$H$15 <> "", Foglio1!$H$15 + S148*10^-3, NA()) -> 
A149: 1288 | B149: 7.160845907 | C149: =IF(Foglio1!$C$11 <> "", 8.314472*Foglio1!$C$11*Foglio2!B149, NA()) -> 17861.59584 | D149: =IF(Foglio1!$H$11 <> "", Foglio1!$H$11 + C149*10^-3, NA()) -> -72.13840416 | E149: 1288 | F149: 7.160845907 | G149: =IF(Foglio1!$C$12 <> "", 8.314472*Foglio1!$C$12*Foglio2!F149, NA()) ->  | H149: =IF(Foglio1!$H$12 <> "", Foglio1!$H$12 + G149*10^-3, NA()) ->  | I149: 1288 | J149: 7.160845907 | K149: =IF(Foglio1!$C$13 <> "", 8.314472*Foglio1!$C$13*Foglio2!J149, NA()) ->  | L149: =IF(Foglio1!$H$13 <> "", Foglio1!$H$13 + K149*10^-3, NA()) ->  | M149: 1288 | N149: 7.160845907 | O149: =IF(Foglio1!$C$14 <> "", 8.314472*Foglio1!$C$14*Foglio2!N149, NA()) ->  | P149: =IF(Foglio1!$H$14 <> "", Foglio1!$H$14 + O149*10^-3, NA()) ->  | Q149: 1288 | R149: 7.160845907 | S149: =IF(Foglio1!$C$15 <> "", 8.314472*Foglio1!$C$15*Foglio2!R149, NA()) ->  | T149: =IF(Foglio1!$H$15 <> "", Foglio1!$H$15 + S149*10^-3, NA()) -> 
A150: 1297 | B150: 7.167809184 | C150: =IF(Foglio1!$C$11 <> "", 8.314472*Foglio1!$C$11*Foglio2!B150, NA()) -> 17878.96463 | D150: =IF(Foglio1!$H$11 <> "", Foglio1!$H$11 + C150*10^-3, NA()) -> -72.12103537 | E150: 1297 | F150: 7.167809184 | G150: =IF(Foglio1!$C$12 <> "", 8.314472*Foglio1!$C$12*Foglio2!F150, NA()) ->  | H150: =IF(Foglio1!$H$12 <> "", Foglio1!$H$12 + G150*10^-3, NA()) ->  | I150: 1297 | J150: 7.167809184 | K150: =IF(Foglio1!$C$13 <> "", 8.314472*Foglio1!$C$13*Foglio2!J150, NA()) ->  | L150: =IF(Foglio1!$H$13 <> "", Foglio1!$H$13 + K150*10^-3, NA()) ->  | M150: 1297 | N150: 7.167809184 | O150: =IF(Foglio1!$C$14 <> "", 8.314472*Foglio1!$C$14*Foglio2!N150, NA()) ->  | P150: =IF(Foglio1!$H$14 <> "", Foglio1!$H$14 + O150*10^-3, NA()) ->  | Q150: 1297 | R150: 7.167809184 | S150: =IF(Foglio1!$C$15 <> "", 8.314472*Foglio1!$C$15*Foglio2!R150, NA()) ->  | T150: =IF(Foglio1!$H$15 <> "", Foglio1!$H$15 + S150*10^-3, NA()) -> 
A151: 1306 | B151: 7.17472431 | C151: =IF(Foglio1!$C$11 <> "", 8.314472*Foglio1!$C$11*Foglio2!B151, NA()) -> 17896.21331 | D151: =IF(Foglio1!$H$11 <> "", Foglio1!$H$11 + C151*10^-3, NA()) -> -72.10378669 | E151: 1306 | F151: 7.17472431 | G151: =IF(Foglio1!$C$12 <> "", 8.314472*Foglio1!$C$12*Foglio2!F151, NA()) ->  | H151: =IF(Foglio1!$H$12 <> "", Foglio1!$H$12 + G151*10^-3, NA()) ->  | I151: 1306 | J151: 7.17472431 | K151: =IF(Foglio1!$C$13 <> "", 8.314472*Foglio1!$C$13*Foglio2!J151, NA()) ->  | L151: =IF(Foglio1!$H$13 <> "", Foglio1!$H$13 + K151*10^-3, NA()) ->  | M151: 1306 | N151: 7.17472431 | O151: =IF(Foglio1!$C$14 <> "", 8.314472*Foglio1!$C$14*Foglio2!N151, NA()) ->  | P151: =IF(Foglio1!$H$14 <> "", Foglio1!$H$14 + O151*10^-3, NA()) ->  | Q151: 1306 | R151: 7.17472431 | S151: =IF(Foglio1!$C$15 <> "", 8.314472*Foglio1!$C$15*Foglio2!R151, NA()) ->  | T151: =IF(Foglio1!$H$15 <> "", Foglio1!$H$15 + S151*10^-3, NA()) -> 
A152: 1315 | B152: 7.181591945 | C152: =IF(Foglio1!$C$11 <> "", 8.314472*Foglio1!$C$11*Foglio2!B152, NA()) -> 17913.34354 | D152: =IF(Foglio1!$H$11 <> "", Foglio1!$H$11 + C152*10^-3, NA()) -> -72.08665646 | E152: 1315 | F152: 7.181591945 | G152: =IF(Foglio1!$C$12 <> "", 8.314472*Foglio1!$C$12*Foglio2!F152, NA()) ->  | H152: =IF(Foglio1!$H$12 <> "", Foglio1!$H$12 + G152*10^-3, NA()) ->  | I152: 1315 | J152: 7.181591945 | K152: =IF(Foglio1!$C$13 <> "", 8.314472*Foglio1!$C$13*Foglio2!J152, NA()) ->  | L152: =IF(Foglio1!$H$13 <> "", Foglio1!$H$13 + K152*10^-3, NA()) ->  | M152: 1315 | N152: 7.181591945 | O152: =IF(Foglio1!$C$14 <> "", 8.314472*Foglio1!$C$14*Foglio2!N152, NA()) ->  | P152: =IF(Foglio1!$H$14 <> "", Foglio1!$H$14 + O152*10^-3, NA()) ->  | Q152: 1315 | R152: 7.181591945 | S152: =IF(Foglio1!$C$15 <> "", 8.314472*Foglio1!$C$15*Foglio2!R152, NA()) ->  | T152: =IF(Foglio1!$H$15 <> "", Foglio1!$H$15 + S152*10^-3, NA()) -> 
A153: 1324 | B153: 7.188412736 | C153: =IF(Foglio1!$C$11 <> "", 8.314472*Foglio1!$C$11*Foglio2!B153, NA()) -> 17930.35693 | D153: =IF(Foglio1!$H$11 <> "", Foglio1!$H$11 + C153*10^-3, NA()) -> -72.06964307 | E153: 1324 | F153: 7.188412736 | G153: =IF(Foglio1!$C$12 <> "", 8.314472*Foglio1!$C$12*Foglio2!F153, NA()) ->  | H153: =IF(Foglio1!$H$12 <> "", Foglio1!$H$12 + G153*10^-3, NA()) ->  | I153: 1324 | J153: 7.188412736 | K153: =IF(Foglio1!$C$13 <> "", 8.314472*Foglio1!$C$13*Foglio2!J153, NA()) ->  | L153: =IF(Foglio1!$H$13 <> "", Foglio1!$H$13 + K153*10^-3, NA()) ->  | M153: 1324 | N153: 7.188412736 | O153: =IF(Foglio1!$C$14 <> "", 8.314472*Foglio1!$C$14*Foglio2!N153, NA()) ->  | P153: =IF(Foglio1!$H$14 <> "", Foglio1!$H$14 + O153*10^-3, NA()) ->  | Q153: 1324 | R153: 7.188412736 | S153: =IF(Foglio1!$C$15 <> "", 8.314472*Foglio1!$C$15*Foglio2!R153, NA()) ->  | T153: =IF(Foglio1!$H$15 <> "", Foglio1!$H$15 + S153*10^-3, NA()) -> 
A154: 1333 | B154: 7.19518732 | C154: =IF(Foglio1!$C$11 <> "", 8.314472*Foglio1!$C$11*Foglio2!B154, NA()) -> 17947.25505 | D154: =IF(Foglio1!$H$11 <> "", Foglio1!$H$11 + C154*10^-3, NA()) -> -72.05274495 | E154: 1333 | F154: 7.19518732 | G154: =IF(Foglio1!$C$12 <> "", 8.314472*Foglio1!$C$12*Foglio2!F154, NA()) ->  | H154: =IF(Foglio1!$H$12 <> "", Foglio1!$H$12 + G154*10^-3, NA()) ->  | I154: 1333 | J154: 7.19518732 | K154: =IF(Foglio1!$C$13 <> "", 8.314472*Foglio1!$C$13*Foglio2!J154, NA()) ->  | L154: =IF(Foglio1!$H$13 <> "", Foglio1!$H$13 + K154*10^-3, NA()) ->  | M154: 1333 | N154: 7.19518732 | O154: =IF(Foglio1!$C$14 <> "", 8.314472*Foglio1!$C$14*Foglio2!N154, NA()) ->  | P154: =IF(Foglio1!$H$14 <> "", Foglio1!$H$14 + O154*10^-3, NA()) ->  | Q154: 1333 | R154: 7.19518732 | S154: =IF(Foglio1!$C$15 <> "", 8.314472*Foglio1!$C$15*Foglio2!R154, NA()) ->  | T154: =IF(Foglio1!$H$15 <> "", Foglio1!$H$15 + S154*10^-3, NA()) -> 
A155: 1342 | B155: 7.201916318 | C155: =IF(Foglio1!$C$11 <> "", 8.314472*Foglio1!$C$11*Foglio2!B155, NA()) -> 17964.03947 | D155: =IF(Foglio1!$H$11 <> "", Foglio1!$H$11 + C155*10^-3, NA()) -> -72.03596053 | E155: 1342 | F155: 7.201916318 | G155: =IF(Foglio1!$C$12 <> "", 8.314472*Foglio1!$C$12*Foglio2!F155, NA()) ->  | H155: =IF(Foglio1!$H$12 <> "", Foglio1!$H$12 + G155*10^-3, NA()) ->  | I155: 1342 | J155: 7.201916318 | K155: =IF(Foglio1!$C$13 <> "", 8.314472*Foglio1!$C$13*Foglio2!J155, NA()) ->  | L155: =IF(Foglio1!$H$13 <> "", Foglio1!$H$13 + K155*10^-3, NA()) ->  | M155: 1342 | N155: 7.201916318 | O155: =IF(Foglio1!$C$14 <> "", 8.314472*Foglio1!$C$14*Foglio2!N155, NA()) ->  | P155: =IF(Foglio1!$H$14 <> "", Foglio1!$H$14 + O155*10^-3, NA()) ->  | Q155: 1342 | R155: 7.201916318 | S155: =IF(Foglio1!$C$15 <> "", 8.314472*Foglio1!$C$15*Foglio2!R155, NA()) ->  | T155: =IF(Foglio1!$H$15 <> "", Foglio1!$H$15 + S155*10^-3, NA()) -> 
A156: 1351 | B156: 7.208600338 | C156: =IF(Foglio1!$C$11 <> "", 8.314472*Foglio1!$C$11*Foglio2!B156, NA()) -> 17980.7117 | D156: =IF(Foglio1!$H$11 <> "", Foglio1!$H$11 + C156*10^-3, NA()) -> -72.0192883 | E156: 1351 | F156: 7.208600338 | G156: =IF(Foglio1!$C$12 <> "", 8.314472*Foglio1!$C$12*Foglio2!F156, NA()) ->  | H156: =IF(Foglio1!$H$12 <> "", Foglio1!$H$12 + G156*10^-3, NA()) ->  | I156: 1351 | J156: 7.208600338 | K156: =IF(Foglio1!$C$13 <> "", 8.314472*Foglio1!$C$13*Foglio2!J156, NA()) ->  | L156: =IF(Foglio1!$H$13 <> "", Foglio1!$H$13 + K156*10^-3, NA()) ->  | M156: 1351 | N156: 7.208600338 | O156: =IF(Foglio1!$C$14 <> "", 8.314472*Foglio1!$C$14*Foglio2!N156, NA()) ->  | P156: =IF(Foglio1!$H$14 <> "", Foglio1!$H$14 + O156*10^-3, NA()) ->  | Q156: 1351 | R156: 7.208600338 | S156: =IF(Foglio1!$C$15 <> "", 8.314472*Foglio1!$C$15*Foglio2!R156, NA()) ->  | T156: =IF(Foglio1!$H$15 <> "", Foglio1!$H$15 + S156*10^-3, NA()) -> 
A157: 1360 | B157: 7.215239979 | C157: =IF(Foglio1!$C$11 <> "", 8.314472*Foglio1!$C$11*Foglio2!B157, NA()) -> 17997.27323 | D157: =IF(Foglio1!$H$11 <> "", Foglio1!$H$11 + C157*10^-3, NA()) -> -72.00272677 | E157: 1360 | F157: 7.215239979 | G157: =IF(Foglio1!$C$12 <> "", 8.314472*Foglio1!$C$12*Foglio2!F157, NA()) ->  | H157: =IF(Foglio1!$H$12 <> "", Foglio1!$H$12 + G157*10^-3, NA()) ->  | I157: 1360 | J157: 7.215239979 | K157: =IF(Foglio1!$C$13 <> "", 8.314472*Foglio1!$C$13*Foglio2!J157, NA()) ->  | L157: =IF(Foglio1!$H$13 <> "", Foglio1!$H$13 + K157*10^-3, NA()) ->  | M157: 1360 | N157: 7.215239979 | O157: =IF(Foglio1!$C$14 <> "", 8.314472*Foglio1!$C$14*Foglio2!N157, NA()) ->  | P157: =IF(Foglio1!$H$14 <> "", Foglio1!$H$14 + O157*10^-3, NA()) ->  | Q157: 1360 | R157: 7.215239979 | S157: =IF(Foglio1!$C$15 <> "", 8.314472*Foglio1!$C$15*Foglio2!R157, NA()) ->  | T157: =IF(Foglio1!$H$15 <> "", Foglio1!$H$15 + S157*10^-3, NA()) -> 
A158: 1369 | B158: 7.221835825 | C158: =IF(Foglio1!$C$11 <> "", 8.314472*Foglio1!$C$11*Foglio2!B158, NA()) -> 18013.72553 | D158: =IF(Foglio1!$H$11 <> "", Foglio1!$H$11 + C158*10^-3, NA()) -> -71.98627447 | E158: 1369 | F158: 7.221835825 | G158: =IF(Foglio1!$C$12 <> "", 8.314472*Foglio1!$C$12*Foglio2!F158, NA()) ->  | H158: =IF(Foglio1!$H$12 <> "", Foglio1!$H$12 + G158*10^-3, NA()) ->  | I158: 1369 | J158: 7.221835825 | K158: =IF(Foglio1!$C$13 <> "", 8.314472*Foglio1!$C$13*Foglio2!J158, NA()) ->  | L158: =IF(Foglio1!$H$13 <> "", Foglio1!$H$13 + K158*10^-3, NA()) ->  | M158: 1369 | N158: 7.221835825 | O158: =IF(Foglio1!$C$14 <> "", 8.314472*Foglio1!$C$14*Foglio2!N158, NA()) ->  | P158: =IF(Foglio1!$H$14 <> "", Foglio1!$H$14 + O158*10^-3, NA()) ->  | Q158: 1369 | R158: 7.221835825 | S158: =IF(Foglio1!$C$15 <> "", 8.314472*Foglio1!$C$15*Foglio2!R158, NA()) ->  | T158: =IF(Foglio1!$H$15 <> "", Foglio1!$H$15 + S158*10^-3, NA()) -> 
A159: 1378 | B159: 7.228388452 | C159: =IF(Foglio1!$C$11 <> "", 8.314472*Foglio1!$C$11*Foglio2!B159, NA()) -> 18030.07002 | D159: =IF(Foglio1!$H$11 <> "", Foglio1!$H$11 + C159*10^-3, NA()) -> -71.96992998 | E159: 1378 | F159: 7.228388452 | G159: =IF(Foglio1!$C$12 <> "", 8.314472*Foglio1!$C$12*Foglio2!F159, NA()) ->  | H159: =IF(Foglio1!$H$12 <> "", Foglio1!$H$12 + G159*10^-3, NA()) ->  | I159: 1378 | J159: 7.228388452 | K159: =IF(Foglio1!$C$13 <> "", 8.314472*Foglio1!$C$13*Foglio2!J159, NA()) ->  | L159: =IF(Foglio1!$H$13 <> "", Foglio1!$H$13 + K159*10^-3, NA()) ->  | M159: 1378 | N159: 7.228388452 | O159: =IF(Foglio1!$C$14 <> "", 8.314472*Foglio1!$C$14*Foglio2!N159, NA()) ->  | P159: =IF(Foglio1!$H$14 <> "", Foglio1!$H$14 + O159*10^-3, NA()) ->  | Q159: 1378 | R159: 7.228388452 | S159: =IF(Foglio1!$C$15 <> "", 8.314472*Foglio1!$C$15*Foglio2!R159, NA()) ->  | T159: =IF(Foglio1!$H$15 <> "", Foglio1!$H$15 + S159*10^-3, NA()) -> 
A160: 1387 | B160: 7.23489842 | C160: =IF(Foglio1!$C$11 <> "", 8.314472*Foglio1!$C$11*Foglio2!B160, NA()) -> 18046.3081 | D160: =IF(Foglio1!$H$11 <> "", Foglio1!$H$11 + C160*10^-3, NA()) -> -71.9536919 | E160: 1387 | F160: 7.23489842 | G160: =IF(Foglio1!$C$12 <> "", 8.314472*Foglio1!$C$12*Foglio2!F160, NA()) ->  | H160: =IF(Foglio1!$H$12 <> "", Foglio1!$H$12 + G160*10^-3, NA()) ->  | I160: 1387 | J160: 7.23489842 | K160: =IF(Foglio1!$C$13 <> "", 8.314472*Foglio1!$C$13*Foglio2!J160, NA()) ->  | L160: =IF(Foglio1!$H$13 <> "", Foglio1!$H$13 + K160*10^-3, NA()) ->  | M160: 1387 | N160: 7.23489842 | O160: =IF(Foglio1!$C$14 <> "", 8.314472*Foglio1!$C$14*Foglio2!N160, NA()) ->  | P160: =IF(Foglio1!$H$14 <> "", Foglio1!$H$14 + O160*10^-3, NA()) ->  | Q160: 1387 | R160: 7.23489842 | S160: =IF(Foglio1!$C$15 <> "", 8.314472*Foglio1!$C$15*Foglio2!R160, NA()) ->  | T160: =IF(Foglio1!$H$15 <> "", Foglio1!$H$15 + S160*10^-3, NA()) -> 
A161: 1396 | B161: 7.241366283 | C161: =IF(Foglio1!$C$11 <> "", 8.314472*Foglio1!$C$11*Foglio2!B161, NA()) -> 18062.44116 | D161: =IF(Foglio1!$H$11 <> "", Foglio1!$H$11 + C161*10^-3, NA()) -> -71.93755884 | E161: 1396 | F161: 7.241366283 | G161: =IF(Foglio1!$C$12 <> "", 8.314472*Foglio1!$C$12*Foglio2!F161, NA()) ->  | H161: =IF(Foglio1!$H$12 <> "", Foglio1!$H$12 + G161*10^-3, NA()) ->  | I161: 1396 | J161: 7.241366283 | K161: =IF(Foglio1!$C$13 <> "", 8.314472*Foglio1!$C$13*Foglio2!J161, NA()) ->  | L161: =IF(Foglio1!$H$13 <> "", Foglio1!$H$13 + K161*10^-3, NA()) ->  | M161: 1396 | N161: 7.241366283 | O161: =IF(Foglio1!$C$14 <> "", 8.314472*Foglio1!$C$14*Foglio2!N161, NA()) ->  | P161: =IF(Foglio1!$H$14 <> "", Foglio1!$H$14 + O161*10^-3, NA()) ->  | Q161: 1396 | R161: 7.241366283 | S161: =IF(Foglio1!$C$15 <> "", 8.314472*Foglio1!$C$15*Foglio2!R161, NA()) ->  | T161: =IF(Foglio1!$H$15 <> "", Foglio1!$H$15 + S161*10^-3, NA()) -> 
A162: 1405 | B162: 7.247792582 | C162: =IF(Foglio1!$C$11 <> "", 8.314472*Foglio1!$C$11*Foglio2!B162, NA()) -> 18078.47054 | D162: =IF(Foglio1!$H$11 <> "", Foglio1!$H$11 + C162*10^-3, NA()) -> -71.92152946 | E162: 1405 | F162: 7.247792582 | G162: =IF(Foglio1!$C$12 <> "", 8.314472*Foglio1!$C$12*Foglio2!F162, NA()) ->  | H162: =IF(Foglio1!$H$12 <> "", Foglio1!$H$12 + G162*10^-3, NA()) ->  | I162: 1405 | J162: 7.247792582 | K162: =IF(Foglio1!$C$13 <> "", 8.314472*Foglio1!$C$13*Foglio2!J162, NA()) ->  | L162: =IF(Foglio1!$H$13 <> "", Foglio1!$H$13 + K162*10^-3, NA()) ->  | M162: 1405 | N162: 7.247792582 | O162: =IF(Foglio1!$C$14 <> "", 8.314472*Foglio1!$C$14*Foglio2!N162, NA()) ->  | P162: =IF(Foglio1!$H$14 <> "", Foglio1!$H$14 + O162*10^-3, NA()) ->  | Q162: 1405 | R162: 7.247792582 | S162: =IF(Foglio1!$C$15 <> "", 8.314472*Foglio1!$C$15*Foglio2!R162, NA()) ->  | T162: =IF(Foglio1!$H$15 <> "", Foglio1!$H$15 + S162*10^-3, NA()) -> 
A163: 1414 | B163: 7.254177846 | C163: =IF(Foglio1!$C$11 <> "", 8.314472*Foglio1!$C$11*Foglio2!B163, NA()) -> 18094.39758 | D163: =IF(Foglio1!$H$11 <> "", Foglio1!$H$11 + C163*10^-3, NA()) -> -71.90560242 | E163: 1414 | F163: 7.254177846 | G163: =IF(Foglio1!$C$12 <> "", 8.314472*Foglio1!$C$12*Foglio2!F163, NA()) ->  | H163: =IF(Foglio1!$H$12 <> "", Foglio1!$H$12 + G163*10^-3, NA()) ->  | I163: 1414 | J163: 7.254177846 | K163: =IF(Foglio1!$C$13 <> "", 8.314472*Foglio1!$C$13*Foglio2!J163, NA()) ->  | L163: =IF(Foglio1!$H$13 <> "", Foglio1!$H$13 + K163*10^-3, NA()) ->  | M163: 1414 | N163: 7.254177846 | O163: =IF(Foglio1!$C$14 <> "", 8.314472*Foglio1!$C$14*Foglio2!N163, NA()) ->  | P163: =IF(Foglio1!$H$14 <> "", Foglio1!$H$14 + O163*10^-3, NA()) ->  | Q163: 1414 | R163: 7.254177846 | S163: =IF(Foglio1!$C$15 <> "", 8.314472*Foglio1!$C$15*Foglio2!R163, NA()) ->  | T163: =IF(Foglio1!$H$15 <> "", Foglio1!$H$15 + S163*10^-3, NA()) -> 
A164: 1423 | B164: 7.260522598 | C164: =IF(Foglio1!$C$11 <> "", 8.314472*Foglio1!$C$11*Foglio2!B164, NA()) -> 18110.22355 | D164: =IF(Foglio1!$H$11 <> "", Foglio1!$H$11 + C164*10^-3, NA()) -> -71.88977645 | E164: 1423 | F164: 7.260522598 | G164: =IF(Foglio1!$C$12 <> "", 8.314472*Foglio1!$C$12*Foglio2!F164, NA()) ->  | H164: =IF(Foglio1!$H$12 <> "", Foglio1!$H$12 + G164*10^-3, NA()) ->  | I164: 1423 | J164: 7.260522598 | K164: =IF(Foglio1!$C$13 <> "", 8.314472*Foglio1!$C$13*Foglio2!J164, NA()) ->  | L164: =IF(Foglio1!$H$13 <> "", Foglio1!$H$13 + K164*10^-3, NA()) ->  | M164: 1423 | N164: 7.260522598 | O164: =IF(Foglio1!$C$14 <> "", 8.314472*Foglio1!$C$14*Foglio2!N164, NA()) ->  | P164: =IF(Foglio1!$H$14 <> "", Foglio1!$H$14 + O164*10^-3, NA()) ->  | Q164: 1423 | R164: 7.260522598 | S164: =IF(Foglio1!$C$15 <> "", 8.314472*Foglio1!$C$15*Foglio2!R164, NA()) ->  | T164: =IF(Foglio1!$H$15 <> "", Foglio1!$H$15 + S164*10^-3, NA()) -> 
A165: 1432 | B165: 7.266827348 | C165: =IF(Foglio1!$C$11 <> "", 8.314472*Foglio1!$C$11*Foglio2!B165, NA()) -> 18125.94975 | D165: =IF(Foglio1!$H$11 <> "", Foglio1!$H$11 + C165*10^-3, NA()) -> -71.87405025 | E165: 1432 | F165: 7.266827348 | G165: =IF(Foglio1!$C$12 <> "", 8.314472*Foglio1!$C$12*Foglio2!F165, NA()) ->  | H165: =IF(Foglio1!$H$12 <> "", Foglio1!$H$12 + G165*10^-3, NA()) ->  | I165: 1432 | J165: 7.266827348 | K165: =IF(Foglio1!$C$13 <> "", 8.314472*Foglio1!$C$13*Foglio2!J165, NA()) ->  | L165: =IF(Foglio1!$H$13 <> "", Foglio1!$H$13 + K165*10^-3, NA()) ->  | M165: 1432 | N165: 7.266827348 | O165: =IF(Foglio1!$C$14 <> "", 8.314472*Foglio1!$C$14*Foglio2!N165, NA()) ->  | P165: =IF(Foglio1!$H$14 <> "", Foglio1!$H$14 + O165*10^-3, NA()) ->  | Q165: 1432 | R165: 7.266827348 | S165: =IF(Foglio1!$C$15 <> "", 8.314472*Foglio1!$C$15*Foglio2!R165, NA()) ->  | T165: =IF(Foglio1!$H$15 <> "", Foglio1!$H$15 + S165*10^-3, NA()) -> 
A166: 1441 | B166: 7.273092596 | C166: =IF(Foglio1!$C$11 <> "", 8.314472*Foglio1!$C$11*Foglio2!B166, NA()) -> 18141.57742 | D166: =IF(Foglio1!$H$11 <> "", Foglio1!$H$11 + C166*10^-3, NA()) -> -71.85842258 | E166: 1441 | F166: 7.273092596 | G166: =IF(Foglio1!$C$12 <> "", 8.314472*Foglio1!$C$12*Foglio2!F166, NA()) ->  | H166: =IF(Foglio1!$H$12 <> "", Foglio1!$H$12 + G166*10^-3, NA()) ->  | I166: 1441 | J166: 7.273092596 | K166: =IF(Foglio1!$C$13 <> "", 8.314472*Foglio1!$C$13*Foglio2!J166, NA()) ->  | L166: =IF(Foglio1!$H$13 <> "", Foglio1!$H$13 + K166*10^-3, NA()) ->  | M166: 1441 | N166: 7.273092596 | O166: =IF(Foglio1!$C$14 <> "", 8.314472*Foglio1!$C$14*Foglio2!N166, NA()) ->  | P166: =IF(Foglio1!$H$14 <> "", Foglio1!$H$14 + O166*10^-3, NA()) ->  | Q166: 1441 | R166: 7.273092596 | S166: =IF(Foglio1!$C$15 <> "", 8.314472*Foglio1!$C$15*Foglio2!R166, NA()) ->  | T166: =IF(Foglio1!$H$15 <> "", Foglio1!$H$15 + S166*10^-3, NA()) -> 
A167: 1450 | B167: 7.279318835 | C167: =IF(Foglio1!$C$11 <> "", 8.314472*Foglio1!$C$11*Foglio2!B167, NA()) -> 18157.10779 | D167: =IF(Foglio1!$H$11 <> "", Foglio1!$H$11 + C167*10^-3, NA()) -> -71.84289221 | E167: 1450 | F167: 7.279318835 | G167: =IF(Foglio1!$C$12 <> "", 8.314472*Foglio1!$C$12*Foglio2!F167, NA()) ->  | H167: =IF(Foglio1!$H$12 <> "", Foglio1!$H$12 + G167*10^-3, NA()) ->  | I167: 1450 | J167: 7.279318835 | K167: =IF(Foglio1!$C$13 <> "", 8.314472*Foglio1!$C$13*Foglio2!J167, NA()) ->  | L167: =IF(Foglio1!$H$13 <> "", Foglio1!$H$13 + K167*10^-3, NA()) ->  | M167: 1450 | N167: 7.279318835 | O167: =IF(Foglio1!$C$14 <> "", 8.314472*Foglio1!$C$14*Foglio2!N167, NA()) ->  | P167: =IF(Foglio1!$H$14 <> "", Foglio1!$H$14 + O167*10^-3, NA()) ->  | Q167: 1450 | R167: 7.279318835 | S167: =IF(Foglio1!$C$15 <> "", 8.314472*Foglio1!$C$15*Foglio2!R167, NA()) ->  | T167: =IF(Foglio1!$H$15 <> "", Foglio1!$H$15 + S167*10^-3, NA()) -> 
A168: 1459 | B168: 7.285506549 | C168: =IF(Foglio1!$C$11 <> "", 8.314472*Foglio1!$C$11*Foglio2!B168, NA()) -> 18172.54206 | D168: =IF(Foglio1!$H$11 <> "", Foglio1!$H$11 + C168*10^-3, NA()) -> -71.82745794 | E168: 1459 | F168: 7.285506549 | G168: =IF(Foglio1!$C$12 <> "", 8.314472*Foglio1!$C$12*Foglio2!F168, NA()) ->  | H168: =IF(Foglio1!$H$12 <> "", Foglio1!$H$12 + G168*10^-3, NA()) ->  | I168: 1459 | J168: 7.285506549 | K168: =IF(Foglio1!$C$13 <> "", 8.314472*Foglio1!$C$13*Foglio2!J168, NA()) ->  | L168: =IF(Foglio1!$H$13 <> "", Foglio1!$H$13 + K168*10^-3, NA()) ->  | M168: 1459 | N168: 7.285506549 | O168: =IF(Foglio1!$C$14 <> "", 8.314472*Foglio1!$C$14*Foglio2!N168, NA()) ->  | P168: =IF(Foglio1!$H$14 <> "", Foglio1!$H$14 + O168*10^-3, NA()) ->  | Q168: 1459 | R168: 7.285506549 | S168: =IF(Foglio1!$C$15 <> "", 8.314472*Foglio1!$C$15*Foglio2!R168, NA()) ->  | T168: =IF(Foglio1!$H$15 <> "", Foglio1!$H$15 + S168*10^-3, NA()) -> 
A169: 1468 | B169: 7.291656209 | C169: =IF(Foglio1!$C$11 <> "", 8.314472*Foglio1!$C$11*Foglio2!B169, NA()) -> 18187.88142 | D169: =IF(Foglio1!$H$11 <> "", Foglio1!$H$11 + C169*10^-3, NA()) -> -71.81211858 | E169: 1468 | F169: 7.291656209 | G169: =IF(Foglio1!$C$12 <> "", 8.314472*Foglio1!$C$12*Foglio2!F169, NA()) ->  | H169: =IF(Foglio1!$H$12 <> "", Foglio1!$H$12 + G169*10^-3, NA()) ->  | I169: 1468 | J169: 7.291656209 | K169: =IF(Foglio1!$C$13 <> "", 8.314472*Foglio1!$C$13*Foglio2!J169, NA()) ->  | L169: =IF(Foglio1!$H$13 <> "", Foglio1!$H$13 + K169*10^-3, NA()) ->  | M169: 1468 | N169: 7.291656209 | O169: =IF(Foglio1!$C$14 <> "", 8.314472*Foglio1!$C$14*Foglio2!N169, NA()) ->  | P169: =IF(Foglio1!$H$14 <> "", Foglio1!$H$14 + O169*10^-3, NA()) ->  | Q169: 1468 | R169: 7.291656209 | S169: =IF(Foglio1!$C$15 <> "", 8.314472*Foglio1!$C$15*Foglio2!R169, NA()) ->  | T169: =IF(Foglio1!$H$15 <> "", Foglio1!$H$15 + S169*10^-3, NA()) -> 
A170: 1477 | B170: 7.297768283 | C170: =IF(Foglio1!$C$11 <> "", 8.314472*Foglio1!$C$11*Foglio2!B170, NA()) -> 18203.12701 | D170: =IF(Foglio1!$H$11 <> "", Foglio1!$H$11 + C170*10^-3, NA()) -> -71.79687299 | E170: 1477 | F170: 7.297768283 | G170: =IF(Foglio1!$C$12 <> "", 8.314472*Foglio1!$C$12*Foglio2!F170, NA()) ->  | H170: =IF(Foglio1!$H$12 <> "", Foglio1!$H$12 + G170*10^-3, NA()) ->  | I170: 1477 | J170: 7.297768283 | K170: =IF(Foglio1!$C$13 <> "", 8.314472*Foglio1!$C$13*Foglio2!J170, NA()) ->  | L170: =IF(Foglio1!$H$13 <> "", Foglio1!$H$13 + K170*10^-3, NA()) ->  | M170: 1477 | N170: 7.297768283 | O170: =IF(Foglio1!$C$14 <> "", 8.314472*Foglio1!$C$14*Foglio2!N170, NA()) ->  | P170: =IF(Foglio1!$H$14 <> "", Foglio1!$H$14 + O170*10^-3, NA()) ->  | Q170: 1477 | R170: 7.297768283 | S170: =IF(Foglio1!$C$15 <> "", 8.314472*Foglio1!$C$15*Foglio2!R170, NA()) ->  | T170: =IF(Foglio1!$H$15 <> "", Foglio1!$H$15 + S170*10^-3, NA()) -> 
A171: 1486 | B171: 7.303843225 | C171: =IF(Foglio1!$C$11 <> "", 8.314472*Foglio1!$C$11*Foglio2!B171, NA()) -> 18218.28 | D171: =IF(Foglio1!$H$11 <> "", Foglio1!$H$11 + C171*10^-3, NA()) -> -71.78172 | E171: 1486 | F171: 7.303843225 | G171: =IF(Foglio1!$C$12 <> "", 8.314472*Foglio1!$C$12*Foglio2!F171, NA()) ->  | H171: =IF(Foglio1!$H$12 <> "", Foglio1!$H$12 + G171*10^-3, NA()) ->  | I171: 1486 | J171: 7.303843225 | K171: =IF(Foglio1!$C$13 <> "", 8.314472*Foglio1!$C$13*Foglio2!J171, NA()) ->  | L171: =IF(Foglio1!$H$13 <> "", Foglio1!$H$13 + K171*10^-3, NA()) ->  | M171: 1486 | N171: 7.303843225 | O171: =IF(Foglio1!$C$14 <> "", 8.314472*Foglio1!$C$14*Foglio2!N171, NA()) ->  | P171: =IF(Foglio1!$H$14 <> "", Foglio1!$H$14 + O171*10^-3, NA()) ->  | Q171: 1486 | R171: 7.303843225 | S171: =IF(Foglio1!$C$15 <> "", 8.314472*Foglio1!$C$15*Foglio2!R171, NA()) ->  | T171: =IF(Foglio1!$H$15 <> "", Foglio1!$H$15 + S171*10^-3, NA()) -> 
A172: 1495 | B172: 7.309881486 | C172: =IF(Foglio1!$C$11 <> "", 8.314472*Foglio1!$C$11*Foglio2!B172, NA()) -> 18233.34148 | D172: =IF(Foglio1!$H$11 <> "", Foglio1!$H$11 + C172*10^-3, NA()) -> -71.76665852 | E172: 1495 | F172: 7.309881486 | G172: =IF(Foglio1!$C$12 <> "", 8.314472*Foglio1!$C$12*Foglio2!F172, NA()) ->  | H172: =IF(Foglio1!$H$12 <> "", Foglio1!$H$12 + G172*10^-3, NA()) ->  | I172: 1495 | J172: 7.309881486 | K172: =IF(Foglio1!$C$13 <> "", 8.314472*Foglio1!$C$13*Foglio2!J172, NA()) ->  | L172: =IF(Foglio1!$H$13 <> "", Foglio1!$H$13 + K172*10^-3, NA()) ->  | M172: 1495 | N172: 7.309881486 | O172: =IF(Foglio1!$C$14 <> "", 8.314472*Foglio1!$C$14*Foglio2!N172, NA()) ->  | P172: =IF(Foglio1!$H$14 <> "", Foglio1!$H$14 + O172*10^-3, NA()) ->  | Q172: 1495 | R172: 7.309881486 | S172: =IF(Foglio1!$C$15 <> "", 8.314472*Foglio1!$C$15*Foglio2!R172, NA()) ->  | T172: =IF(Foglio1!$H$15 <> "", Foglio1!$H$15 + S172*10^-3, NA()) -> 
A173: 1504 | B173: 7.315883505 | C173: =IF(Foglio1!$C$11 <> "", 8.314472*Foglio1!$C$11*Foglio2!B173, NA()) -> 18248.31257 | D173: =IF(Foglio1!$H$11 <> "", Foglio1!$H$11 + C173*10^-3, NA()) -> -71.75168743 | E173: 1504 | F173: 7.315883505 | G173: =IF(Foglio1!$C$12 <> "", 8.314472*Foglio1!$C$12*Foglio2!F173, NA()) ->  | H173: =IF(Foglio1!$H$12 <> "", Foglio1!$H$12 + G173*10^-3, NA()) ->  | I173: 1504 | J173: 7.315883505 | K173: =IF(Foglio1!$C$13 <> "", 8.314472*Foglio1!$C$13*Foglio2!J173, NA()) ->  | L173: =IF(Foglio1!$H$13 <> "", Foglio1!$H$13 + K173*10^-3, NA()) ->  | M173: 1504 | N173: 7.315883505 | O173: =IF(Foglio1!$C$14 <> "", 8.314472*Foglio1!$C$14*Foglio2!N173, NA()) ->  | P173: =IF(Foglio1!$H$14 <> "", Foglio1!$H$14 + O173*10^-3, NA()) ->  | Q173: 1504 | R173: 7.315883505 | S173: =IF(Foglio1!$C$15 <> "", 8.314472*Foglio1!$C$15*Foglio2!R173, NA()) ->  | T173: =IF(Foglio1!$H$15 <> "", Foglio1!$H$15 + S173*10^-3, NA()) -> 
A174: 1513 | B174: 7.321849714 | C174: =IF(Foglio1!$C$11 <> "", 8.314472*Foglio1!$C$11*Foglio2!B174, NA()) -> 18263.19433 | D174: =IF(Foglio1!$H$11 <> "", Foglio1!$H$11 + C174*10^-3, NA()) -> -71.73680567 | E174: 1513 | F174: 7.321849714 | G174: =IF(Foglio1!$C$12 <> "", 8.314472*Foglio1!$C$12*Foglio2!F174, NA()) ->  | H174: =IF(Foglio1!$H$12 <> "", Foglio1!$H$12 + G174*10^-3, NA()) ->  | I174: 1513 | J174: 7.321849714 | K174: =IF(Foglio1!$C$13 <> "", 8.314472*Foglio1!$C$13*Foglio2!J174, NA()) ->  | L174: =IF(Foglio1!$H$13 <> "", Foglio1!$H$13 + K174*10^-3, NA()) ->  | M174: 1513 | N174: 7.321849714 | O174: =IF(Foglio1!$C$14 <> "", 8.314472*Foglio1!$C$14*Foglio2!N174, NA()) ->  | P174: =IF(Foglio1!$H$14 <> "", Foglio1!$H$14 + O174*10^-3, NA()) ->  | Q174: 1513 | R174: 7.321849714 | S174: =IF(Foglio1!$C$15 <> "", 8.314472*Foglio1!$C$15*Foglio2!R174, NA()) ->  | T174: =IF(Foglio1!$H$15 <> "", Foglio1!$H$15 + S174*10^-3, NA()) -> 
A175: 1522 | B175: 7.327780538 | C175: =IF(Foglio1!$C$11 <> "", 8.314472*Foglio1!$C$11*Foglio2!B175, NA()) -> 18277.98783 | D175: =IF(Foglio1!$H$11 <> "", Foglio1!$H$11 + C175*10^-3, NA()) -> -71.72201217 | E175: 1522 | F175: 7.327780538 | G175: =IF(Foglio1!$C$12 <> "", 8.314472*Foglio1!$C$12*Foglio2!F175, NA()) ->  | H175: =IF(Foglio1!$H$12 <> "", Foglio1!$H$12 + G175*10^-3, NA()) ->  | I175: 1522 | J175: 7.327780538 | K175: =IF(Foglio1!$C$13 <> "", 8.314472*Foglio1!$C$13*Foglio2!J175, NA()) ->  | L175: =IF(Foglio1!$H$13 <> "", Foglio1!$H$13 + K175*10^-3, NA()) ->  | M175: 1522 | N175: 7.327780538 | O175: =IF(Foglio1!$C$14 <> "", 8.314472*Foglio1!$C$14*Foglio2!N175, NA()) ->  | P175: =IF(Foglio1!$H$14 <> "", Foglio1!$H$14 + O175*10^-3, NA()) ->  | Q175: 1522 | R175: 7.327780538 | S175: =IF(Foglio1!$C$15 <> "", 8.314472*Foglio1!$C$15*Foglio2!R175, NA()) ->  | T175: =IF(Foglio1!$H$15 <> "", Foglio1!$H$15 + S175*10^-3, NA()) -> 
A176: 1531 | B176: 7.333676396 | C176: =IF(Foglio1!$C$11 <> "", 8.314472*Foglio1!$C$11*Foglio2!B176, NA()) -> 18292.69411 | D176: =IF(Foglio1!$H$11 <> "", Foglio1!$H$11 + C176*10^-3, NA()) -> -71.70730589 | E176: 1531 | F176: 7.333676396 | G176: =IF(Foglio1!$C$12 <> "", 8.314472*Foglio1!$C$12*Foglio2!F176, NA()) ->  | H176: =IF(Foglio1!$H$12 <> "", Foglio1!$H$12 + G176*10^-3, NA()) ->  | I176: 1531 | J176: 7.333676396 | K176: =IF(Foglio1!$C$13 <> "", 8.314472*Foglio1!$C$13*Foglio2!J176, NA()) ->  | L176: =IF(Foglio1!$H$13 <> "", Foglio1!$H$13 + K176*10^-3, NA()) ->  | M176: 1531 | N176: 7.333676396 | O176: =IF(Foglio1!$C$14 <> "", 8.314472*Foglio1!$C$14*Foglio2!N176, NA()) ->  | P176: =IF(Foglio1!$H$14 <> "", Foglio1!$H$14 + O176*10^-3, NA()) ->  | Q176: 1531 | R176: 7.333676396 | S176: =IF(Foglio1!$C$15 <> "", 8.314472*Foglio1!$C$15*Foglio2!R176, NA()) ->  | T176: =IF(Foglio1!$H$15 <> "", Foglio1!$H$15 + S176*10^-3, NA()) -> 
A177: 1540 | B177: 7.339537695 | C177: =IF(Foglio1!$C$11 <> "", 8.314472*Foglio1!$C$11*Foglio2!B177, NA()) -> 18307.3142 | D177: =IF(Foglio1!$H$11 <> "", Foglio1!$H$11 + C177*10^-3, NA()) -> -71.6926858 | E177: 1540 | F177: 7.339537695 | G177: =IF(Foglio1!$C$12 <> "", 8.314472*Foglio1!$C$12*Foglio2!F177, NA()) ->  | H177: =IF(Foglio1!$H$12 <> "", Foglio1!$H$12 + G177*10^-3, NA()) ->  | I177: 1540 | J177: 7.339537695 | K177: =IF(Foglio1!$C$13 <> "", 8.314472*Foglio1!$C$13*Foglio2!J177, NA()) ->  | L177: =IF(Foglio1!$H$13 <> "", Foglio1!$H$13 + K177*10^-3, NA()) ->  | M177: 1540 | N177: 7.339537695 | O177: =IF(Foglio1!$C$14 <> "", 8.314472*Foglio1!$C$14*Foglio2!N177, NA()) ->  | P177: =IF(Foglio1!$H$14 <> "", Foglio1!$H$14 + O177*10^-3, NA()) ->  | Q177: 1540 | R177: 7.339537695 | S177: =IF(Foglio1!$C$15 <> "", 8.314472*Foglio1!$C$15*Foglio2!R177, NA()) ->  | T177: =IF(Foglio1!$H$15 <> "", Foglio1!$H$15 + S177*10^-3, NA()) -> 
A178: 1549 | B178: 7.34536484 | C178: =IF(Foglio1!$C$11 <> "", 8.314472*Foglio1!$C$11*Foglio2!B178, NA()) -> 18321.84909 | D178: =IF(Foglio1!$H$11 <> "", Foglio1!$H$11 + C178*10^-3, NA()) -> -71.67815091 | E178: 1549 | F178: 7.34536484 | G178: =IF(Foglio1!$C$12 <> "", 8.314472*Foglio1!$C$12*Foglio2!F178, NA()) ->  | H178: =IF(Foglio1!$H$12 <> "", Foglio1!$H$12 + G178*10^-3, NA()) ->  | I178: 1549 | J178: 7.34536484 | K178: =IF(Foglio1!$C$13 <> "", 8.314472*Foglio1!$C$13*Foglio2!J178, NA()) ->  | L178: =IF(Foglio1!$H$13 <> "", Foglio1!$H$13 + K178*10^-3, NA()) ->  | M178: 1549 | N178: 7.34536484 | O178: =IF(Foglio1!$C$14 <> "", 8.314472*Foglio1!$C$14*Foglio2!N178, NA()) ->  | P178: =IF(Foglio1!$H$14 <> "", Foglio1!$H$14 + O178*10^-3, NA()) ->  | Q178: 1549 | R178: 7.34536484 | S178: =IF(Foglio1!$C$15 <> "", 8.314472*Foglio1!$C$15*Foglio2!R178, NA()) ->  | T178: =IF(Foglio1!$H$15 <> "", Foglio1!$H$15 + S178*10^-3, NA()) -> 
A179: 1558 | B179: 7.351158226 | C179: =IF(Foglio1!$C$11 <> "", 8.314472*Foglio1!$C$11*Foglio2!B179, NA()) -> 18336.29977 | D179: =IF(Foglio1!$H$11 <> "", Foglio1!$H$11 + C179*10^-3, NA()) -> -71.66370023 | E179: 1558 | F179: 7.351158226 | G179: =IF(Foglio1!$C$12 <> "", 8.314472*Foglio1!$C$12*Foglio2!F179, NA()) ->  | H179: =IF(Foglio1!$H$12 <> "", Foglio1!$H$12 + G179*10^-3, NA()) ->  | I179: 1558 | J179: 7.351158226 | K179: =IF(Foglio1!$C$13 <> "", 8.314472*Foglio1!$C$13*Foglio2!J179, NA()) ->  | L179: =IF(Foglio1!$H$13 <> "", Foglio1!$H$13 + K179*10^-3, NA()) ->  | M179: 1558 | N179: 7.351158226 | O179: =IF(Foglio1!$C$14 <> "", 8.314472*Foglio1!$C$14*Foglio2!N179, NA()) ->  | P179: =IF(Foglio1!$H$14 <> "", Foglio1!$H$14 + O179*10^-3, NA()) ->  | Q179: 1558 | R179: 7.351158226 | S179: =IF(Foglio1!$C$15 <> "", 8.314472*Foglio1!$C$15*Foglio2!R179, NA()) ->  | T179: =IF(Foglio1!$H$15 <> "", Foglio1!$H$15 + S179*10^-3, NA()) -> 
A180: 1567 | B180: 7.356918242 | C180: =IF(Foglio1!$C$11 <> "", 8.314472*Foglio1!$C$11*Foglio2!B180, NA()) -> 18350.66722 | D180: =IF(Foglio1!$H$11 <> "", Foglio1!$H$11 + C180*10^-3, NA()) -> -71.64933278 | E180: 1567 | F180: 7.356918242 | G180: =IF(Foglio1!$C$12 <> "", 8.314472*Foglio1!$C$12*Foglio2!F180, NA()) ->  | H180: =IF(Foglio1!$H$12 <> "", Foglio1!$H$12 + G180*10^-3, NA()) ->  | I180: 1567 | J180: 7.356918242 | K180: =IF(Foglio1!$C$13 <> "", 8.314472*Foglio1!$C$13*Foglio2!J180, NA()) ->  | L180: =IF(Foglio1!$H$13 <> "", Foglio1!$H$13 + K180*10^-3, NA()) ->  | M180: 1567 | N180: 7.356918242 | O180: =IF(Foglio1!$C$14 <> "", 8.314472*Foglio1!$C$14*Foglio2!N180, NA()) ->  | P180: =IF(Foglio1!$H$14 <> "", Foglio1!$H$14 + O180*10^-3, NA()) ->  | Q180: 1567 | R180: 7.356918242 | S180: =IF(Foglio1!$C$15 <> "", 8.314472*Foglio1!$C$15*Foglio2!R180, NA()) ->  | T180: =IF(Foglio1!$H$15 <> "", Foglio1!$H$15 + S180*10^-3, NA()) -> 
A181: 1576 | B181: 7.36264527 | C181: =IF(Foglio1!$C$11 <> "", 8.314472*Foglio1!$C$11*Foglio2!B181, NA()) -> 18364.95238 | D181: =IF(Foglio1!$H$11 <> "", Foglio1!$H$11 + C181*10^-3, NA()) -> -71.63504762 | E181: 1576 | F181: 7.36264527 | G181: =IF(Foglio1!$C$12 <> "", 8.314472*Foglio1!$C$12*Foglio2!F181, NA()) ->  | H181: =IF(Foglio1!$H$12 <> "", Foglio1!$H$12 + G181*10^-3, NA()) ->  | I181: 1576 | J181: 7.36264527 | K181: =IF(Foglio1!$C$13 <> "", 8.314472*Foglio1!$C$13*Foglio2!J181, NA()) ->  | L181: =IF(Foglio1!$H$13 <> "", Foglio1!$H$13 + K181*10^-3, NA()) ->  | M181: 1576 | N181: 7.36264527 | O181: =IF(Foglio1!$C$14 <> "", 8.314472*Foglio1!$C$14*Foglio2!N181, NA()) ->  | P181: =IF(Foglio1!$H$14 <> "", Foglio1!$H$14 + O181*10^-3, NA()) ->  | Q181: 1576 | R181: 7.36264527 | S181: =IF(Foglio1!$C$15 <> "", 8.314472*Foglio1!$C$15*Foglio2!R181, NA()) ->  | T181: =IF(Foglio1!$H$15 <> "", Foglio1!$H$15 + S181*10^-3, NA()) -> 
A182: 1585 | B182: 7.368339686 | C182: =IF(Foglio1!$C$11 <> "", 8.314472*Foglio1!$C$11*Foglio2!B182, NA()) -> 18379.1562 | D182: =IF(Foglio1!$H$11 <> "", Foglio1!$H$11 + C182*10^-3, NA()) -> -71.6208438 | E182: 1585 | F182: 7.368339686 | G182: =IF(Foglio1!$C$12 <> "", 8.314472*Foglio1!$C$12*Foglio2!F182, NA()) ->  | H182: =IF(Foglio1!$H$12 <> "", Foglio1!$H$12 + G182*10^-3, NA()) ->  | I182: 1585 | J182: 7.368339686 | K182: =IF(Foglio1!$C$13 <> "", 8.314472*Foglio1!$C$13*Foglio2!J182, NA()) ->  | L182: =IF(Foglio1!$H$13 <> "", Foglio1!$H$13 + K182*10^-3, NA()) ->  | M182: 1585 | N182: 7.368339686 | O182: =IF(Foglio1!$C$14 <> "", 8.314472*Foglio1!$C$14*Foglio2!N182, NA()) ->  | P182: =IF(Foglio1!$H$14 <> "", Foglio1!$H$14 + O182*10^-3, NA()) ->  | Q182: 1585 | R182: 7.368339686 | S182: =IF(Foglio1!$C$15 <> "", 8.314472*Foglio1!$C$15*Foglio2!R182, NA()) ->  | T182: =IF(Foglio1!$H$15 <> "", Foglio1!$H$15 + S182*10^-3, NA()) -> 
A183: 1594 | B183: 7.374001859 | C183: =IF(Foglio1!$C$11 <> "", 8.314472*Foglio1!$C$11*Foglio2!B183, NA()) -> 18393.2796 | D183: =IF(Foglio1!$H$11 <> "", Foglio1!$H$11 + C183*10^-3, NA()) -> -71.6067204 | E183: 1594 | F183: 7.374001859 | G183: =IF(Foglio1!$C$12 <> "", 8.314472*Foglio1!$C$12*Foglio2!F183, NA()) ->  | H183: =IF(Foglio1!$H$12 <> "", Foglio1!$H$12 + G183*10^-3, NA()) ->  | I183: 1594 | J183: 7.374001859 | K183: =IF(Foglio1!$C$13 <> "", 8.314472*Foglio1!$C$13*Foglio2!J183, NA()) ->  | L183: =IF(Foglio1!$H$13 <> "", Foglio1!$H$13 + K183*10^-3, NA()) ->  | M183: 1594 | N183: 7.374001859 | O183: =IF(Foglio1!$C$14 <> "", 8.314472*Foglio1!$C$14*Foglio2!N183, NA()) ->  | P183: =IF(Foglio1!$H$14 <> "", Foglio1!$H$14 + O183*10^-3, NA()) ->  | Q183: 1594 | R183: 7.374001859 | S183: =IF(Foglio1!$C$15 <> "", 8.314472*Foglio1!$C$15*Foglio2!R183, NA()) ->  | T183: =IF(Foglio1!$H$15 <> "", Foglio1!$H$15 + S183*10^-3, NA()) -> 
A184: 1603 | B184: 7.379632153 | C184: =IF(Foglio1!$C$11 <> "", 8.314472*Foglio1!$C$11*Foglio2!B184, NA()) -> 18407.32347 | D184: =IF(Foglio1!$H$11 <> "", Foglio1!$H$11 + C184*10^-3, NA()) -> -71.59267653 | E184: 1603 | F184: 7.379632153 | G184: =IF(Foglio1!$C$12 <> "", 8.314472*Foglio1!$C$12*Foglio2!F184, NA()) ->  | H184: =IF(Foglio1!$H$12 <> "", Foglio1!$H$12 + G184*10^-3, NA()) ->  | I184: 1603 | J184: 7.379632153 | K184: =IF(Foglio1!$C$13 <> "", 8.314472*Foglio1!$C$13*Foglio2!J184, NA()) ->  | L184: =IF(Foglio1!$H$13 <> "", Foglio1!$H$13 + K184*10^-3, NA()) ->  | M184: 1603 | N184: 7.379632153 | O184: =IF(Foglio1!$C$14 <> "", 8.314472*Foglio1!$C$14*Foglio2!N184, NA()) ->  | P184: =IF(Foglio1!$H$14 <> "", Foglio1!$H$14 + O184*10^-3, NA()) ->  | Q184: 1603 | R184: 7.379632153 | S184: =IF(Foglio1!$C$15 <> "", 8.314472*Foglio1!$C$15*Foglio2!R184, NA()) ->  | T184: =IF(Foglio1!$H$15 <> "", Foglio1!$H$15 + S184*10^-3, NA()) -> 
A185: 1612 | B185: 7.385230923 | C185: =IF(Foglio1!$C$11 <> "", 8.314472*Foglio1!$C$11*Foglio2!B185, NA()) -> 18421.28872 | D185: =IF(Foglio1!$H$11 <> "", Foglio1!$H$11 + C185*10^-3, NA()) -> -71.57871128 | E185: 1612 | F185: 7.385230923 | G185: =IF(Foglio1!$C$12 <> "", 8.314472*Foglio1!$C$12*Foglio2!F185, NA()) ->  | H185: =IF(Foglio1!$H$12 <> "", Foglio1!$H$12 + G185*10^-3, NA()) ->  | I185: 1612 | J185: 7.385230923 | K185: =IF(Foglio1!$C$13 <> "", 8.314472*Foglio1!$C$13*Foglio2!J185, NA()) ->  | L185: =IF(Foglio1!$H$13 <> "", Foglio1!$H$13 + K185*10^-3, NA()) ->  | M185: 1612 | N185: 7.385230923 | O185: =IF(Foglio1!$C$14 <> "", 8.314472*Foglio1!$C$14*Foglio2!N185, NA()) ->  | P185: =IF(Foglio1!$H$14 <> "", Foglio1!$H$14 + O185*10^-3, NA()) ->  | Q185: 1612 | R185: 7.385230923 | S185: =IF(Foglio1!$C$15 <> "", 8.314472*Foglio1!$C$15*Foglio2!R185, NA()) ->  | T185: =IF(Foglio1!$H$15 <> "", Foglio1!$H$15 + S185*10^-3, NA()) -> 
A186: 1621 | B186: 7.390798522 | C186: =IF(Foglio1!$C$11 <> "", 8.314472*Foglio1!$C$11*Foglio2!B186, NA()) -> 18435.17621 | D186: =IF(Foglio1!$H$11 <> "", Foglio1!$H$11 + C186*10^-3, NA()) -> -71.56482379 | E186: 1621 | F186: 7.390798522 | G186: =IF(Foglio1!$C$12 <> "", 8.314472*Foglio1!$C$12*Foglio2!F186, NA()) ->  | H186: =IF(Foglio1!$H$12 <> "", Foglio1!$H$12 + G186*10^-3, NA()) ->  | I186: 1621 | J186: 7.390798522 | K186: =IF(Foglio1!$C$13 <> "", 8.314472*Foglio1!$C$13*Foglio2!J186, NA()) ->  | L186: =IF(Foglio1!$H$13 <> "", Foglio1!$H$13 + K186*10^-3, NA()) ->  | M186: 1621 | N186: 7.390798522 | O186: =IF(Foglio1!$C$14 <> "", 8.314472*Foglio1!$C$14*Foglio2!N186, NA()) ->  | P186: =IF(Foglio1!$H$14 <> "", Foglio1!$H$14 + O186*10^-3, NA()) ->  | Q186: 1621 | R186: 7.390798522 | S186: =IF(Foglio1!$C$15 <> "", 8.314472*Foglio1!$C$15*Foglio2!R186, NA()) ->  | T186: =IF(Foglio1!$H$15 <> "", Foglio1!$H$15 + S186*10^-3, NA()) -> 
A187: 1630 | B187: 7.396335294 | C187: =IF(Foglio1!$C$11 <> "", 8.314472*Foglio1!$C$11*Foglio2!B187, NA()) -> 18448.98681 | D187: =IF(Foglio1!$H$11 <> "", Foglio1!$H$11 + C187*10^-3, NA()) -> -71.55101319 | E187: 1630 | F187: 7.396335294 | G187: =IF(Foglio1!$C$12 <> "", 8.314472*Foglio1!$C$12*Foglio2!F187, NA()) ->  | H187: =IF(Foglio1!$H$12 <> "", Foglio1!$H$12 + G187*10^-3, NA()) ->  | I187: 1630 | J187: 7.396335294 | K187: =IF(Foglio1!$C$13 <> "", 8.314472*Foglio1!$C$13*Foglio2!J187, NA()) ->  | L187: =IF(Foglio1!$H$13 <> "", Foglio1!$H$13 + K187*10^-3, NA()) ->  | M187: 1630 | N187: 7.396335294 | O187: =IF(Foglio1!$C$14 <> "", 8.314472*Foglio1!$C$14*Foglio2!N187, NA()) ->  | P187: =IF(Foglio1!$H$14 <> "", Foglio1!$H$14 + O187*10^-3, NA()) ->  | Q187: 1630 | R187: 7.396335294 | S187: =IF(Foglio1!$C$15 <> "", 8.314472*Foglio1!$C$15*Foglio2!R187, NA()) ->  | T187: =IF(Foglio1!$H$15 <> "", Foglio1!$H$15 + S187*10^-3, NA()) -> 
A188: 1639 | B188: 7.401841579 | C188: =IF(Foglio1!$C$11 <> "", 8.314472*Foglio1!$C$11*Foglio2!B188, NA()) -> 18462.72137 | D188: =IF(Foglio1!$H$11 <> "", Foglio1!$H$11 + C188*10^-3, NA()) -> -71.53727863 | E188: 1639 | F188: 7.401841579 | G188: =IF(Foglio1!$C$12 <> "", 8.314472*Foglio1!$C$12*Foglio2!F188, NA()) ->  | H188: =IF(Foglio1!$H$12 <> "", Foglio1!$H$12 + G188*10^-3, NA()) ->  | I188: 1639 | J188: 7.401841579 | K188: =IF(Foglio1!$C$13 <> "", 8.314472*Foglio1!$C$13*Foglio2!J188, NA()) ->  | L188: =IF(Foglio1!$H$13 <> "", Foglio1!$H$13 + K188*10^-3, NA()) ->  | M188: 1639 | N188: 7.401841579 | O188: =IF(Foglio1!$C$14 <> "", 8.314472*Foglio1!$C$14*Foglio2!N188, NA()) ->  | P188: =IF(Foglio1!$H$14 <> "", Foglio1!$H$14 + O188*10^-3, NA()) ->  | Q188: 1639 | R188: 7.401841579 | S188: =IF(Foglio1!$C$15 <> "", 8.314472*Foglio1!$C$15*Foglio2!R188, NA()) ->  | T188: =IF(Foglio1!$H$15 <> "", Foglio1!$H$15 + S188*10^-3, NA()) -> 
A189: 1648 | B189: 7.40731771 | C189: =IF(Foglio1!$C$11 <> "", 8.314472*Foglio1!$C$11*Foglio2!B189, NA()) -> 18476.38071 | D189: =IF(Foglio1!$H$11 <> "", Foglio1!$H$11 + C189*10^-3, NA()) -> -71.52361929 | E189: 1648 | F189: 7.40731771 | G189: =IF(Foglio1!$C$12 <> "", 8.314472*Foglio1!$C$12*Foglio2!F189, NA()) ->  | H189: =IF(Foglio1!$H$12 <> "", Foglio1!$H$12 + G189*10^-3, NA()) ->  | I189: 1648 | J189: 7.40731771 | K189: =IF(Foglio1!$C$13 <> "", 8.314472*Foglio1!$C$13*Foglio2!J189, NA()) ->  | L189: =IF(Foglio1!$H$13 <> "", Foglio1!$H$13 + K189*10^-3, NA()) ->  | M189: 1648 | N189: 7.40731771 | O189: =IF(Foglio1!$C$14 <> "", 8.314472*Foglio1!$C$14*Foglio2!N189, NA()) ->  | P189: =IF(Foglio1!$H$14 <> "", Foglio1!$H$14 + O189*10^-3, NA()) ->  | Q189: 1648 | R189: 7.40731771 | S189: =IF(Foglio1!$C$15 <> "", 8.314472*Foglio1!$C$15*Foglio2!R189, NA()) ->  | T189: =IF(Foglio1!$H$15 <> "", Foglio1!$H$15 + S189*10^-3, NA()) -> 
A190: 1657 | B190: 7.412764017 | C190: =IF(Foglio1!$C$11 <> "", 8.314472*Foglio1!$C$11*Foglio2!B190, NA()) -> 18489.96566 | D190: =IF(Foglio1!$H$11 <> "", Foglio1!$H$11 + C190*10^-3, NA()) -> -71.51003434 | E190: 1657 | F190: 7.412764017 | G190: =IF(Foglio1!$C$12 <> "", 8.314472*Foglio1!$C$12*Foglio2!F190, NA()) ->  | H190: =IF(Foglio1!$H$12 <> "", Foglio1!$H$12 + G190*10^-3, NA()) ->  | I190: 1657 | J190: 7.412764017 | K190: =IF(Foglio1!$C$13 <> "", 8.314472*Foglio1!$C$13*Foglio2!J190, NA()) ->  | L190: =IF(Foglio1!$H$13 <> "", Foglio1!$H$13 + K190*10^-3, NA()) ->  | M190: 1657 | N190: 7.412764017 | O190: =IF(Foglio1!$C$14 <> "", 8.314472*Foglio1!$C$14*Foglio2!N190, NA()) ->  | P190: =IF(Foglio1!$H$14 <> "", Foglio1!$H$14 + O190*10^-3, NA()) ->  | Q190: 1657 | R190: 7.412764017 | S190: =IF(Foglio1!$C$15 <> "", 8.314472*Foglio1!$C$15*Foglio2!R190, NA()) ->  | T190: =IF(Foglio1!$H$15 <> "", Foglio1!$H$15 + S190*10^-3, NA()) -> 
A191: 1666 | B191: 7.418180823 | C191: =IF(Foglio1!$C$11 <> "", 8.314472*Foglio1!$C$11*Foglio2!B191, NA()) -> 18503.47702 | D191: =IF(Foglio1!$H$11 <> "", Foglio1!$H$11 + C191*10^-3, NA()) -> -71.49652298 | E191: 1666 | F191: 7.418180823 | G191: =IF(Foglio1!$C$12 <> "", 8.314472*Foglio1!$C$12*Foglio2!F191, NA()) ->  | H191: =IF(Foglio1!$H$12 <> "", Foglio1!$H$12 + G191*10^-3, NA()) ->  | I191: 1666 | J191: 7.418180823 | K191: =IF(Foglio1!$C$13 <> "", 8.314472*Foglio1!$C$13*Foglio2!J191, NA()) ->  | L191: =IF(Foglio1!$H$13 <> "", Foglio1!$H$13 + K191*10^-3, NA()) ->  | M191: 1666 | N191: 7.418180823 | O191: =IF(Foglio1!$C$14 <> "", 8.314472*Foglio1!$C$14*Foglio2!N191, NA()) ->  | P191: =IF(Foglio1!$H$14 <> "", Foglio1!$H$14 + O191*10^-3, NA()) ->  | Q191: 1666 | R191: 7.418180823 | S191: =IF(Foglio1!$C$15 <> "", 8.314472*Foglio1!$C$15*Foglio2!R191, NA()) ->  | T191: =IF(Foglio1!$H$15 <> "", Foglio1!$H$15 + S191*10^-3, NA()) -> 
A192: 1675 | B192: 7.423568444 | C192: =IF(Foglio1!$C$11 <> "", 8.314472*Foglio1!$C$11*Foglio2!B192, NA()) -> 18516.91559 | D192: =IF(Foglio1!$H$11 <> "", Foglio1!$H$11 + C192*10^-3, NA()) -> -71.48308441 | E192: 1675 | F192: 7.423568444 | G192: =IF(Foglio1!$C$12 <> "", 8.314472*Foglio1!$C$12*Foglio2!F192, NA()) ->  | H192: =IF(Foglio1!$H$12 <> "", Foglio1!$H$12 + G192*10^-3, NA()) ->  | I192: 1675 | J192: 7.423568444 | K192: =IF(Foglio1!$C$13 <> "", 8.314472*Foglio1!$C$13*Foglio2!J192, NA()) ->  | L192: =IF(Foglio1!$H$13 <> "", Foglio1!$H$13 + K192*10^-3, NA()) ->  | M192: 1675 | N192: 7.423568444 | O192: =IF(Foglio1!$C$14 <> "", 8.314472*Foglio1!$C$14*Foglio2!N192, NA()) ->  | P192: =IF(Foglio1!$H$14 <> "", Foglio1!$H$14 + O192*10^-3, NA()) ->  | Q192: 1675 | R192: 7.423568444 | S192: =IF(Foglio1!$C$15 <> "", 8.314472*Foglio1!$C$15*Foglio2!R192, NA()) ->  | T192: =IF(Foglio1!$H$15 <> "", Foglio1!$H$15 + S192*10^-3, NA()) -> 
A193: 1684 | B193: 7.428927195 | C193: =IF(Foglio1!$C$11 <> "", 8.314472*Foglio1!$C$11*Foglio2!B193, NA()) -> 18530.28215 | D193: =IF(Foglio1!$H$11 <> "", Foglio1!$H$11 + C193*10^-3, NA()) -> -71.46971785 | E193: 1684 | F193: 7.428927195 | G193: =IF(Foglio1!$C$12 <> "", 8.314472*Foglio1!$C$12*Foglio2!F193, NA()) ->  | H193: =IF(Foglio1!$H$12 <> "", Foglio1!$H$12 + G193*10^-3, NA()) ->  | I193: 1684 | J193: 7.428927195 | K193: =IF(Foglio1!$C$13 <> "", 8.314472*Foglio1!$C$13*Foglio2!J193, NA()) ->  | L193: =IF(Foglio1!$H$13 <> "", Foglio1!$H$13 + K193*10^-3, NA()) ->  | M193: 1684 | N193: 7.428927195 | O193: =IF(Foglio1!$C$14 <> "", 8.314472*Foglio1!$C$14*Foglio2!N193, NA()) ->  | P193: =IF(Foglio1!$H$14 <> "", Foglio1!$H$14 + O193*10^-3, NA()) ->  | Q193: 1684 | R193: 7.428927195 | S193: =IF(Foglio1!$C$15 <> "", 8.314472*Foglio1!$C$15*Foglio2!R193, NA()) ->  | T193: =IF(Foglio1!$H$15 <> "", Foglio1!$H$15 + S193*10^-3, NA()) -> 
A194: 1693 | B194: 7.434257382 | C194: =IF(Foglio1!$C$11 <> "", 8.314472*Foglio1!$C$11*Foglio2!B194, NA()) -> 18543.57745 | D194: =IF(Foglio1!$H$11 <> "", Foglio1!$H$11 + C194*10^-3, NA()) -> -71.45642255 | E194: 1693 | F194: 7.434257382 | G194: =IF(Foglio1!$C$12 <> "", 8.314472*Foglio1!$C$12*Foglio2!F194, NA()) ->  | H194: =IF(Foglio1!$H$12 <> "", Foglio1!$H$12 + G194*10^-3, NA()) ->  | I194: 1693 | J194: 7.434257382 | K194: =IF(Foglio1!$C$13 <> "", 8.314472*Foglio1!$C$13*Foglio2!J194, NA()) ->  | L194: =IF(Foglio1!$H$13 <> "", Foglio1!$H$13 + K194*10^-3, NA()) ->  | M194: 1693 | N194: 7.434257382 | O194: =IF(Foglio1!$C$14 <> "", 8.314472*Foglio1!$C$14*Foglio2!N194, NA()) ->  | P194: =IF(Foglio1!$H$14 <> "", Foglio1!$H$14 + O194*10^-3, NA()) ->  | Q194: 1693 | R194: 7.434257382 | S194: =IF(Foglio1!$C$15 <> "", 8.314472*Foglio1!$C$15*Foglio2!R194, NA()) ->  | T194: =IF(Foglio1!$H$15 <> "", Foglio1!$H$15 + S194*10^-3, NA()) -> 
A195: 1702 | B195: =LN(A195) -> 7.439559309 | C195: =IF(Foglio1!$C$11 <> "", 8.314472*Foglio1!$C$11*Foglio2!B195, NA()) -> 18556.80227 | D195: =IF(Foglio1!$H$11 <> "", Foglio1!$H$11 + C195*10^-3, NA()) -> -71.44319773 | E195: 1702 | F195: =LN(E195) -> 7.439559309 | G195: =IF(Foglio1!$C$12 <> "", 8.314472*Foglio1!$C$12*Foglio2!F195, NA()) ->  | H195: =IF(Foglio1!$H$12 <> "", Foglio1!$H$12 + G195*10^-3, NA()) ->  | I195: 1702 | J195: =LN(I195) -> 7.439559309 | K195: =IF(Foglio1!$C$13 <> "", 8.314472*Foglio1!$C$13*Foglio2!J195, NA()) ->  | L195: =IF(Foglio1!$H$13 <> "", Foglio1!$H$13 + K195*10^-3, NA()) ->  | M195: 1702 | N195: =LN(M195) -> 7.439559309 | O195: =IF(Foglio1!$C$14 <> "", 8.314472*Foglio1!$C$14*Foglio2!N195, NA()) ->  | P195: =IF(Foglio1!$H$14 <> "", Foglio1!$H$14 + O195*10^-3, NA()) ->  | Q195: 1702 | R195: =LN(Q195) -> 7.439559309 | S195: =IF(Foglio1!$C$15 <> "", 8.314472*Foglio1!$C$15*Foglio2!R195, NA()) ->  | T195: =IF(Foglio1!$H$15 <> "", Foglio1!$H$15 + S195*10^-3, NA()) -> 
A196: 1711 | B196: 7.444833274 | C196: =IF(Foglio1!$C$11 <> "", 8.314472*Foglio1!$C$11*Foglio2!B196, NA()) -> 18569.95734 | D196: =IF(Foglio1!$H$11 <> "", Foglio1!$H$11 + C196*10^-3, NA()) -> -71.43004266 | E196: 1711 | F196: 7.444833274 | G196: =IF(Foglio1!$C$12 <> "", 8.314472*Foglio1!$C$12*Foglio2!F196, NA()) ->  | H196: =IF(Foglio1!$H$12 <> "", Foglio1!$H$12 + G196*10^-3, NA()) ->  | I196: 1711 | J196: 7.444833274 | K196: =IF(Foglio1!$C$13 <> "", 8.314472*Foglio1!$C$13*Foglio2!J196, NA()) ->  | L196: =IF(Foglio1!$H$13 <> "", Foglio1!$H$13 + K196*10^-3, NA()) ->  | M196: 1711 | N196: 7.444833274 | O196: =IF(Foglio1!$C$14 <> "", 8.314472*Foglio1!$C$14*Foglio2!N196, NA()) ->  | P196: =IF(Foglio1!$H$14 <> "", Foglio1!$H$14 + O196*10^-3, NA()) ->  | Q196: 1711 | R196: 7.444833274 | S196: =IF(Foglio1!$C$15 <> "", 8.314472*Foglio1!$C$15*Foglio2!R196, NA()) ->  | T196: =IF(Foglio1!$H$15 <> "", Foglio1!$H$15 + S196*10^-3, NA()) -> 
A197: 1720 | B197: 7.45007957 | C197: =IF(Foglio1!$C$11 <> "", 8.314472*Foglio1!$C$11*Foglio2!B197, NA()) -> 18583.04339 | D197: =IF(Foglio1!$H$11 <> "", Foglio1!$H$11 + C197*10^-3, NA()) -> -71.41695661 | E197: 1720 | F197: 7.45007957 | G197: =IF(Foglio1!$C$12 <> "", 8.314472*Foglio1!$C$12*Foglio2!F197, NA()) ->  | H197: =IF(Foglio1!$H$12 <> "", Foglio1!$H$12 + G197*10^-3, NA()) ->  | I197: 1720 | J197: 7.45007957 | K197: =IF(Foglio1!$C$13 <> "", 8.314472*Foglio1!$C$13*Foglio2!J197, NA()) ->  | L197: =IF(Foglio1!$H$13 <> "", Foglio1!$H$13 + K197*10^-3, NA()) ->  | M197: 1720 | N197: 7.45007957 | O197: =IF(Foglio1!$C$14 <> "", 8.314472*Foglio1!$C$14*Foglio2!N197, NA()) ->  | P197: =IF(Foglio1!$H$14 <> "", Foglio1!$H$14 + O197*10^-3, NA()) ->  | Q197: 1720 | R197: 7.45007957 | S197: =IF(Foglio1!$C$15 <> "", 8.314472*Foglio1!$C$15*Foglio2!R197, NA()) ->  | T197: =IF(Foglio1!$H$15 <> "", Foglio1!$H$15 + S197*10^-3, NA()) -> 
A198: 1729 | B198: 7.455298486 | C198: =IF(Foglio1!$C$11 <> "", 8.314472*Foglio1!$C$11*Foglio2!B198, NA()) -> 18596.06115 | D198: =IF(Foglio1!$H$11 <> "", Foglio1!$H$11 + C198*10^-3, NA()) -> -71.40393885 | E198: 1729 | F198: 7.455298486 | G198: =IF(Foglio1!$C$12 <> "", 8.314472*Foglio1!$C$12*Foglio2!F198, NA()) ->  | H198: =IF(Foglio1!$H$12 <> "", Foglio1!$H$12 + G198*10^-3, NA()) ->  | I198: 1729 | J198: 7.455298486 | K198: =IF(Foglio1!$C$13 <> "", 8.314472*Foglio1!$C$13*Foglio2!J198, NA()) ->  | L198: =IF(Foglio1!$H$13 <> "", Foglio1!$H$13 + K198*10^-3, NA()) ->  | M198: 1729 | N198: 7.455298486 | O198: =IF(Foglio1!$C$14 <> "", 8.314472*Foglio1!$C$14*Foglio2!N198, NA()) ->  | P198: =IF(Foglio1!$H$14 <> "", Foglio1!$H$14 + O198*10^-3, NA()) ->  | Q198: 1729 | R198: 7.455298486 | S198: =IF(Foglio1!$C$15 <> "", 8.314472*Foglio1!$C$15*Foglio2!R198, NA()) ->  | T198: =IF(Foglio1!$H$15 <> "", Foglio1!$H$15 + S198*10^-3, NA()) -> 
A199: 1738 | B199: 7.460490306 | C199: =IF(Foglio1!$C$11 <> "", 8.314472*Foglio1!$C$11*Foglio2!B199, NA()) -> 18609.01133 | D199: =IF(Foglio1!$H$11 <> "", Foglio1!$H$11 + C199*10^-3, NA()) -> -71.39098867 | E199: 1738 | F199: 7.460490306 | G199: =IF(Foglio1!$C$12 <> "", 8.314472*Foglio1!$C$12*Foglio2!F199, NA()) ->  | H199: =IF(Foglio1!$H$12 <> "", Foglio1!$H$12 + G199*10^-3, NA()) ->  | I199: 1738 | J199: 7.460490306 | K199: =IF(Foglio1!$C$13 <> "", 8.314472*Foglio1!$C$13*Foglio2!J199, NA()) ->  | L199: =IF(Foglio1!$H$13 <> "", Foglio1!$H$13 + K199*10^-3, NA()) ->  | M199: 1738 | N199: 7.460490306 | O199: =IF(Foglio1!$C$14 <> "", 8.314472*Foglio1!$C$14*Foglio2!N199, NA()) ->  | P199: =IF(Foglio1!$H$14 <> "", Foglio1!$H$14 + O199*10^-3, NA()) ->  | Q199: 1738 | R199: 7.460490306 | S199: =IF(Foglio1!$C$15 <> "", 8.314472*Foglio1!$C$15*Foglio2!R199, NA()) ->  | T199: =IF(Foglio1!$H$15 <> "", Foglio1!$H$15 + S199*10^-3, NA()) -> 
A200: 1747 | B200: 7.46565531 | C200: =IF(Foglio1!$C$11 <> "", 8.314472*Foglio1!$C$11*Foglio2!B200, NA()) -> 18621.89461 | D200: =IF(Foglio1!$H$11 <> "", Foglio1!$H$11 + C200*10^-3, NA()) -> -71.37810539 | E200: 1747 | F200: 7.46565531 | G200: =IF(Foglio1!$C$12 <> "", 8.314472*Foglio1!$C$12*Foglio2!F200, NA()) ->  | H200: =IF(Foglio1!$H$12 <> "", Foglio1!$H$12 + G200*10^-3, NA()) ->  | I200: 1747 | J200: 7.46565531 | K200: =IF(Foglio1!$C$13 <> "", 8.314472*Foglio1!$C$13*Foglio2!J200, NA()) ->  | L200: =IF(Foglio1!$H$13 <> "", Foglio1!$H$13 + K200*10^-3, NA()) ->  | M200: 1747 | N200: 7.46565531 | O200: =IF(Foglio1!$C$14 <> "", 8.314472*Foglio1!$C$14*Foglio2!N200, NA()) ->  | P200: =IF(Foglio1!$H$14 <> "", Foglio1!$H$14 + O200*10^-3, NA()) ->  | Q200: 1747 | R200: 7.46565531 | S200: =IF(Foglio1!$C$15 <> "", 8.314472*Foglio1!$C$15*Foglio2!R200, NA()) ->  | T200: =IF(Foglio1!$H$15 <> "", Foglio1!$H$15 + S200*10^-3, NA()) -> 
... 919 more rows
